{"text_format":"1","workbook":"xlsx","n_sheets":13,"sheets":["OLD PAPI_24- 27 (Delib. 246) ","Identificação das ações 24-27","Acompanhamento das metas 24-27","Acomp. financeiro  24-27","PAPI 2024-2027","Consolidaçao - 1","Consolidaçao - 2","Orientações","Acomp. - PAPI_21 (Delib. 190) ","Acomp. PAPI_22_23 (Delib. 246) ","Operacional","Explicativo","de-para 246 190"],"not_rendered":{"charts":5,"images":0,"macros":1,"external_links":0,"defined_names":8,"comments":7,"pivot_tables":6},"unopened":[],"bounds":{"document_bytes":16777216,"sheet_cells":100000,"rows_first":2000,"rows_last":500,"rows_between":2000,"halvings":0,"cell_chars":16384,"cell_head_chars":4096},"cells_cut":0,"cells_raw":0,"read":"whole","date_system":"1900"}

{"sheet":"OLD PAPI_24- 27 (Delib. 246) ","index":0,"n_rows":50,"n_cols":24,"rows_kept":50,"cut":false,"hidden":true,"merged":[]}
["ID Ação","Ação iniciou no PA/PI anterior?","Se sim, id da ação anterior","Ano previsto para início","Tipo de ação","É ou será  empreendimento FEHIDRO?","Ação requer recursos financeiros?","SubPDC","Prioridade do SubPDC","Ação","Meta","% Execução da meta do quadriênio","Segmento do executor","Área de abrangência","Nome da área de abrangência","Recurso financeiro estimado no ano\n(R$) - Cobrança Estadual","Recurso financeiro estimado no ano (R$) - CFURH","Recurso financeiro estimado no ano\n(R$) - Cobrança Federal","Recurso financeiro estimado no ano (R$) - Outras","Especificar Fonte - \"Outras\"","Recurso financeiro estimado no ano\n(R$)","Recurso financeiro disponibilizado no ano (R$)","Recurso financeiro executado no ano (R$)","Justificativa sobre execução física e financeira"]
["SID012024","Não",null,2024,null,"Sim",null,"3.1 - Efluentes","Não prioritário","Efetuar estudos de detalhe sobre a disponibilidade hídrica superficial e subterrânea (AG.11)","MG.4 - Realizar ao menos 01 estudo que subsidie o planejamento e a gestão de recursos hídricos na UGRHi 18",null,null,"Sub-bacia","Sub-bacia crítica conforme classe de  vazão de referência apontadas no Relatório de Situação",null,null,null,null,null,{"$f":"IF(SUM(PAPI20_22_23[[#This Row],[Recurso financeiro estimado no ano\n(R$) - Cobrança Estadual]:[Recurso financeiro estimado no ano (R$) - Outras]]) >0,SUM(PAPI20_22_23[[#This Row],[Recurso financeiro estimado no ano\n(R$) - Cobrança Estadual]:[Recurso financeiro estimado no ano (R$) - Outras]]),\"\")","v":""}]
["SID012025",null,null,2024,null,null,null,null,null,"Manter o cadastro atualizado na bacia hidrográfica SJD  (AG.13)","MG.4 - Realizar ao menos 01 estudo para acompanhamento e adequação da cobrança pelo uso dos recursos hídricos",null,"Estado","UGRHi","UGRHi 18",170000,null,null,null,null,{"$f":"IF(SUM(PAPI20_22_23[[#This Row],[Recurso financeiro estimado no ano\n(R$) - Cobrança Estadual]:[Recurso financeiro estimado no ano (R$) - Outras]]) >0,SUM(PAPI20_22_23[[#This Row],[Recurso financeiro estimado no ano\n(R$) - Cobrança Estadual]:[Recurso financeiro estimado no ano (R$) - Outras]]),\"\")","v":170000}]
["SID012024",null,null,null,null,null,null,null,null,"Execução de obras de sistemas de esgotamento sanitário, bem como de tratamento de efluentes provenientes de ETE  (AI.3, 4, 5 e 6)","MI. 2 e 3 - Efetuar melhorias nos sistemas de tratamento de esgoto  em ao \nmenos 02 municípios",null,"Município","Município","Municípios da UGRHi 18 que apresentem proporção de redução da carga orgânica poluidora domestica ≤ 80%. ",260000,null,null,null,null,{"$f":"IF(SUM(PAPI20_22_23[[#This Row],[Recurso financeiro estimado no ano\n(R$) - Cobrança Estadual]:[Recurso financeiro estimado no ano (R$) - Outras]]) >0,SUM(PAPI20_22_23[[#This Row],[Recurso financeiro estimado no ano\n(R$) - Cobrança Estadual]:[Recurso financeiro estimado no ano (R$) - Outras]]),\"\")","v":260000}]
["SID042022",null,null,null,null,null,null,null,null,"Execução de obras e projetos (AI 8 e 9) nos casos em que haja comprometimento dos recursos hídricos","MI.4 -  Efetuar melhorias nos sistemas de aterros sanitários em ao menos 02  municípios",null,"Município","Município","Municípios com sistema de tratamento e coleta de resíduos sólidos ineficientes, conforme  consta no Rel. Situação.",250000,null,null,null,null,{"$f":"IF(SUM(PAPI20_22_23[[#This Row],[Recurso financeiro estimado no ano\n(R$) - Cobrança Estadual]:[Recurso financeiro estimado no ano (R$) - Outras]]) >0,SUM(PAPI20_22_23[[#This Row],[Recurso financeiro estimado no ano\n(R$) - Cobrança Estadual]:[Recurso financeiro estimado no ano (R$) - Outras]]),\"\")","v":250000}]
["SID052022",null,null,null,null,null,null,null,null,"Execução de obras ou projetos que controle a erosão do solo ou assoreamento dos corpos d’água, em áreas urbanas ou rurais (AI. 14, 15 e 16)","MI. 6 e MI. 7 - Aprimorar sistemas de conservação do solo e controle de erosão em ao menos 03 municípios",null,"Município","Município","Municípios com Plano de Drenagem ou Plano Diretor de Erosão elaborado",null,288866.7,null,null,null,{"$f":"IF(SUM(PAPI20_22_23[[#This Row],[Recurso financeiro estimado no ano\n(R$) - Cobrança Estadual]:[Recurso financeiro estimado no ano (R$) - Outras]]) >0,SUM(PAPI20_22_23[[#This Row],[Recurso financeiro estimado no ano\n(R$) - Cobrança Estadual]:[Recurso financeiro estimado no ano (R$) - Outras]]),\"\")","v":288866.7}]
["SID062022",null,null,null,null,null,null,null,null,"Implementação das açoes indicadas no Plano de Saneamento (AI.11 e 12)\n(troca de hidrômetros, manutenção de rede, instalação de válvulas redutoras de pressão, entre outros)","MI.5 - Reduzir perdas em sistemas de abastecimento de água em ao menos 02 municípios",null,"Município","Município","Ilha Solteira, Santa Fé do Sul, Suzanápolis, São João de Iracema e Neves Paulista",170000,null,null,null,null,{"$f":"IF(SUM(PAPI20_22_23[[#This Row],[Recurso financeiro estimado no ano\n(R$) - Cobrança Estadual]:[Recurso financeiro estimado no ano (R$) - Outras]]) >0,SUM(PAPI20_22_23[[#This Row],[Recurso financeiro estimado no ano\n(R$) - Cobrança Estadual]:[Recurso financeiro estimado no ano (R$) - Outras]]),\"\")","v":170000}]
["SID072022",null,null,null,null,null,null,null,null,"Execução de obras ou projetos de galerias de águas pluviais e canalização de curso d'água em área urbana e periurbana (AI.17, AI. 21, 22 e 23 )","MI. 7 e MI. 9 - Realizar melhorias nos sistemas de drenagem em ao menos 02 municípios",null,"Município","Município","Obras indicadas no Plano/Estudo de Drenagem no Município  e para Projetos com necessidades de readequação/ampliação",null,200000,null,null,null,{"$f":"IF(SUM(PAPI20_22_23[[#This Row],[Recurso financeiro estimado no ano\n(R$) - Cobrança Estadual]:[Recurso financeiro estimado no ano (R$) - Outras]]) >0,SUM(PAPI20_22_23[[#This Row],[Recurso financeiro estimado no ano\n(R$) - Cobrança Estadual]:[Recurso financeiro estimado no ano (R$) - Outras]]),\"\")","v":200000}]
["SID082022",null,null,null,null,null,null,null,null,"Orientação aos produtores rurais quanto à importância da outorga e treinamento/capacitação sobre os procedimentos de outorga e licenciamento ambiental (AG.25)","MG.9. Realizar ao menos 1 curso de capacitação técnica relacionada ao planejamento e gestão de recursos hídricos",null,null,"UGRHi","UGRHi 18",150000,null,null,null,null,{"$f":"IF(SUM(PAPI20_22_23[[#This Row],[Recurso financeiro estimado no ano\n(R$) - Cobrança Estadual]:[Recurso financeiro estimado no ano (R$) - Outras]]) >0,SUM(PAPI20_22_23[[#This Row],[Recurso financeiro estimado no ano\n(R$) - Cobrança Estadual]:[Recurso financeiro estimado no ano (R$) - Outras]]),\"\")","v":150000},150000,0,"empreendimento não iniciado - emitiu o contrato"]
["SID012023",null,null,null,null,null,null,null,null,"Realizar estudo/diagnóstico ambiental das nascentes, por sub-bacia, na UGRHI","Aumentar as informações afim de subsidiar o planejamento e a gestão dos recursos hídricos na UGRHI",null,"DIVERSOS","UGRHi","UGRHi 18 ",200197.43,null,null,null,null,{"$f":"IF(SUM(PAPI20_22_23[[#This Row],[Recurso financeiro estimado no ano\n(R$) - Cobrança Estadual]:[Recurso financeiro estimado no ano (R$) - Outras]]) >0,SUM(PAPI20_22_23[[#This Row],[Recurso financeiro estimado no ano\n(R$) - Cobrança Estadual]:[Recurso financeiro estimado no ano (R$) - Outras]]),\"\")","v":200197.43}]
["SID022023",null,null,null,null,null,null,null,null,"Elaborar mapa de feições erosivas da UGRHI"," Aumentar as informações afim de subsidiar o planejamento e a gestão dos recursos hídricos na UGRHI",null,"DIVERSOS","UGRHi","UGRHi 18 ",null,280000,null,null,null,{"$f":"IF(SUM(PAPI20_22_23[[#This Row],[Recurso financeiro estimado no ano\n(R$) - Cobrança Estadual]:[Recurso financeiro estimado no ano (R$) - Outras]]) >0,SUM(PAPI20_22_23[[#This Row],[Recurso financeiro estimado no ano\n(R$) - Cobrança Estadual]:[Recurso financeiro estimado no ano (R$) - Outras]]),\"\")","v":280000}]
["SID032022",null,null,null,null,null,null,null,null,"Elaboração do Plano diretor de controle de perdas","Aumentar as informações afim de subsidiar o planejamento e a gestão dos recursos hídricos na UGRHI",null,"Município","Município","Ilha Solteira, Neves Paulista, São João de Iracema e Santa Fé do Sul.",170000,null,null,null,null,{"$f":"IF(SUM(PAPI20_22_23[[#This Row],[Recurso financeiro estimado no ano\n(R$) - Cobrança Estadual]:[Recurso financeiro estimado no ano (R$) - Outras]]) >0,SUM(PAPI20_22_23[[#This Row],[Recurso financeiro estimado no ano\n(R$) - Cobrança Estadual]:[Recurso financeiro estimado no ano (R$) - Outras]]),\"\")","v":170000}]
["SID042023",null,null,null,null,null,null,null,null,"Elaborar estudos para o controle de processos erosivos e projetos (básicos e/ou executivos), serviços ou obras para prevenção, prioritariamente em bacias de abastecimento, nascentes e áreas de recarga\n(troca de hidrômetros, manutenção de rede, instalação de válvulas redutoras de pressão, entre outros)","Prevenir e controlar processos de erosão e assoreamento, visando a melhoria ou recuperação dos corpos d’água",null,"Município","Município","Floreal, General Salgado, Ilha Solteira, Jales, Monte Aprazível, Neves Paulista, Nhandeara, Palmeira d´oeste, Santa Fé do Sul, Sebastianópolis do Sul, Cosmorama, Monte Aprazível, Poloni, Santa Salete, Santana da Ponte Pensa, São Francisco, Tanabi, Três Fronteiras e Votuporanga",400000,300000,null,null,null,{"$f":"IF(SUM(PAPI20_22_23[[#This Row],[Recurso financeiro estimado no ano\n(R$) - Cobrança Estadual]:[Recurso financeiro estimado no ano (R$) - Outras]]) >0,SUM(PAPI20_22_23[[#This Row],[Recurso financeiro estimado no ano\n(R$) - Cobrança Estadual]:[Recurso financeiro estimado no ano (R$) - Outras]]),\"\")","v":700000}]
["SID052023",null,null,null,null,null,null,null,null,"Elaborar Projetos (básicos e/ou executivos), obras ou serviços em sistemas de abastecimento, visando controle e redução de perdas de água","Alcance de uma média de 25% de perdas globais nos municípios da Bacia",null,"Município","Município","Ilha Solteira, Suzanápolis, Santa Fé do Sul, Neves Paulista e São João de Iracema.",300000,null,null,null,null,{"$f":"IF(SUM(PAPI20_22_23[[#This Row],[Recurso financeiro estimado no ano\n(R$) - Cobrança Estadual]:[Recurso financeiro estimado no ano (R$) - Outras]]) >0,SUM(PAPI20_22_23[[#This Row],[Recurso financeiro estimado no ano\n(R$) - Cobrança Estadual]:[Recurso financeiro estimado no ano (R$) - Outras]]),\"\")","v":300000}]
["SID092023",null,null,null,null,null,null,null,null,"Aquisição de equipamentos para operacionalização  de sistemas de alerta, radares meteorológicos ou redes telemétricas integrados a sistemas de suporte à decisão; divulgação de informações e apoio à defesa civil (AG. 24) ","MG. 8 - Estruturar 01 Sala de Situação visando o Monitoramento de eventos extremos e sistemas de suporte a decisão",null,null,"Sub-bacia","UGRHi 18",400000,null,null,null,null,{"$f":"IF(SUM(PAPI20_22_23[[#This Row],[Recurso financeiro estimado no ano\n(R$) - Cobrança Estadual]:[Recurso financeiro estimado no ano (R$) - Outras]]) >0,SUM(PAPI20_22_23[[#This Row],[Recurso financeiro estimado no ano\n(R$) - Cobrança Estadual]:[Recurso financeiro estimado no ano (R$) - Outras]]),\"\")","v":400000},851322.1,0,"adiantamos a indicação da ação prevista para 2023 - empreendimento cancelado"]
["SID07023",null,null,null,null,null,null,null,null,"Elaborar projetos (básicos e/ou executivos), serviços, obras em municípios com sistema de coleta e disposição final de resíduos sólidos ineficientes e/ou inadequadas; e implantar pontos de entrega voluntária (PEV), e programas de coleta seletiva"," Aumentar a cobertura da coleta de resíduos sólidos em áreas urbanas e rurais dos municípios ",null,"Município","Município","Município",308323.15000000002,null,null,null,null,{"$f":"IF(SUM(PAPI20_22_23[[#This Row],[Recurso financeiro estimado no ano\n(R$) - Cobrança Estadual]:[Recurso financeiro estimado no ano (R$) - Outras]]) >0,SUM(PAPI20_22_23[[#This Row],[Recurso financeiro estimado no ano\n(R$) - Cobrança Estadual]:[Recurso financeiro estimado no ano (R$) - Outras]]),\"\")","v":308323.15000000002}]
["SID08023",null,null,null,null,null,null,null,null,"Elaborar projetos (básicos e/ou executivos), executar obras ou serviços em sistemas de abastecimento, visando propor soluções alternativas e a ampliação da rede de distribuição, das demais estruturas de apoio ao abastecimento","Aproveitamento dos recursos hídricos e segurança hídrica",null,"Município","Município","Município",179324.92,null,null,null,null,{"$f":"IF(SUM(PAPI20_22_23[[#This Row],[Recurso financeiro estimado no ano\n(R$) - Cobrança Estadual]:[Recurso financeiro estimado no ano (R$) - Outras]]) >0,SUM(PAPI20_22_23[[#This Row],[Recurso financeiro estimado no ano\n(R$) - Cobrança Estadual]:[Recurso financeiro estimado no ano (R$) - Outras]]),\"\")","v":179324.92}]
["SID06023",null,null,null,null,null,null,null,null,"Elaborar projetos (básicos e/ou executivos), serviços ou obras para contenção de inundações, alagamentos, inclusive por técnicas de infiltração e armazenamento; e regularizações de descargas e dispositivos de lançamento de drenagem"," Contenção de inundações, alagamentos e regularizações de descargas na UGRHI",null,"Município","Município","Município",null,1113141.6499999999,null,null,null,{"$f":"IF(SUM(PAPI20_22_23[[#This Row],[Recurso financeiro estimado no ano\n(R$) - Cobrança Estadual]:[Recurso financeiro estimado no ano (R$) - Outras]]) >0,SUM(PAPI20_22_23[[#This Row],[Recurso financeiro estimado no ano\n(R$) - Cobrança Estadual]:[Recurso financeiro estimado no ano (R$) - Outras]]),\"\")","v":1113141.6499999999}]
[null,null,null,null,null,null,null,null,null,null,null,null,null,null,null,null,null,null,null,null,{"$f":"IF(SUM(PAPI20_22_23[[#This Row],[Recurso financeiro estimado no ano\n(R$) - Cobrança Estadual]:[Recurso financeiro estimado no ano (R$) - Outras]]) >0,SUM(PAPI20_22_23[[#This Row],[Recurso financeiro estimado no ano\n(R$) - Cobrança Estadual]:[Recurso financeiro estimado no ano (R$) - Outras]]),\"\")","v":""}]
[null,null,null,null,null,null,null,null,null,null,null,null,null,null,null,null,null,null,null,null,{"$f":"IF(SUM(PAPI20_22_23[[#This Row],[Recurso financeiro estimado no ano\n(R$) - Cobrança Estadual]:[Recurso financeiro estimado no ano (R$) - Outras]]) >0,SUM(PAPI20_22_23[[#This Row],[Recurso financeiro estimado no ano\n(R$) - Cobrança Estadual]:[Recurso financeiro estimado no ano (R$) - Outras]]),\"\")","v":""}]
[null,null,null,null,null,null,null,null,null,null,null,null,null,null,null,null,null,null,null,null,{"$f":"IF(SUM(PAPI20_22_23[[#This Row],[Recurso financeiro estimado no ano\n(R$) - Cobrança Estadual]:[Recurso financeiro estimado no ano (R$) - Outras]]) >0,SUM(PAPI20_22_23[[#This Row],[Recurso financeiro estimado no ano\n(R$) - Cobrança Estadual]:[Recurso financeiro estimado no ano (R$) - Outras]]),\"\")","v":""}]
[null,null,null,null,null,null,null,null,null,null,null,null,null,null,null,null,null,null,null,null,{"$f":"IF(SUM(PAPI20_22_23[[#This Row],[Recurso financeiro estimado no ano\n(R$) - Cobrança Estadual]:[Recurso financeiro estimado no ano (R$) - Outras]]) >0,SUM(PAPI20_22_23[[#This Row],[Recurso financeiro estimado no ano\n(R$) - Cobrança Estadual]:[Recurso financeiro estimado no ano (R$) - Outras]]),\"\")","v":""}]
[null,null,null,null,null,null,null,null,null,null,null,null,null,null,null,null,null,null,null,null,{"$f":"IF(SUM(PAPI20_22_23[[#This Row],[Recurso financeiro estimado no ano\n(R$) - Cobrança Estadual]:[Recurso financeiro estimado no ano (R$) - Outras]]) >0,SUM(PAPI20_22_23[[#This Row],[Recurso financeiro estimado no ano\n(R$) - Cobrança Estadual]:[Recurso financeiro estimado no ano (R$) - Outras]]),\"\")","v":""}]
[null,null,null,null,null,null,null,null,null,null,null,null,null,null,null,null,null,null,null,null,{"$f":"IF(SUM(PAPI20_22_23[[#This Row],[Recurso financeiro estimado no ano\n(R$) - Cobrança Estadual]:[Recurso financeiro estimado no ano (R$) - Outras]]) >0,SUM(PAPI20_22_23[[#This Row],[Recurso financeiro estimado no ano\n(R$) - Cobrança Estadual]:[Recurso financeiro estimado no ano (R$) - Outras]]),\"\")","v":""}]
[null,null,null,null,null,null,null,null,null,null,null,null,null,null,null,null,null,null,null,null,{"$f":"IF(SUM(PAPI20_22_23[[#This Row],[Recurso financeiro estimado no ano\n(R$) - Cobrança Estadual]:[Recurso financeiro estimado no ano (R$) - Outras]]) >0,SUM(PAPI20_22_23[[#This Row],[Recurso financeiro estimado no ano\n(R$) - Cobrança Estadual]:[Recurso financeiro estimado no ano (R$) - Outras]]),\"\")","v":""}]
[null,null,null,null,null,null,null,null,null,null,null,null,null,null,null,null,null,null,null,null,{"$f":"IF(SUM(PAPI20_22_23[[#This Row],[Recurso financeiro estimado no ano\n(R$) - Cobrança Estadual]:[Recurso financeiro estimado no ano (R$) - Outras]]) >0,SUM(PAPI20_22_23[[#This Row],[Recurso financeiro estimado no ano\n(R$) - Cobrança Estadual]:[Recurso financeiro estimado no ano (R$) - Outras]]),\"\")","v":""}]
[null,null,null,null,null,null,null,null,null,null,null,null,null,null,null,null,null,null,null,null,{"$f":"IF(SUM(PAPI20_22_23[[#This Row],[Recurso financeiro estimado no ano\n(R$) - Cobrança Estadual]:[Recurso financeiro estimado no ano (R$) - Outras]]) >0,SUM(PAPI20_22_23[[#This Row],[Recurso financeiro estimado no ano\n(R$) - Cobrança Estadual]:[Recurso financeiro estimado no ano (R$) - Outras]]),\"\")","v":""}]
[null,null,null,null,null,null,null,null,null,null,null,null,null,null,null,null,null,null,null,null,{"$f":"IF(SUM(PAPI20_22_23[[#This Row],[Recurso financeiro estimado no ano\n(R$) - Cobrança Estadual]:[Recurso financeiro estimado no ano (R$) - Outras]]) >0,SUM(PAPI20_22_23[[#This Row],[Recurso financeiro estimado no ano\n(R$) - Cobrança Estadual]:[Recurso financeiro estimado no ano (R$) - Outras]]),\"\")","v":""}]
[null,null,null,null,null,null,null,null,null,null,null,null,null,null,null,null,null,null,null,null,{"$f":"IF(SUM(PAPI20_22_23[[#This Row],[Recurso financeiro estimado no ano\n(R$) - Cobrança Estadual]:[Recurso financeiro estimado no ano (R$) - Outras]]) >0,SUM(PAPI20_22_23[[#This Row],[Recurso financeiro estimado no ano\n(R$) - Cobrança Estadual]:[Recurso financeiro estimado no ano (R$) - Outras]]),\"\")","v":""}]
[null,null,null,null,null,null,null,null,null,null,null,null,null,null,null,null,null,null,null,null,{"$f":"IF(SUM(PAPI20_22_23[[#This Row],[Recurso financeiro estimado no ano\n(R$) - Cobrança Estadual]:[Recurso financeiro estimado no ano (R$) - Outras]]) >0,SUM(PAPI20_22_23[[#This Row],[Recurso financeiro estimado no ano\n(R$) - Cobrança Estadual]:[Recurso financeiro estimado no ano (R$) - Outras]]),\"\")","v":""}]
[null,null,null,null,null,null,null,null,null,null,null,null,null,null,null,null,null,null,null,null,{"$f":"IF(SUM(PAPI20_22_23[[#This Row],[Recurso financeiro estimado no ano\n(R$) - Cobrança Estadual]:[Recurso financeiro estimado no ano (R$) - Outras]]) >0,SUM(PAPI20_22_23[[#This Row],[Recurso financeiro estimado no ano\n(R$) - Cobrança Estadual]:[Recurso financeiro estimado no ano (R$) - Outras]]),\"\")","v":""}]
[null,null,null,null,null,null,null,null,null,null,null,null,null,null,null,null,null,null,null,null,{"$f":"IF(SUM(PAPI20_22_23[[#This Row],[Recurso financeiro estimado no ano\n(R$) - Cobrança Estadual]:[Recurso financeiro estimado no ano (R$) - Outras]]) >0,SUM(PAPI20_22_23[[#This Row],[Recurso financeiro estimado no ano\n(R$) - Cobrança Estadual]:[Recurso financeiro estimado no ano (R$) - Outras]]),\"\")","v":""}]
[null,null,null,null,null,null,null,null,null,null,null,null,null,null,null,null,null,null,null,null,{"$f":"IF(SUM(PAPI20_22_23[[#This Row],[Recurso financeiro estimado no ano\n(R$) - Cobrança Estadual]:[Recurso financeiro estimado no ano (R$) - Outras]]) >0,SUM(PAPI20_22_23[[#This Row],[Recurso financeiro estimado no ano\n(R$) - Cobrança Estadual]:[Recurso financeiro estimado no ano (R$) - Outras]]),\"\")","v":""}]
[null,null,null,null,null,null,null,null,null,null,null,null,null,null,null,null,null,null,null,null,{"$f":"IF(SUM(PAPI20_22_23[[#This Row],[Recurso financeiro estimado no ano\n(R$) - Cobrança Estadual]:[Recurso financeiro estimado no ano (R$) - Outras]]) >0,SUM(PAPI20_22_23[[#This Row],[Recurso financeiro estimado no ano\n(R$) - Cobrança Estadual]:[Recurso financeiro estimado no ano (R$) - Outras]]),\"\")","v":""}]
[null,null,null,null,null,null,null,null,null,null,null,null,null,null,null,null,null,null,null,null,{"$f":"IF(SUM(PAPI20_22_23[[#This Row],[Recurso financeiro estimado no ano\n(R$) - Cobrança Estadual]:[Recurso financeiro estimado no ano (R$) - Outras]]) >0,SUM(PAPI20_22_23[[#This Row],[Recurso financeiro estimado no ano\n(R$) - Cobrança Estadual]:[Recurso financeiro estimado no ano (R$) - Outras]]),\"\")","v":""}]
[null,null,null,null,null,null,null,null,null,null,null,null,null,null,null,null,null,null,null,null,{"$f":"IF(SUM(PAPI20_22_23[[#This Row],[Recurso financeiro estimado no ano\n(R$) - Cobrança Estadual]:[Recurso financeiro estimado no ano (R$) - Outras]]) >0,SUM(PAPI20_22_23[[#This Row],[Recurso financeiro estimado no ano\n(R$) - Cobrança Estadual]:[Recurso financeiro estimado no ano (R$) - Outras]]),\"\")","v":""}]
[null,null,null,null,null,null,null,null,null,null,null,null,null,null,null,null,null,null,null,null,{"$f":"IF(SUM(PAPI20_22_23[[#This Row],[Recurso financeiro estimado no ano\n(R$) - Cobrança Estadual]:[Recurso financeiro estimado no ano (R$) - Outras]]) >0,SUM(PAPI20_22_23[[#This Row],[Recurso financeiro estimado no ano\n(R$) - Cobrança Estadual]:[Recurso financeiro estimado no ano (R$) - Outras]]),\"\")","v":""}]
[null,null,null,null,null,null,null,null,null,null,null,null,null,null,null,null,null,null,null,null,{"$f":"IF(SUM(PAPI20_22_23[[#This Row],[Recurso financeiro estimado no ano\n(R$) - Cobrança Estadual]:[Recurso financeiro estimado no ano (R$) - Outras]]) >0,SUM(PAPI20_22_23[[#This Row],[Recurso financeiro estimado no ano\n(R$) - Cobrança Estadual]:[Recurso financeiro estimado no ano (R$) - Outras]]),\"\")","v":""}]
[null,null,null,null,null,null,null,null,null,null,null,null,null,null,null,null,null,null,null,null,{"$f":"IF(SUM(PAPI20_22_23[[#This Row],[Recurso financeiro estimado no ano\n(R$) - Cobrança Estadual]:[Recurso financeiro estimado no ano (R$) - Outras]]) >0,SUM(PAPI20_22_23[[#This Row],[Recurso financeiro estimado no ano\n(R$) - Cobrança Estadual]:[Recurso financeiro estimado no ano (R$) - Outras]]),\"\")","v":""}]
[null,null,null,null,null,null,null,null,null,null,null,null,null,null,null,null,null,null,null,null,{"$f":"IF(SUM(PAPI20_22_23[[#This Row],[Recurso financeiro estimado no ano\n(R$) - Cobrança Estadual]:[Recurso financeiro estimado no ano (R$) - Outras]]) >0,SUM(PAPI20_22_23[[#This Row],[Recurso financeiro estimado no ano\n(R$) - Cobrança Estadual]:[Recurso financeiro estimado no ano (R$) - Outras]]),\"\")","v":""}]
[null,null,null,null,null,null,null,null,null,null,null,null,null,null,null,null,null,null,null,null,{"$f":"IF(SUM(PAPI20_22_23[[#This Row],[Recurso financeiro estimado no ano\n(R$) - Cobrança Estadual]:[Recurso financeiro estimado no ano (R$) - Outras]]) >0,SUM(PAPI20_22_23[[#This Row],[Recurso financeiro estimado no ano\n(R$) - Cobrança Estadual]:[Recurso financeiro estimado no ano (R$) - Outras]]),\"\")","v":""}]
[null,null,null,null,null,null,null,null,null,null,null,null,null,null,null,null,null,null,null,null,{"$f":"IF(SUM(PAPI20_22_23[[#This Row],[Recurso financeiro estimado no ano\n(R$) - Cobrança Estadual]:[Recurso financeiro estimado no ano (R$) - Outras]]) >0,SUM(PAPI20_22_23[[#This Row],[Recurso financeiro estimado no ano\n(R$) - Cobrança Estadual]:[Recurso financeiro estimado no ano (R$) - Outras]]),\"\")","v":""}]
[null,null,null,null,null,null,null,null,null,null,null,null,null,null,null,null,null,null,null,null,{"$f":"IF(SUM(PAPI20_22_23[[#This Row],[Recurso financeiro estimado no ano\n(R$) - Cobrança Estadual]:[Recurso financeiro estimado no ano (R$) - Outras]]) >0,SUM(PAPI20_22_23[[#This Row],[Recurso financeiro estimado no ano\n(R$) - Cobrança Estadual]:[Recurso financeiro estimado no ano (R$) - Outras]]),\"\")","v":""}]
[null,null,null,null,null,null,null,null,null,null,null,null,null,null,null,null,null,null,null,null,{"$f":"IF(SUM(PAPI20_22_23[[#This Row],[Recurso financeiro estimado no ano\n(R$) - Cobrança Estadual]:[Recurso financeiro estimado no ano (R$) - Outras]]) >0,SUM(PAPI20_22_23[[#This Row],[Recurso financeiro estimado no ano\n(R$) - Cobrança Estadual]:[Recurso financeiro estimado no ano (R$) - Outras]]),\"\")","v":""}]
[null,null,null,null,null,null,null,null,null,null,null,null,null,null,null,null,null,null,null,null,{"$f":"IF(SUM(PAPI20_22_23[[#This Row],[Recurso financeiro estimado no ano\n(R$) - Cobrança Estadual]:[Recurso financeiro estimado no ano (R$) - Outras]]) >0,SUM(PAPI20_22_23[[#This Row],[Recurso financeiro estimado no ano\n(R$) - Cobrança Estadual]:[Recurso financeiro estimado no ano (R$) - Outras]]),\"\")","v":""}]
[null,null,null,null,null,null,null,null,null,null,null,null,null,null,null,null,null,null,null,null,{"$f":"IF(SUM(PAPI20_22_23[[#This Row],[Recurso financeiro estimado no ano\n(R$) - Cobrança Estadual]:[Recurso financeiro estimado no ano (R$) - Outras]]) >0,SUM(PAPI20_22_23[[#This Row],[Recurso financeiro estimado no ano\n(R$) - Cobrança Estadual]:[Recurso financeiro estimado no ano (R$) - Outras]]),\"\")","v":""}]
[null,null,null,null,null,null,null,null,null,null,null,null,null,null,null,null,null,null,null,null,{"$f":"IF(SUM(PAPI20_22_23[[#This Row],[Recurso financeiro estimado no ano\n(R$) - Cobrança Estadual]:[Recurso financeiro estimado no ano (R$) - Outras]]) >0,SUM(PAPI20_22_23[[#This Row],[Recurso financeiro estimado no ano\n(R$) - Cobrança Estadual]:[Recurso financeiro estimado no ano (R$) - Outras]]),\"\")","v":""}]
[null,null,null,null,null,null,null,null,null,null,null,null,null,null,null,null,null,null,null,null,{"$f":"IF(SUM(PAPI20_22_23[[#This Row],[Recurso financeiro estimado no ano\n(R$) - Cobrança Estadual]:[Recurso financeiro estimado no ano (R$) - Outras]]) >0,SUM(PAPI20_22_23[[#This Row],[Recurso financeiro estimado no ano\n(R$) - Cobrança Estadual]:[Recurso financeiro estimado no ano (R$) - Outras]]),\"\")","v":""}]
[null,null,null,null,null,null,null,null,null,null,null,null,null,null,null,null,null,null,null,null,{"$f":"IF(SUM(PAPI20_22_23[[#This Row],[Recurso financeiro estimado no ano\n(R$) - Cobrança Estadual]:[Recurso financeiro estimado no ano (R$) - Outras]]) >0,SUM(PAPI20_22_23[[#This Row],[Recurso financeiro estimado no ano\n(R$) - Cobrança Estadual]:[Recurso financeiro estimado no ano (R$) - Outras]]),\"\")","v":""}]
[null,null,null,null,null,null,null,null,null,null,null,null,null,null,null,null,null,null,null,null,{"$f":"IF(SUM(PAPI20_22_23[[#This Row],[Recurso financeiro estimado no ano\n(R$) - Cobrança Estadual]:[Recurso financeiro estimado no ano (R$) - Outras]]) >0,SUM(PAPI20_22_23[[#This Row],[Recurso financeiro estimado no ano\n(R$) - Cobrança Estadual]:[Recurso financeiro estimado no ano (R$) - Outras]]),\"\")","v":""}]

{"sheet":"Identificação das ações 24-27","index":1,"n_rows":8,"n_cols":13,"rows_kept":8,"cut":false,"hidden":false,"merged":[]}
["ID Ação","Descrição da ação","SubPDC","Prioridade do PDC","É (ou será)  empreendimento FEHIDRO?","Requer recursos financeiros?","Quantidade de fontes de recursos ","Segmento do executor","Área de abrangência","Detalhamento da área de abrangência","Início estimado da ação","Fim estimado","Observações"]
["ALPA_01_24","Atualização do PBH-ALPA (diagnóstico prognostico e cenarizações)","2.1 - Plano","PDC 1 e 2","Sim","Sim",1,"Estado e Sociedade Civil","Região Hidrográfica","UGRHI-14","2024-06-01","2024-12-31","Ações Previstas no PBH com Planejamento financeiro"]
["ALPA_02_24","Monitoramento hidrológico das microbacias","2.5 - Redes de monitoramento e SI","PDC 1 e 2","Sim","Sim",1,"Estado e Sociedade Civil","Sub-bacia","Subbacias da UGRHI-14","2024-06-01",{"$f":"L2","v":"2024-12-31"},"Ações Previstas no PBH com Planejamento financeiro"]
["ALPA_03_24","Investimento no sistema de esgotamento sanitário nos distritos operados pela SABESP.","3.1 - Efluentes","Não prioritário","Sim","Sim",1,"Município","Outra","Distritos Municipais","2024-06-01",{"$f":"L2","v":"2024-12-31"},"Ações Previstas no PBH com Planejamento financeiro"]
["ALPA_04_24","Execução de obras de drenagem urbana","4.1 - Controle erosão","Prioritário","Sim","Sim",1,"Município","Área urbana","Perímetro Urbano","2024-06-01",{"$f":"L2","v":"2024-12-31"},"Ações Previstas no PBH com Planejamento financeiro"]
["ALPA_05_24","Obras de controle à erosão nos municípios da UGRHI -14","4.1 - Controle erosão","Prioritário","Sim","Sim",1,"Município","Área urbana","Perímetro Urbano","2024-06-01",{"$f":"L2","v":"2024-12-31"},"Ações Previstas no PBH com Planejamento financeiro"]
["ALPA_06_24","Reduzir a ocorrência de alagamentos e inundações","7.1 - Drenagem","Prioritário","Sim","Sim",1,"Município","Área urbana","Perímetro Urbano","2024-06-01",{"$f":"L2","v":"2024-12-31"},"Ações Previstas no PBH com Planejamento financeiro"]
["ALPA_07_24","Executar obras de drenagem urbana nos 34 municípios da UGRHI-14, mencionados nos Planos de Macrodrenagem Urbana","7.1 - Drenagem","Prioritário","Sim","Sim",1,"Município","Área urbana","Perímetro Urbano","2024-06-01",{"$f":"L2","v":"2024-12-31"},"Ações Previstas no PBH com Planejamento financeiro"]

{"sheet":"Acompanhamento das metas 24-27","index":2,"n_rows":51,"n_cols":12,"rows_kept":51,"cut":false,"hidden":false,"merged":[]}
["ID","Descrição da ação","Meta do quadriênio","Meta 2024","% de execução física da meta (2024)","Meta 2025","% de execução física da meta (2025)","Meta 2026","% de execução física da meta (2026)","Meta 2027","% de execução física da meta (2027)","Observações"]
[{"$f":"IF(INDEX(IdentAcoes[],,1)=0,\"\",(INDEX(IdentAcoes[],,1)))","v":"ALPA_01_24"},{"$f":"IF(INDEX(IdentAcoes[],,4)=0,\"\",(INDEX(IdentAcoes[],,2)))","v":"Atualização do PBH-ALPA (diagnóstico prognostico e cenarizações)"},"Atualização do PBH-ALPA","Elaboração dos trâmites para executar o PBH",0,"Elaboração e Aprovação do PBH",0,"Revisões (Diagnóstico)",0,"Revisões Prognóstico",0]
["ALPA_02_24","Monitoramento hidrológico das microbacias","Implementar um sistema de monitoramento de disponibilidade hídrica em 5 sub-bacias visando a gestão de outorgas e demandas","Implementar um sistema de monitoramento de disponibilidade hídrica em 1 sub-bacia visando a gestão de outorgas e demandas",0,"Implementar um sistema de monitoramento de disponibilidade hídrica em 1 sub-bacia visando a gestão de outorgas e demandas",0,"Implementar um sistema de monitoramento de disponibilidade hídrica em 1 sub-bacia visando a gestão de outorgas e demandas",0,"Implementar um sistema de monitoramento de disponibilidade hídrica em 1 sub-bacia visando a gestão de outorgas e demandas",0]
["ALPA_03_24","Investimento no sistema de esgotamento sanitário nos distritos operados pela SABESP.","Melhoria de sistema de  esgotamento sanitário em municípios com distritos não operacionalizados pela SABESP","Melhoria de sistema de  esgotamento sanitário em 1 município com distritos não operacionalizados pela SABESP",0,"Melhoria de sistema de  esgotamento sanitário em 1 município com distritos não operacionalizados pela SABESP",0,"Melhoria de sistema de  esgotamento sanitário em 1 município com distritos não operacionalizados pela SABESP",0,"Melhoria de sistema de  esgotamento sanitário em 1 município com distritos não operacionalizados pela SABESP",0]
["ALPA_04_24","Execução de obras de drenagem urbana","Implementação de sistema de drenagem urbana municípios da UGRHi-14","Implementação de sistema de drenagem urbana em ao menos 01 município",0,"Implementação de sistema de drenagem urbana em ao menos 01 município",0,"Implementação de sistema de drenagem urbana em ao menos 01 município",0,"Implementação de sistema de drenagem urbana em ao menos 01 município",0]
["ALPA_05_24","Obras de controle à erosão nos municípios da UGRHI -14","Implementação de sistema de drenagem urbana municípios da UGRHi-14","Implementação de sistema de drenagem urbana em ao menos 01 município",0,"Implementação de sistema de drenagem urbana em ao menos 01 município",0,"Implementação de sistema de drenagem urbana em ao menos 01 município",0,"Implementação de sistema de drenagem urbana em ao menos 01 município",0]
["ALPA_06_24","Reduzir a ocorrência de alagamentos e inundações","Implementação de sistema de prevenção e defesa contra inundações nos municípios da UGRHi-14.","Implementação de sistema de prevenção e defesa contra inundações em ao menos 01 município.",0,"Implementação de sistema de prevenção e defesa contra inundações em ao menos 01 município.",0,"Implementação de sistema de prevenção e defesa contra inundações em ao menos 01 município.",0,"Implementação de sistema de prevenção e defesa contra inundações em ao menos 01 município.",0]
["ALPA_07_24","Executar obras de drenagem urbana nos 34 municípios da UGRHI-14, mencionados nos Planos de Macrodrenagem Urbana","Implementação de sistema de prevenção e defesa contra inundações nos municípios da UGRHi-14.","Implementação de sistema de prevenção e defesa contra inundações em ao menos 01 município.",0,"Implementação de sistema de prevenção e defesa contra inundações em ao menos 01 município.",0,"Implementação de sistema de prevenção e defesa contra inundações em ao menos 01 município.",0,"Implementação de sistema de prevenção e defesa contra inundações em ao menos 01 município.",0]
["",""]
["",""]
["",""]
["",""]
["",""]
["",""]
["",""]
["",""]
["",""]
["",""]
["",""]
["",""]
["",""]
["",""]
["",""]
["",""]
["",""]
["",""]
["",""]
["",""]
["",""]
["",""]
["",""]
["",""]
["",""]
["",""]
["",""]
["",""]
["",""]
["",""]
["",""]
["",""]
["",""]
["",""]
["",""]
["",""]
["",""]
["",""]
["",""]
["",""]
["",""]
["",""]
["",""]

{"sheet":"Acomp. financeiro  24-27","index":3,"n_rows":50,"n_cols":17,"rows_kept":50,"cut":false,"hidden":false,"merged":[]}
["id_ação_Fonte_oculta","ID Ação","Descrição da ação","Fonte","R$  Planejado (2024)","R$  Disponibilizado (2024)","R$  Executado (2024)","R$  Planejado (2025)","R$  Disponibilizado (2025)","R$  Executado (2025)","R$  Planejado (2026)","R$  Disponibilizado (2026)","R$  Executado (2026)","R$  Planejado (2027)","R$  Disponibilizado (2027)","R$  Executado (2027)","Observações sobre execução financeira da meta"]
[{"$f":"Financeiro[[#This Row],[ID Ação]]&Financeiro[[#This Row],[Fonte]]","v":"ALPA_01_24FEHIDRO - CFURH"},{"$f":"IFERROR(INDEX(IdentAcoes[ID Ação],MATCH(0,INDEX(--(COUNTIF(B$1:B1,IdentAcoes[ID Ação])=IdentAcoes[[Quantidade de fontes de recursos ]]),0),0)),\"\")","v":"ALPA_01_24"},{"$f":"IFERROR(INDEX(IdentAcoes[Descrição da ação],MATCH(0,INDEX(--(COUNTIF(C$1:C1,IdentAcoes[Descrição da ação])=IdentAcoes[[Quantidade de fontes de recursos ]]),0),0)),\"\")","v":"Atualização do PBH-ALPA (diagnóstico prognostico e cenarizações)"},"FEHIDRO - CFURH",581866.18000000005,{"$f":"Financeiro[[#This Row],[R$  Planejado (2024)]]","v":581866.18000000005},0,612631.41812499997,0,0,612631.41812499997,0,0,612631.41812499997,0,0]
[{"$f":"Financeiro[[#This Row],[ID Ação]]&Financeiro[[#This Row],[Fonte]]","v":"ALPA_02_24FEHIDRO - Cobrança estadual"},{"$f":"IFERROR(INDEX(IdentAcoes[ID Ação],MATCH(0,INDEX(--(COUNTIF(B$1:B2,IdentAcoes[ID Ação])=IdentAcoes[[Quantidade de fontes de recursos ]]),0),0)),\"\")","v":"ALPA_02_24"},{"$f":"IFERROR(INDEX(IdentAcoes[Descrição da ação],MATCH(0,INDEX(--(COUNTIF(C$1:C2,IdentAcoes[Descrição da ação])=IdentAcoes[[Quantidade de fontes de recursos ]]),0),0)),\"\")","v":"Monitoramento hidrológico das microbacias"},"FEHIDRO - Cobrança estadual",539844.07999999996,{"$f":"Financeiro[[#This Row],[R$  Planejado (2024)]]","v":539844.07999999996},0,612631.41812499997,0,0,612631.41812499997,0,0,612631.41812499997,0,0]
[{"$f":"Financeiro[[#This Row],[ID Ação]]&Financeiro[[#This Row],[Fonte]]","v":"ALPA_03_24FEHIDRO - Cobrança estadual"},{"$f":"IFERROR(INDEX(IdentAcoes[ID Ação],MATCH(0,INDEX(--(COUNTIF(B$1:B3,IdentAcoes[ID Ação])=IdentAcoes[[Quantidade de fontes de recursos ]]),0),0)),\"\")","v":"ALPA_03_24"},{"$f":"IFERROR(INDEX(IdentAcoes[Descrição da ação],MATCH(0,INDEX(--(COUNTIF(C$1:C3,IdentAcoes[Descrição da ação])=IdentAcoes[[Quantidade de fontes de recursos ]]),0),0)),\"\")","v":"Investimento no sistema de esgotamento sanitário nos distritos operados pela SABESP."},"FEHIDRO - Cobrança estadual",647812.9,{"$f":"Financeiro[[#This Row],[R$  Planejado (2024)]]","v":647812.9},0,735157.70175000001,0,0,735157.70175000001,0,0,735157.70175000001,0,0]
[{"$f":"Financeiro[[#This Row],[ID Ação]]&Financeiro[[#This Row],[Fonte]]","v":"ALPA_04_24FEHIDRO - Cobrança estadual"},{"$f":"IFERROR(INDEX(IdentAcoes[ID Ação],MATCH(0,INDEX(--(COUNTIF(B$1:B4,IdentAcoes[ID Ação])=IdentAcoes[[Quantidade de fontes de recursos ]]),0),0)),\"\")","v":"ALPA_04_24"},{"$f":"IFERROR(INDEX(IdentAcoes[Descrição da ação],MATCH(0,INDEX(--(COUNTIF(C$1:C4,IdentAcoes[Descrição da ação])=IdentAcoes[[Quantidade de fontes de recursos ]]),0),0)),\"\")","v":"Execução de obras de drenagem urbana"},"FEHIDRO - Cobrança estadual",269922.03999999998,{"$f":"Financeiro[[#This Row],[R$  Planejado (2024)]]","v":269922.03999999998},0,490105.13449999999,0,0,490105.13449999999,0,0,490105.13449999999,0,0]
[{"$f":"Financeiro[[#This Row],[ID Ação]]&Financeiro[[#This Row],[Fonte]]","v":"ALPA_05_24FEHIDRO - Cobrança estadual"},{"$f":"IFERROR(INDEX(IdentAcoes[ID Ação],MATCH(0,INDEX(--(COUNTIF(B$1:B5,IdentAcoes[ID Ação])=IdentAcoes[[Quantidade de fontes de recursos ]]),0),0)),\"\")","v":"ALPA_05_24"},{"$f":"IFERROR(INDEX(IdentAcoes[Descrição da ação],MATCH(0,INDEX(--(COUNTIF(C$1:C5,IdentAcoes[Descrição da ação])=IdentAcoes[[Quantidade de fontes de recursos ]]),0),0)),\"\")","v":"Obras de controle à erosão nos municípios da UGRHI -14"},"FEHIDRO - Cobrança estadual",269922.03999999998,{"$f":"Financeiro[[#This Row],[R$  Planejado (2024)]]","v":269922.03999999998},0,490105.13449999999,0,0,490105.13449999999,0,0,490105.13449999999,0,0]
[{"$f":"Financeiro[[#This Row],[ID Ação]]&Financeiro[[#This Row],[Fonte]]","v":"ALPA_06_24FEHIDRO - Cobrança estadual"},{"$f":"IFERROR(INDEX(IdentAcoes[ID Ação],MATCH(0,INDEX(--(COUNTIF(B$1:B6,IdentAcoes[ID Ação])=IdentAcoes[[Quantidade de fontes de recursos ]]),0),0)),\"\")","v":"ALPA_06_24"},{"$f":"IFERROR(INDEX(IdentAcoes[Descrição da ação],MATCH(0,INDEX(--(COUNTIF(C$1:C6,IdentAcoes[Descrição da ação])=IdentAcoes[[Quantidade de fontes de recursos ]]),0),0)),\"\")","v":"Reduzir a ocorrência de alagamentos e inundações"},"FEHIDRO - Cobrança estadual",1295625.8,{"$f":"2591251.6/2","v":1295625.8},0,490105.13449999999,0,0,490105.13449999999,0,0,490105.13449999999,0,0]
[{"$f":"Financeiro[[#This Row],[ID Ação]]&Financeiro[[#This Row],[Fonte]]","v":"ALPA_07_24FEHIDRO - Cobrança estadual"},{"$f":"IFERROR(INDEX(IdentAcoes[ID Ação],MATCH(0,INDEX(--(COUNTIF(B$1:B7,IdentAcoes[ID Ação])=IdentAcoes[[Quantidade de fontes de recursos ]]),0),0)),\"\")","v":"ALPA_07_24"},{"$f":"IFERROR(INDEX(IdentAcoes[Descrição da ação],MATCH(0,INDEX(--(COUNTIF(C$1:C7,IdentAcoes[Descrição da ação])=IdentAcoes[[Quantidade de fontes de recursos ]]),0),0)),\"\")","v":"Executar obras de drenagem urbana nos 34 municípios da UGRHI-14, mencionados nos Planos de Macrodrenagem Urbana"},"FEHIDRO - Cobrança estadual",1295625.8,{"$f":"F7","v":1295625.8},0,1470315.4035,0,0,1470315.4035,0,0,1470315.4035,0,0]
[{"$f":"Financeiro[[#This Row],[ID Ação]]&Financeiro[[#This Row],[Fonte]]","v":""},{"$f":"IFERROR(INDEX(IdentAcoes[ID Ação],MATCH(0,INDEX(--(COUNTIF(B$1:B8,IdentAcoes[ID Ação])=IdentAcoes[[Quantidade de fontes de recursos ]]),0),0)),\"\")","v":""},{"$f":"IFERROR(INDEX(IdentAcoes[Descrição da ação],MATCH(0,INDEX(--(COUNTIF(C$1:C8,IdentAcoes[Descrição da ação])=IdentAcoes[[Quantidade de fontes de recursos ]]),0),0)),\"\")","v":""},null,"obs: os valores somam as fontes CFURH e COB"]
[{"$f":"Financeiro[[#This Row],[ID Ação]]&Financeiro[[#This Row],[Fonte]]","v":""},{"$f":"IFERROR(INDEX(IdentAcoes[ID Ação],MATCH(0,INDEX(--(COUNTIF(B$1:B9,IdentAcoes[ID Ação])=IdentAcoes[[Quantidade de fontes de recursos ]]),0),0)),\"\")","v":""},{"$f":"IFERROR(INDEX(IdentAcoes[Descrição da ação],MATCH(0,INDEX(--(COUNTIF(C$1:C9,IdentAcoes[Descrição da ação])=IdentAcoes[[Quantidade de fontes de recursos ]]),0),0)),\"\")","v":""},null,"Para valores da CFURh foi utilizado o montante publicado na deliberação COFEHIDRO 256/2023 ANEXO II - DISTRIBUIÇÃO DE RECURSOS DE INVESTIMENTO AOS COLEGIADOS"]
[{"$f":"Financeiro[[#This Row],[ID Ação]]&Financeiro[[#This Row],[Fonte]]","v":""},{"$f":"IFERROR(INDEX(IdentAcoes[ID Ação],MATCH(0,INDEX(--(COUNTIF(B$1:B10,IdentAcoes[ID Ação])=IdentAcoes[[Quantidade de fontes de recursos ]]),0),0)),\"\")","v":""},{"$f":"IFERROR(INDEX(IdentAcoes[Descrição da ação],MATCH(0,INDEX(--(COUNTIF(C$1:C10,IdentAcoes[Descrição da ação])=IdentAcoes[[Quantidade de fontes de recursos ]]),0),0)),\"\")","v":""},null,"Para a COLUNA F foram utilizados apenas os valores referente à Cobrança conforme Plano de Aplicação da Cobrança 2024"]
[{"$f":"Financeiro[[#This Row],[ID Ação]]&Financeiro[[#This Row],[Fonte]]","v":""},{"$f":"IFERROR(INDEX(IdentAcoes[ID Ação],MATCH(0,INDEX(--(COUNTIF(B$1:B11,IdentAcoes[ID Ação])=IdentAcoes[[Quantidade de fontes de recursos ]]),0),0)),\"\")","v":""},{"$f":"IFERROR(INDEX(IdentAcoes[Descrição da ação],MATCH(0,INDEX(--(COUNTIF(C$1:C11,IdentAcoes[Descrição da ação])=IdentAcoes[[Quantidade de fontes de recursos ]]),0),0)),\"\")","v":""}]
[{"$f":"Financeiro[[#This Row],[ID Ação]]&Financeiro[[#This Row],[Fonte]]","v":""},{"$f":"IFERROR(INDEX(IdentAcoes[ID Ação],MATCH(0,INDEX(--(COUNTIF(B$1:B12,IdentAcoes[ID Ação])=IdentAcoes[[Quantidade de fontes de recursos ]]),0),0)),\"\")","v":""},{"$f":"IFERROR(INDEX(IdentAcoes[Descrição da ação],MATCH(0,INDEX(--(COUNTIF(C$1:C12,IdentAcoes[Descrição da ação])=IdentAcoes[[Quantidade de fontes de recursos ]]),0),0)),\"\")","v":""}]
[{"$f":"Financeiro[[#This Row],[ID Ação]]&Financeiro[[#This Row],[Fonte]]","v":""},{"$f":"IFERROR(INDEX(IdentAcoes[ID Ação],MATCH(0,INDEX(--(COUNTIF(B$1:B13,IdentAcoes[ID Ação])=IdentAcoes[[Quantidade de fontes de recursos ]]),0),0)),\"\")","v":""},{"$f":"IFERROR(INDEX(IdentAcoes[Descrição da ação],MATCH(0,INDEX(--(COUNTIF(C$1:C13,IdentAcoes[Descrição da ação])=IdentAcoes[[Quantidade de fontes de recursos ]]),0),0)),\"\")","v":""}]
[{"$f":"Financeiro[[#This Row],[ID Ação]]&Financeiro[[#This Row],[Fonte]]","v":""},{"$f":"IFERROR(INDEX(IdentAcoes[ID Ação],MATCH(0,INDEX(--(COUNTIF(B$1:B14,IdentAcoes[ID Ação])=IdentAcoes[[Quantidade de fontes de recursos ]]),0),0)),\"\")","v":""},{"$f":"IFERROR(INDEX(IdentAcoes[Descrição da ação],MATCH(0,INDEX(--(COUNTIF(C$1:C14,IdentAcoes[Descrição da ação])=IdentAcoes[[Quantidade de fontes de recursos ]]),0),0)),\"\")","v":""}]
[{"$f":"Financeiro[[#This Row],[ID Ação]]&Financeiro[[#This Row],[Fonte]]","v":""},{"$f":"IFERROR(INDEX(IdentAcoes[ID Ação],MATCH(0,INDEX(--(COUNTIF(B$1:B15,IdentAcoes[ID Ação])=IdentAcoes[[Quantidade de fontes de recursos ]]),0),0)),\"\")","v":""},{"$f":"IFERROR(INDEX(IdentAcoes[Descrição da ação],MATCH(0,INDEX(--(COUNTIF(C$1:C15,IdentAcoes[Descrição da ação])=IdentAcoes[[Quantidade de fontes de recursos ]]),0),0)),\"\")","v":""}]
[{"$f":"Financeiro[[#This Row],[ID Ação]]&Financeiro[[#This Row],[Fonte]]","v":""},{"$f":"IFERROR(INDEX(IdentAcoes[ID Ação],MATCH(0,INDEX(--(COUNTIF(B$1:B16,IdentAcoes[ID Ação])=IdentAcoes[[Quantidade de fontes de recursos ]]),0),0)),\"\")","v":""},{"$f":"IFERROR(INDEX(IdentAcoes[Descrição da ação],MATCH(0,INDEX(--(COUNTIF(C$1:C16,IdentAcoes[Descrição da ação])=IdentAcoes[[Quantidade de fontes de recursos ]]),0),0)),\"\")","v":""}]
[{"$f":"Financeiro[[#This Row],[ID Ação]]&Financeiro[[#This Row],[Fonte]]","v":""},{"$f":"IFERROR(INDEX(IdentAcoes[ID Ação],MATCH(0,INDEX(--(COUNTIF(B$1:B17,IdentAcoes[ID Ação])=IdentAcoes[[Quantidade de fontes de recursos ]]),0),0)),\"\")","v":""},{"$f":"IFERROR(INDEX(IdentAcoes[Descrição da ação],MATCH(0,INDEX(--(COUNTIF(C$1:C17,IdentAcoes[Descrição da ação])=IdentAcoes[[Quantidade de fontes de recursos ]]),0),0)),\"\")","v":""}]
[{"$f":"Financeiro[[#This Row],[ID Ação]]&Financeiro[[#This Row],[Fonte]]","v":""},{"$f":"IFERROR(INDEX(IdentAcoes[ID Ação],MATCH(0,INDEX(--(COUNTIF(B$1:B18,IdentAcoes[ID Ação])=IdentAcoes[[Quantidade de fontes de recursos ]]),0),0)),\"\")","v":""},{"$f":"IFERROR(INDEX(IdentAcoes[Descrição da ação],MATCH(0,INDEX(--(COUNTIF(C$1:C18,IdentAcoes[Descrição da ação])=IdentAcoes[[Quantidade de fontes de recursos ]]),0),0)),\"\")","v":""}]
[{"$f":"Financeiro[[#This Row],[ID Ação]]&Financeiro[[#This Row],[Fonte]]","v":""},{"$f":"IFERROR(INDEX(IdentAcoes[ID Ação],MATCH(0,INDEX(--(COUNTIF(B$1:B19,IdentAcoes[ID Ação])=IdentAcoes[[Quantidade de fontes de recursos ]]),0),0)),\"\")","v":""},{"$f":"IFERROR(INDEX(IdentAcoes[Descrição da ação],MATCH(0,INDEX(--(COUNTIF(C$1:C19,IdentAcoes[Descrição da ação])=IdentAcoes[[Quantidade de fontes de recursos ]]),0),0)),\"\")","v":""}]
[{"$f":"Financeiro[[#This Row],[ID Ação]]&Financeiro[[#This Row],[Fonte]]","v":""},{"$f":"IFERROR(INDEX(IdentAcoes[ID Ação],MATCH(0,INDEX(--(COUNTIF(B$1:B20,IdentAcoes[ID Ação])=IdentAcoes[[Quantidade de fontes de recursos ]]),0),0)),\"\")","v":""},{"$f":"IFERROR(INDEX(IdentAcoes[Descrição da ação],MATCH(0,INDEX(--(COUNTIF(C$1:C20,IdentAcoes[Descrição da ação])=IdentAcoes[[Quantidade de fontes de recursos ]]),0),0)),\"\")","v":""}]
[{"$f":"Financeiro[[#This Row],[ID Ação]]&Financeiro[[#This Row],[Fonte]]","v":""},{"$f":"IFERROR(INDEX(IdentAcoes[ID Ação],MATCH(0,INDEX(--(COUNTIF(B$1:B21,IdentAcoes[ID Ação])=IdentAcoes[[Quantidade de fontes de recursos ]]),0),0)),\"\")","v":""},{"$f":"IFERROR(INDEX(IdentAcoes[Descrição da ação],MATCH(0,INDEX(--(COUNTIF(C$1:C21,IdentAcoes[Descrição da ação])=IdentAcoes[[Quantidade de fontes de recursos ]]),0),0)),\"\")","v":""}]
[{"$f":"Financeiro[[#This Row],[ID Ação]]&Financeiro[[#This Row],[Fonte]]","v":""},{"$f":"IFERROR(INDEX(IdentAcoes[ID Ação],MATCH(0,INDEX(--(COUNTIF(B$1:B22,IdentAcoes[ID Ação])=IdentAcoes[[Quantidade de fontes de recursos ]]),0),0)),\"\")","v":""},{"$f":"IFERROR(INDEX(IdentAcoes[Descrição da ação],MATCH(0,INDEX(--(COUNTIF(C$1:C22,IdentAcoes[Descrição da ação])=IdentAcoes[[Quantidade de fontes de recursos ]]),0),0)),\"\")","v":""}]
[{"$f":"Financeiro[[#This Row],[ID Ação]]&Financeiro[[#This Row],[Fonte]]","v":""},{"$f":"IFERROR(INDEX(IdentAcoes[ID Ação],MATCH(0,INDEX(--(COUNTIF(B$1:B23,IdentAcoes[ID Ação])=IdentAcoes[[Quantidade de fontes de recursos ]]),0),0)),\"\")","v":""},{"$f":"IFERROR(INDEX(IdentAcoes[Descrição da ação],MATCH(0,INDEX(--(COUNTIF(C$1:C23,IdentAcoes[Descrição da ação])=IdentAcoes[[Quantidade de fontes de recursos ]]),0),0)),\"\")","v":""}]
[{"$f":"Financeiro[[#This Row],[ID Ação]]&Financeiro[[#This Row],[Fonte]]","v":""},{"$f":"IFERROR(INDEX(IdentAcoes[ID Ação],MATCH(0,INDEX(--(COUNTIF(B$1:B24,IdentAcoes[ID Ação])=IdentAcoes[[Quantidade de fontes de recursos ]]),0),0)),\"\")","v":""},{"$f":"IFERROR(INDEX(IdentAcoes[Descrição da ação],MATCH(0,INDEX(--(COUNTIF(C$1:C24,IdentAcoes[Descrição da ação])=IdentAcoes[[Quantidade de fontes de recursos ]]),0),0)),\"\")","v":""}]
[{"$f":"Financeiro[[#This Row],[ID Ação]]&Financeiro[[#This Row],[Fonte]]","v":""},{"$f":"IFERROR(INDEX(IdentAcoes[ID Ação],MATCH(0,INDEX(--(COUNTIF(B$1:B25,IdentAcoes[ID Ação])=IdentAcoes[[Quantidade de fontes de recursos ]]),0),0)),\"\")","v":""},{"$f":"IFERROR(INDEX(IdentAcoes[Descrição da ação],MATCH(0,INDEX(--(COUNTIF(C$1:C25,IdentAcoes[Descrição da ação])=IdentAcoes[[Quantidade de fontes de recursos ]]),0),0)),\"\")","v":""}]
[{"$f":"Financeiro[[#This Row],[ID Ação]]&Financeiro[[#This Row],[Fonte]]","v":""},{"$f":"IFERROR(INDEX(IdentAcoes[ID Ação],MATCH(0,INDEX(--(COUNTIF(B$1:B26,IdentAcoes[ID Ação])=IdentAcoes[[Quantidade de fontes de recursos ]]),0),0)),\"\")","v":""},{"$f":"IFERROR(INDEX(IdentAcoes[Descrição da ação],MATCH(0,INDEX(--(COUNTIF(C$1:C26,IdentAcoes[Descrição da ação])=IdentAcoes[[Quantidade de fontes de recursos ]]),0),0)),\"\")","v":""}]
[{"$f":"Financeiro[[#This Row],[ID Ação]]&Financeiro[[#This Row],[Fonte]]","v":""},{"$f":"IFERROR(INDEX(IdentAcoes[ID Ação],MATCH(0,INDEX(--(COUNTIF(B$1:B27,IdentAcoes[ID Ação])=IdentAcoes[[Quantidade de fontes de recursos ]]),0),0)),\"\")","v":""},{"$f":"IFERROR(INDEX(IdentAcoes[Descrição da ação],MATCH(0,INDEX(--(COUNTIF(C$1:C27,IdentAcoes[Descrição da ação])=IdentAcoes[[Quantidade de fontes de recursos ]]),0),0)),\"\")","v":""}]
[{"$f":"Financeiro[[#This Row],[ID Ação]]&Financeiro[[#This Row],[Fonte]]","v":""},{"$f":"IFERROR(INDEX(IdentAcoes[ID Ação],MATCH(0,INDEX(--(COUNTIF(B$1:B28,IdentAcoes[ID Ação])=IdentAcoes[[Quantidade de fontes de recursos ]]),0),0)),\"\")","v":""},{"$f":"IFERROR(INDEX(IdentAcoes[Descrição da ação],MATCH(0,INDEX(--(COUNTIF(C$1:C28,IdentAcoes[Descrição da ação])=IdentAcoes[[Quantidade de fontes de recursos ]]),0),0)),\"\")","v":""}]
[{"$f":"Financeiro[[#This Row],[ID Ação]]&Financeiro[[#This Row],[Fonte]]","v":""},{"$f":"IFERROR(INDEX(IdentAcoes[ID Ação],MATCH(0,INDEX(--(COUNTIF(B$1:B29,IdentAcoes[ID Ação])=IdentAcoes[[Quantidade de fontes de recursos ]]),0),0)),\"\")","v":""},{"$f":"IFERROR(INDEX(IdentAcoes[Descrição da ação],MATCH(0,INDEX(--(COUNTIF(C$1:C29,IdentAcoes[Descrição da ação])=IdentAcoes[[Quantidade de fontes de recursos ]]),0),0)),\"\")","v":""}]
[{"$f":"Financeiro[[#This Row],[ID Ação]]&Financeiro[[#This Row],[Fonte]]","v":""},{"$f":"IFERROR(INDEX(IdentAcoes[ID Ação],MATCH(0,INDEX(--(COUNTIF(B$1:B30,IdentAcoes[ID Ação])=IdentAcoes[[Quantidade de fontes de recursos ]]),0),0)),\"\")","v":""},{"$f":"IFERROR(INDEX(IdentAcoes[Descrição da ação],MATCH(0,INDEX(--(COUNTIF(C$1:C30,IdentAcoes[Descrição da ação])=IdentAcoes[[Quantidade de fontes de recursos ]]),0),0)),\"\")","v":""}]
[{"$f":"Financeiro[[#This Row],[ID Ação]]&Financeiro[[#This Row],[Fonte]]","v":""},{"$f":"IFERROR(INDEX(IdentAcoes[ID Ação],MATCH(0,INDEX(--(COUNTIF(B$1:B31,IdentAcoes[ID Ação])=IdentAcoes[[Quantidade de fontes de recursos ]]),0),0)),\"\")","v":""},{"$f":"IFERROR(INDEX(IdentAcoes[Descrição da ação],MATCH(0,INDEX(--(COUNTIF(C$1:C31,IdentAcoes[Descrição da ação])=IdentAcoes[[Quantidade de fontes de recursos ]]),0),0)),\"\")","v":""}]
[{"$f":"Financeiro[[#This Row],[ID Ação]]&Financeiro[[#This Row],[Fonte]]","v":""},{"$f":"IFERROR(INDEX(IdentAcoes[ID Ação],MATCH(0,INDEX(--(COUNTIF(B$1:B32,IdentAcoes[ID Ação])=IdentAcoes[[Quantidade de fontes de recursos ]]),0),0)),\"\")","v":""},{"$f":"IFERROR(INDEX(IdentAcoes[Descrição da ação],MATCH(0,INDEX(--(COUNTIF(C$1:C32,IdentAcoes[Descrição da ação])=IdentAcoes[[Quantidade de fontes de recursos ]]),0),0)),\"\")","v":""}]
[{"$f":"Financeiro[[#This Row],[ID Ação]]&Financeiro[[#This Row],[Fonte]]","v":""},{"$f":"IFERROR(INDEX(IdentAcoes[ID Ação],MATCH(0,INDEX(--(COUNTIF(B$1:B33,IdentAcoes[ID Ação])=IdentAcoes[[Quantidade de fontes de recursos ]]),0),0)),\"\")","v":""},{"$f":"IFERROR(INDEX(IdentAcoes[Descrição da ação],MATCH(0,INDEX(--(COUNTIF(C$1:C33,IdentAcoes[Descrição da ação])=IdentAcoes[[Quantidade de fontes de recursos ]]),0),0)),\"\")","v":""}]
[{"$f":"Financeiro[[#This Row],[ID Ação]]&Financeiro[[#This Row],[Fonte]]","v":""},{"$f":"IFERROR(INDEX(IdentAcoes[ID Ação],MATCH(0,INDEX(--(COUNTIF(B$1:B34,IdentAcoes[ID Ação])=IdentAcoes[[Quantidade de fontes de recursos ]]),0),0)),\"\")","v":""},{"$f":"IFERROR(INDEX(IdentAcoes[Descrição da ação],MATCH(0,INDEX(--(COUNTIF(C$1:C34,IdentAcoes[Descrição da ação])=IdentAcoes[[Quantidade de fontes de recursos ]]),0),0)),\"\")","v":""}]
[{"$f":"Financeiro[[#This Row],[ID Ação]]&Financeiro[[#This Row],[Fonte]]","v":""},{"$f":"IFERROR(INDEX(IdentAcoes[ID Ação],MATCH(0,INDEX(--(COUNTIF(B$1:B35,IdentAcoes[ID Ação])=IdentAcoes[[Quantidade de fontes de recursos ]]),0),0)),\"\")","v":""},{"$f":"IFERROR(INDEX(IdentAcoes[Descrição da ação],MATCH(0,INDEX(--(COUNTIF(C$1:C35,IdentAcoes[Descrição da ação])=IdentAcoes[[Quantidade de fontes de recursos ]]),0),0)),\"\")","v":""}]
[{"$f":"Financeiro[[#This Row],[ID Ação]]&Financeiro[[#This Row],[Fonte]]","v":""},{"$f":"IFERROR(INDEX(IdentAcoes[ID Ação],MATCH(0,INDEX(--(COUNTIF(B$1:B36,IdentAcoes[ID Ação])=IdentAcoes[[Quantidade de fontes de recursos ]]),0),0)),\"\")","v":""},{"$f":"IFERROR(INDEX(IdentAcoes[Descrição da ação],MATCH(0,INDEX(--(COUNTIF(C$1:C36,IdentAcoes[Descrição da ação])=IdentAcoes[[Quantidade de fontes de recursos ]]),0),0)),\"\")","v":""}]
[{"$f":"Financeiro[[#This Row],[ID Ação]]&Financeiro[[#This Row],[Fonte]]","v":""},{"$f":"IFERROR(INDEX(IdentAcoes[ID Ação],MATCH(0,INDEX(--(COUNTIF(B$1:B37,IdentAcoes[ID Ação])=IdentAcoes[[Quantidade de fontes de recursos ]]),0),0)),\"\")","v":""},{"$f":"IFERROR(INDEX(IdentAcoes[Descrição da ação],MATCH(0,INDEX(--(COUNTIF(C$1:C37,IdentAcoes[Descrição da ação])=IdentAcoes[[Quantidade de fontes de recursos ]]),0),0)),\"\")","v":""}]
[{"$f":"Financeiro[[#This Row],[ID Ação]]&Financeiro[[#This Row],[Fonte]]","v":""},{"$f":"IFERROR(INDEX(IdentAcoes[ID Ação],MATCH(0,INDEX(--(COUNTIF(B$1:B38,IdentAcoes[ID Ação])=IdentAcoes[[Quantidade de fontes de recursos ]]),0),0)),\"\")","v":""},{"$f":"IFERROR(INDEX(IdentAcoes[Descrição da ação],MATCH(0,INDEX(--(COUNTIF(C$1:C38,IdentAcoes[Descrição da ação])=IdentAcoes[[Quantidade de fontes de recursos ]]),0),0)),\"\")","v":""}]
[{"$f":"Financeiro[[#This Row],[ID Ação]]&Financeiro[[#This Row],[Fonte]]","v":""},{"$f":"IFERROR(INDEX(IdentAcoes[ID Ação],MATCH(0,INDEX(--(COUNTIF(B$1:B39,IdentAcoes[ID Ação])=IdentAcoes[[Quantidade de fontes de recursos ]]),0),0)),\"\")","v":""},{"$f":"IFERROR(INDEX(IdentAcoes[Descrição da ação],MATCH(0,INDEX(--(COUNTIF(C$1:C39,IdentAcoes[Descrição da ação])=IdentAcoes[[Quantidade de fontes de recursos ]]),0),0)),\"\")","v":""}]
[{"$f":"Financeiro[[#This Row],[ID Ação]]&Financeiro[[#This Row],[Fonte]]","v":""},{"$f":"IFERROR(INDEX(IdentAcoes[ID Ação],MATCH(0,INDEX(--(COUNTIF(B$1:B40,IdentAcoes[ID Ação])=IdentAcoes[[Quantidade de fontes de recursos ]]),0),0)),\"\")","v":""},{"$f":"IFERROR(INDEX(IdentAcoes[Descrição da ação],MATCH(0,INDEX(--(COUNTIF(C$1:C40,IdentAcoes[Descrição da ação])=IdentAcoes[[Quantidade de fontes de recursos ]]),0),0)),\"\")","v":""}]
[{"$f":"Financeiro[[#This Row],[ID Ação]]&Financeiro[[#This Row],[Fonte]]","v":""},{"$f":"IFERROR(INDEX(IdentAcoes[ID Ação],MATCH(0,INDEX(--(COUNTIF(B$1:B41,IdentAcoes[ID Ação])=IdentAcoes[[Quantidade de fontes de recursos ]]),0),0)),\"\")","v":""},{"$f":"IFERROR(INDEX(IdentAcoes[Descrição da ação],MATCH(0,INDEX(--(COUNTIF(C$1:C41,IdentAcoes[Descrição da ação])=IdentAcoes[[Quantidade de fontes de recursos ]]),0),0)),\"\")","v":""}]
[{"$f":"Financeiro[[#This Row],[ID Ação]]&Financeiro[[#This Row],[Fonte]]","v":""},{"$f":"IFERROR(INDEX(IdentAcoes[ID Ação],MATCH(0,INDEX(--(COUNTIF(B$1:B42,IdentAcoes[ID Ação])=IdentAcoes[[Quantidade de fontes de recursos ]]),0),0)),\"\")","v":""},{"$f":"IFERROR(INDEX(IdentAcoes[Descrição da ação],MATCH(0,INDEX(--(COUNTIF(C$1:C42,IdentAcoes[Descrição da ação])=IdentAcoes[[Quantidade de fontes de recursos ]]),0),0)),\"\")","v":""}]
[{"$f":"Financeiro[[#This Row],[ID Ação]]&Financeiro[[#This Row],[Fonte]]","v":""},{"$f":"IFERROR(INDEX(IdentAcoes[ID Ação],MATCH(0,INDEX(--(COUNTIF(B$1:B43,IdentAcoes[ID Ação])=IdentAcoes[[Quantidade de fontes de recursos ]]),0),0)),\"\")","v":""},{"$f":"IFERROR(INDEX(IdentAcoes[Descrição da ação],MATCH(0,INDEX(--(COUNTIF(C$1:C43,IdentAcoes[Descrição da ação])=IdentAcoes[[Quantidade de fontes de recursos ]]),0),0)),\"\")","v":""}]
[{"$f":"Financeiro[[#This Row],[ID Ação]]&Financeiro[[#This Row],[Fonte]]","v":""},{"$f":"IFERROR(INDEX(IdentAcoes[ID Ação],MATCH(0,INDEX(--(COUNTIF(B$1:B44,IdentAcoes[ID Ação])=IdentAcoes[[Quantidade de fontes de recursos ]]),0),0)),\"\")","v":""},{"$f":"IFERROR(INDEX(IdentAcoes[Descrição da ação],MATCH(0,INDEX(--(COUNTIF(C$1:C44,IdentAcoes[Descrição da ação])=IdentAcoes[[Quantidade de fontes de recursos ]]),0),0)),\"\")","v":""}]
[{"$f":"Financeiro[[#This Row],[ID Ação]]&Financeiro[[#This Row],[Fonte]]","v":""},{"$f":"IFERROR(INDEX(IdentAcoes[ID Ação],MATCH(0,INDEX(--(COUNTIF(B$1:B45,IdentAcoes[ID Ação])=IdentAcoes[[Quantidade de fontes de recursos ]]),0),0)),\"\")","v":""},{"$f":"IFERROR(INDEX(IdentAcoes[Descrição da ação],MATCH(0,INDEX(--(COUNTIF(C$1:C45,IdentAcoes[Descrição da ação])=IdentAcoes[[Quantidade de fontes de recursos ]]),0),0)),\"\")","v":""}]
[{"$f":"Financeiro[[#This Row],[ID Ação]]&Financeiro[[#This Row],[Fonte]]","v":""},{"$f":"IFERROR(INDEX(IdentAcoes[ID Ação],MATCH(0,INDEX(--(COUNTIF(B$1:B46,IdentAcoes[ID Ação])=IdentAcoes[[Quantidade de fontes de recursos ]]),0),0)),\"\")","v":""},{"$f":"IFERROR(INDEX(IdentAcoes[Descrição da ação],MATCH(0,INDEX(--(COUNTIF(C$1:C46,IdentAcoes[Descrição da ação])=IdentAcoes[[Quantidade de fontes de recursos ]]),0),0)),\"\")","v":""}]
[{"$f":"Financeiro[[#This Row],[ID Ação]]&Financeiro[[#This Row],[Fonte]]","v":""},{"$f":"IFERROR(INDEX(IdentAcoes[ID Ação],MATCH(0,INDEX(--(COUNTIF(B$1:B47,IdentAcoes[ID Ação])=IdentAcoes[[Quantidade de fontes de recursos ]]),0),0)),\"\")","v":""},{"$f":"IFERROR(INDEX(IdentAcoes[Descrição da ação],MATCH(0,INDEX(--(COUNTIF(C$1:C47,IdentAcoes[Descrição da ação])=IdentAcoes[[Quantidade de fontes de recursos ]]),0),0)),\"\")","v":""}]
[{"$f":"Financeiro[[#This Row],[ID Ação]]&Financeiro[[#This Row],[Fonte]]","v":""},{"$f":"IFERROR(INDEX(IdentAcoes[ID Ação],MATCH(0,INDEX(--(COUNTIF(B$1:B48,IdentAcoes[ID Ação])=IdentAcoes[[Quantidade de fontes de recursos ]]),0),0)),\"\")","v":""},{"$f":"IFERROR(INDEX(IdentAcoes[Descrição da ação],MATCH(0,INDEX(--(COUNTIF(C$1:C48,IdentAcoes[Descrição da ação])=IdentAcoes[[Quantidade de fontes de recursos ]]),0),0)),\"\")","v":""}]
[{"$f":"Financeiro[[#This Row],[ID Ação]]&Financeiro[[#This Row],[Fonte]]","v":""},{"$f":"IFERROR(INDEX(IdentAcoes[ID Ação],MATCH(0,INDEX(--(COUNTIF(B$1:B49,IdentAcoes[ID Ação])=IdentAcoes[[Quantidade de fontes de recursos ]]),0),0)),\"\")","v":""},{"$f":"IFERROR(INDEX(IdentAcoes[Descrição da ação],MATCH(0,INDEX(--(COUNTIF(C$1:C49,IdentAcoes[Descrição da ação])=IdentAcoes[[Quantidade de fontes de recursos ]]),0),0)),\"\")","v":""}]

{"sheet":"PAPI 2024-2027","index":4,"n_rows":51,"n_cols":15,"rows_kept":51,"cut":false,"hidden":false,"merged":[]}
[null,null,null,null,null,"R$ Planejado"]
["id_ação_Fonte_oculta","ID Ação","Descrição da ação","Meta","Fonte",2024,2025,2026,2027,"Total","SubPDC","Prioridade do PDC","Segmento do executor","Área de abrangência","Nome da área de abrangência"]
[{"$f":"IF(INDEX(Financeiro[],,1)=0,\"\",(INDEX(Financeiro[],,1)))","v":"ALPA_01_24FEHIDRO - CFURH"},{"$f":"IF(INDEX(Financeiro[],,2)=0,\"\",(INDEX(Financeiro[],,2)))","v":"ALPA_01_24"},{"$f":"INDEX(Financeiro[Descrição da ação],MATCH(B3,Financeiro[ID Ação], 0))","v":"Atualização do PBH-ALPA (diagnóstico prognostico e cenarizações)"},{"$f":"IF(INDEX('Acompanhamento das metas 24-27'!$C$2:$C$50,MATCH(B3,'Acompanhamento das metas 24-27'!$A$2:$A$50,0))<>0,INDEX('Acompanhamento das metas 24-27'!$C$2:$C$50,MATCH(B3,'Acompanhamento das metas 24-27'!$A$2:$A$50,0)),\"\")","v":"Atualização do PBH-ALPA"},{"$f":"IF(VLOOKUP(A3,Financeiro[[id_ação_Fonte_oculta]:[R$  Executado (2027)]],4,FALSE)=0,\"\",VLOOKUP(A3,Financeiro[[id_ação_Fonte_oculta]:[R$  Executado (2027)]],4,FALSE))","v":"FEHIDRO - CFURH"},{"$f":"IF(VLOOKUP(A3,Financeiro[[id_ação_Fonte_oculta]:[R$  Executado (2027)]],4,FALSE)=0,\"\",VLOOKUP(A3,Financeiro[[id_ação_Fonte_oculta]:[R$  Executado (2027)]],5,FALSE))","v":581866.18000000005},{"$f":"IF(VLOOKUP(A3,Financeiro[[id_ação_Fonte_oculta]:[R$  Executado (2027)]],4,FALSE)=0,\"\",VLOOKUP(A3,Financeiro[[id_ação_Fonte_oculta]:[R$  Executado (2027)]],8,FALSE))","v":612631.41812499997},{"$f":"IF(VLOOKUP(A3,Financeiro[[id_ação_Fonte_oculta]:[R$  Executado (2027)]],4,FALSE)=0,\"\",VLOOKUP(A3,Financeiro[[id_ação_Fonte_oculta]:[R$  Executado (2027)]],11,FALSE))","v":612631.41812499997},{"$f":"IF(VLOOKUP(A3,Financeiro[[id_ação_Fonte_oculta]:[R$  Executado (2027)]],4,FALSE)=0,\"\",VLOOKUP(A3,Financeiro[[id_ação_Fonte_oculta]:[R$  Executado (2027)]],14,FALSE))","v":612631.41812499997},{"$f":"SUM(F3:I3)","v":2419760.4343749997},{"$f":"IFERROR(INDEX(IdentAcoes[SubPDC],MATCH(B3,IdentAcoes[ID Ação],0)),\"\")","v":"2.1 - Plano"},{"$f":"IFERROR(INDEX(IdentAcoes[Prioridade do PDC],MATCH($B3,IdentAcoes[ID Ação],0)),\"\")","v":"PDC 1 e 2"},{"$f":"IFERROR(INDEX(IdentAcoes[Segmento do executor],MATCH($B3,IdentAcoes[ID Ação],0)),\"\")","v":"Estado e Sociedade Civil"},{"$f":"IFERROR(INDEX(IdentAcoes[Área de abrangência],MATCH($B3,IdentAcoes[ID Ação],0)),\"\")","v":"Região Hidrográfica"},{"$f":"IFERROR(INDEX(IdentAcoes[Detalhamento da área de abrangência],MATCH($B3,IdentAcoes[ID Ação],0)),\"\")","v":"UGRHI-14"}]
["ALPA_02_24FEHIDRO - Cobrança estadual","ALPA_02_24",{"$f":"INDEX(Financeiro[Descrição da ação],MATCH(B4,Financeiro[ID Ação], 0))","v":"Monitoramento hidrológico das microbacias"},{"$f":"IF(INDEX('Acompanhamento das metas 24-27'!$C$2:$C$50,MATCH(B4,'Acompanhamento das metas 24-27'!$A$2:$A$50,0))<>0,INDEX('Acompanhamento das metas 24-27'!$C$2:$C$50,MATCH(B4,'Acompanhamento das metas 24-27'!$A$2:$A$50,0)),\"\")","v":"Implementar um sistema de monitoramento de disponibilidade hídrica em 5 sub-bacias visando a gestão de outorgas e demandas"},{"$f":"IF(VLOOKUP(A4,Financeiro[[id_ação_Fonte_oculta]:[R$  Executado (2027)]],4,FALSE)=0,\"\",VLOOKUP(A4,Financeiro[[id_ação_Fonte_oculta]:[R$  Executado (2027)]],4,FALSE))","v":"FEHIDRO - Cobrança estadual"},{"$f":"IF(VLOOKUP(A4,Financeiro[[id_ação_Fonte_oculta]:[R$  Executado (2027)]],4,FALSE)=0,\"\",VLOOKUP(A4,Financeiro[[id_ação_Fonte_oculta]:[R$  Executado (2027)]],5,FALSE))","v":539844.07999999996},{"$f":"IF(VLOOKUP(A4,Financeiro[[id_ação_Fonte_oculta]:[R$  Executado (2027)]],4,FALSE)=0,\"\",VLOOKUP(A4,Financeiro[[id_ação_Fonte_oculta]:[R$  Executado (2027)]],8,FALSE))","v":612631.41812499997},{"$f":"IF(VLOOKUP(A4,Financeiro[[id_ação_Fonte_oculta]:[R$  Executado (2027)]],4,FALSE)=0,\"\",VLOOKUP(A4,Financeiro[[id_ação_Fonte_oculta]:[R$  Executado (2027)]],11,FALSE))","v":612631.41812499997},{"$f":"IF(VLOOKUP(A4,Financeiro[[id_ação_Fonte_oculta]:[R$  Executado (2027)]],4,FALSE)=0,\"\",VLOOKUP(A4,Financeiro[[id_ação_Fonte_oculta]:[R$  Executado (2027)]],14,FALSE))","v":612631.41812499997},{"$f":"SUM(F4:I4)","v":2377738.3343749996},{"$f":"IFERROR(INDEX(IdentAcoes[SubPDC],MATCH(B4,IdentAcoes[ID Ação],0)),\"\")","v":"2.5 - Redes de monitoramento e SI"},{"$f":"IFERROR(INDEX(IdentAcoes[Prioridade do PDC],MATCH(B4,IdentAcoes[ID Ação],0)),\"\")","v":"PDC 1 e 2"},{"$f":"IFERROR(INDEX(IdentAcoes[Segmento do executor],MATCH($B4,IdentAcoes[ID Ação],0)),\"\")","v":"Estado e Sociedade Civil"},{"$f":"IFERROR(INDEX(IdentAcoes[Área de abrangência],MATCH($B4,IdentAcoes[ID Ação],0)),\"\")","v":"Sub-bacia"},{"$f":"IFERROR(INDEX(IdentAcoes[Detalhamento da área de abrangência],MATCH($B4,IdentAcoes[ID Ação],0)),\"\")","v":"Subbacias da UGRHI-14"}]
["ALPA_03_24FEHIDRO - Cobrança estadual","ALPA_03_24",{"$f":"INDEX(Financeiro[Descrição da ação],MATCH(B5,Financeiro[ID Ação], 0))","v":"Investimento no sistema de esgotamento sanitário nos distritos operados pela SABESP."},{"$f":"IF(INDEX('Acompanhamento das metas 24-27'!$C$2:$C$50,MATCH(B5,'Acompanhamento das metas 24-27'!$A$2:$A$50,0))<>0,INDEX('Acompanhamento das metas 24-27'!$C$2:$C$50,MATCH(B5,'Acompanhamento das metas 24-27'!$A$2:$A$50,0)),\"\")","v":"Melhoria de sistema de  esgotamento sanitário em municípios com distritos não operacionalizados pela SABESP"},{"$f":"IF(VLOOKUP(A5,Financeiro[[id_ação_Fonte_oculta]:[R$  Executado (2027)]],4,FALSE)=0,\"\",VLOOKUP(A5,Financeiro[[id_ação_Fonte_oculta]:[R$  Executado (2027)]],4,FALSE))","v":"FEHIDRO - Cobrança estadual"},{"$f":"IF(VLOOKUP(A5,Financeiro[[id_ação_Fonte_oculta]:[R$  Executado (2027)]],4,FALSE)=0,\"\",VLOOKUP(A5,Financeiro[[id_ação_Fonte_oculta]:[R$  Executado (2027)]],5,FALSE))","v":647812.9},{"$f":"IF(VLOOKUP(A5,Financeiro[[id_ação_Fonte_oculta]:[R$  Executado (2027)]],4,FALSE)=0,\"\",VLOOKUP(A5,Financeiro[[id_ação_Fonte_oculta]:[R$  Executado (2027)]],8,FALSE))","v":735157.70175000001},{"$f":"IF(VLOOKUP(A5,Financeiro[[id_ação_Fonte_oculta]:[R$  Executado (2027)]],4,FALSE)=0,\"\",VLOOKUP(A5,Financeiro[[id_ação_Fonte_oculta]:[R$  Executado (2027)]],11,FALSE))","v":735157.70175000001},{"$f":"IF(VLOOKUP(A5,Financeiro[[id_ação_Fonte_oculta]:[R$  Executado (2027)]],4,FALSE)=0,\"\",VLOOKUP(A5,Financeiro[[id_ação_Fonte_oculta]:[R$  Executado (2027)]],14,FALSE))","v":735157.70175000001},2853286.0052499999,{"$f":"IFERROR(INDEX(IdentAcoes[SubPDC],MATCH(B5,IdentAcoes[ID Ação],0)),\"\")","v":"3.1 - Efluentes"},{"$f":"IFERROR(INDEX(IdentAcoes[Prioridade do PDC],MATCH(B5,IdentAcoes[ID Ação],0)),\"\")","v":"Não prioritário"},{"$f":"IFERROR(INDEX(IdentAcoes[Segmento do executor],MATCH($B5,IdentAcoes[ID Ação],0)),\"\")","v":"Município"},{"$f":"IFERROR(INDEX(IdentAcoes[Área de abrangência],MATCH($B5,IdentAcoes[ID Ação],0)),\"\")","v":"Outra"},{"$f":"IFERROR(INDEX(IdentAcoes[Detalhamento da área de abrangência],MATCH($B5,IdentAcoes[ID Ação],0)),\"\")","v":"Distritos Municipais"}]
["ALPA_04_24FEHIDRO - Cobrança estadual","ALPA_04_24",{"$f":"INDEX(Financeiro[Descrição da ação],MATCH(B6,Financeiro[ID Ação], 0))","v":"Execução de obras de drenagem urbana"},{"$f":"IF(INDEX('Acompanhamento das metas 24-27'!$C$2:$C$50,MATCH(B6,'Acompanhamento das metas 24-27'!$A$2:$A$50,0))<>0,INDEX('Acompanhamento das metas 24-27'!$C$2:$C$50,MATCH(B6,'Acompanhamento das metas 24-27'!$A$2:$A$50,0)),\"\")","v":"Implementação de sistema de drenagem urbana municípios da UGRHi-14"},{"$f":"IF(VLOOKUP(A6,Financeiro[[id_ação_Fonte_oculta]:[R$  Executado (2027)]],4,FALSE)=0,\"\",VLOOKUP(A6,Financeiro[[id_ação_Fonte_oculta]:[R$  Executado (2027)]],4,FALSE))","v":"FEHIDRO - Cobrança estadual"},{"$f":"IF(VLOOKUP(A6,Financeiro[[id_ação_Fonte_oculta]:[R$  Executado (2027)]],4,FALSE)=0,\"\",VLOOKUP(A6,Financeiro[[id_ação_Fonte_oculta]:[R$  Executado (2027)]],5,FALSE))","v":269922.03999999998},{"$f":"IF(VLOOKUP(A6,Financeiro[[id_ação_Fonte_oculta]:[R$  Executado (2027)]],4,FALSE)=0,\"\",VLOOKUP(A6,Financeiro[[id_ação_Fonte_oculta]:[R$  Executado (2027)]],8,FALSE))","v":490105.13449999999},{"$f":"IF(VLOOKUP(A6,Financeiro[[id_ação_Fonte_oculta]:[R$  Executado (2027)]],4,FALSE)=0,\"\",VLOOKUP(A6,Financeiro[[id_ação_Fonte_oculta]:[R$  Executado (2027)]],11,FALSE))","v":490105.13449999999},{"$f":"IF(VLOOKUP(A6,Financeiro[[id_ação_Fonte_oculta]:[R$  Executado (2027)]],4,FALSE)=0,\"\",VLOOKUP(A6,Financeiro[[id_ação_Fonte_oculta]:[R$  Executado (2027)]],14,FALSE))","v":490105.13449999999},1740237.4434999998,{"$f":"IFERROR(INDEX(IdentAcoes[SubPDC],MATCH(B6,IdentAcoes[ID Ação],0)),\"\")","v":"4.1 - Controle erosão"},{"$f":"IFERROR(INDEX(IdentAcoes[Prioridade do PDC],MATCH(B6,IdentAcoes[ID Ação],0)),\"\")","v":"Prioritário"},{"$f":"IFERROR(INDEX(IdentAcoes[Segmento do executor],MATCH($B6,IdentAcoes[ID Ação],0)),\"\")","v":"Município"},{"$f":"IFERROR(INDEX(IdentAcoes[Área de abrangência],MATCH($B6,IdentAcoes[ID Ação],0)),\"\")","v":"Área urbana"},{"$f":"IFERROR(INDEX(IdentAcoes[Detalhamento da área de abrangência],MATCH($B6,IdentAcoes[ID Ação],0)),\"\")","v":"Perímetro Urbano"}]
["ALPA_05_24FEHIDRO - Cobrança estadual","ALPA_05_24",{"$f":"INDEX(Financeiro[Descrição da ação],MATCH(B7,Financeiro[ID Ação], 0))","v":"Obras de controle à erosão nos municípios da UGRHI -14"},{"$f":"IF(INDEX('Acompanhamento das metas 24-27'!$C$2:$C$50,MATCH(B7,'Acompanhamento das metas 24-27'!$A$2:$A$50,0))<>0,INDEX('Acompanhamento das metas 24-27'!$C$2:$C$50,MATCH(B7,'Acompanhamento das metas 24-27'!$A$2:$A$50,0)),\"\")","v":"Implementação de sistema de drenagem urbana municípios da UGRHi-14"},{"$f":"IF(VLOOKUP(A7,Financeiro[[id_ação_Fonte_oculta]:[R$  Executado (2027)]],4,FALSE)=0,\"\",VLOOKUP(A7,Financeiro[[id_ação_Fonte_oculta]:[R$  Executado (2027)]],4,FALSE))","v":"FEHIDRO - Cobrança estadual"},{"$f":"IF(VLOOKUP(A7,Financeiro[[id_ação_Fonte_oculta]:[R$  Executado (2027)]],4,FALSE)=0,\"\",VLOOKUP(A7,Financeiro[[id_ação_Fonte_oculta]:[R$  Executado (2027)]],5,FALSE))","v":269922.03999999998},{"$f":"IF(VLOOKUP(A7,Financeiro[[id_ação_Fonte_oculta]:[R$  Executado (2027)]],4,FALSE)=0,\"\",VLOOKUP(A7,Financeiro[[id_ação_Fonte_oculta]:[R$  Executado (2027)]],8,FALSE))","v":490105.13449999999},{"$f":"IF(VLOOKUP(A7,Financeiro[[id_ação_Fonte_oculta]:[R$  Executado (2027)]],4,FALSE)=0,\"\",VLOOKUP(A7,Financeiro[[id_ação_Fonte_oculta]:[R$  Executado (2027)]],11,FALSE))","v":490105.13449999999},{"$f":"IF(VLOOKUP(A7,Financeiro[[id_ação_Fonte_oculta]:[R$  Executado (2027)]],4,FALSE)=0,\"\",VLOOKUP(A7,Financeiro[[id_ação_Fonte_oculta]:[R$  Executado (2027)]],14,FALSE))","v":490105.13449999999},1740237.4434999998,{"$f":"IFERROR(INDEX(IdentAcoes[SubPDC],MATCH(B7,IdentAcoes[ID Ação],0)),\"\")","v":"4.1 - Controle erosão"},{"$f":"IFERROR(INDEX(IdentAcoes[Prioridade do PDC],MATCH(B7,IdentAcoes[ID Ação],0)),\"\")","v":"Prioritário"},{"$f":"IFERROR(INDEX(IdentAcoes[Segmento do executor],MATCH($B7,IdentAcoes[ID Ação],0)),\"\")","v":"Município"},{"$f":"IFERROR(INDEX(IdentAcoes[Área de abrangência],MATCH($B7,IdentAcoes[ID Ação],0)),\"\")","v":"Área urbana"},{"$f":"IFERROR(INDEX(IdentAcoes[Detalhamento da área de abrangência],MATCH($B7,IdentAcoes[ID Ação],0)),\"\")","v":"Perímetro Urbano"}]
["ALPA_06_24FEHIDRO - Cobrança estadual","ALPA_06_24",{"$f":"INDEX(Financeiro[Descrição da ação],MATCH(B8,Financeiro[ID Ação], 0))","v":"Reduzir a ocorrência de alagamentos e inundações"},{"$f":"IF(INDEX('Acompanhamento das metas 24-27'!$C$2:$C$50,MATCH(B8,'Acompanhamento das metas 24-27'!$A$2:$A$50,0))<>0,INDEX('Acompanhamento das metas 24-27'!$C$2:$C$50,MATCH(B8,'Acompanhamento das metas 24-27'!$A$2:$A$50,0)),\"\")","v":"Implementação de sistema de prevenção e defesa contra inundações nos municípios da UGRHi-14."},{"$f":"IF(VLOOKUP(A8,Financeiro[[id_ação_Fonte_oculta]:[R$  Executado (2027)]],4,FALSE)=0,\"\",VLOOKUP(A8,Financeiro[[id_ação_Fonte_oculta]:[R$  Executado (2027)]],4,FALSE))","v":"FEHIDRO - Cobrança estadual"},{"$f":"IF(VLOOKUP(A8,Financeiro[[id_ação_Fonte_oculta]:[R$  Executado (2027)]],4,FALSE)=0,\"\",VLOOKUP(A8,Financeiro[[id_ação_Fonte_oculta]:[R$  Executado (2027)]],5,FALSE))","v":1295625.8},{"$f":"IF(VLOOKUP(A8,Financeiro[[id_ação_Fonte_oculta]:[R$  Executado (2027)]],4,FALSE)=0,\"\",VLOOKUP(A8,Financeiro[[id_ação_Fonte_oculta]:[R$  Executado (2027)]],8,FALSE))","v":490105.13449999999},{"$f":"IF(VLOOKUP(A8,Financeiro[[id_ação_Fonte_oculta]:[R$  Executado (2027)]],4,FALSE)=0,\"\",VLOOKUP(A8,Financeiro[[id_ação_Fonte_oculta]:[R$  Executado (2027)]],11,FALSE))","v":490105.13449999999},{"$f":"IF(VLOOKUP(A8,Financeiro[[id_ação_Fonte_oculta]:[R$  Executado (2027)]],4,FALSE)=0,\"\",VLOOKUP(A8,Financeiro[[id_ação_Fonte_oculta]:[R$  Executado (2027)]],14,FALSE))","v":490105.13449999999},2765941.2035000003,{"$f":"IFERROR(INDEX(IdentAcoes[SubPDC],MATCH(B8,IdentAcoes[ID Ação],0)),\"\")","v":"7.1 - Drenagem"},{"$f":"IFERROR(INDEX(IdentAcoes[Prioridade do PDC],MATCH(B8,IdentAcoes[ID Ação],0)),\"\")","v":"Prioritário"},{"$f":"IFERROR(INDEX(IdentAcoes[Segmento do executor],MATCH($B8,IdentAcoes[ID Ação],0)),\"\")","v":"Município"},{"$f":"IFERROR(INDEX(IdentAcoes[Área de abrangência],MATCH($B8,IdentAcoes[ID Ação],0)),\"\")","v":"Área urbana"},{"$f":"IFERROR(INDEX(IdentAcoes[Detalhamento da área de abrangência],MATCH($B8,IdentAcoes[ID Ação],0)),\"\")","v":"Perímetro Urbano"}]
["ALPA_07_24FEHIDRO - Cobrança estadual","ALPA_07_24",{"$f":"INDEX(Financeiro[Descrição da ação],MATCH(B9,Financeiro[ID Ação], 0))","v":"Executar obras de drenagem urbana nos 34 municípios da UGRHI-14, mencionados nos Planos de Macrodrenagem Urbana"},{"$f":"IF(INDEX('Acompanhamento das metas 24-27'!$C$2:$C$50,MATCH(B9,'Acompanhamento das metas 24-27'!$A$2:$A$50,0))<>0,INDEX('Acompanhamento das metas 24-27'!$C$2:$C$50,MATCH(B9,'Acompanhamento das metas 24-27'!$A$2:$A$50,0)),\"\")","v":"Implementação de sistema de prevenção e defesa contra inundações nos municípios da UGRHi-14."},{"$f":"IF(VLOOKUP(A9,Financeiro[[id_ação_Fonte_oculta]:[R$  Executado (2027)]],4,FALSE)=0,\"\",VLOOKUP(A9,Financeiro[[id_ação_Fonte_oculta]:[R$  Executado (2027)]],4,FALSE))","v":"FEHIDRO - Cobrança estadual"},{"$f":"IF(VLOOKUP(A9,Financeiro[[id_ação_Fonte_oculta]:[R$  Executado (2027)]],4,FALSE)=0,\"\",VLOOKUP(A9,Financeiro[[id_ação_Fonte_oculta]:[R$  Executado (2027)]],5,FALSE))","v":1295625.8},{"$f":"IF(VLOOKUP(A9,Financeiro[[id_ação_Fonte_oculta]:[R$  Executado (2027)]],4,FALSE)=0,\"\",VLOOKUP(A9,Financeiro[[id_ação_Fonte_oculta]:[R$  Executado (2027)]],8,FALSE))","v":1470315.4035},{"$f":"IF(VLOOKUP(A9,Financeiro[[id_ação_Fonte_oculta]:[R$  Executado (2027)]],4,FALSE)=0,\"\",VLOOKUP(A9,Financeiro[[id_ação_Fonte_oculta]:[R$  Executado (2027)]],11,FALSE))","v":1470315.4035},{"$f":"IF(VLOOKUP(A9,Financeiro[[id_ação_Fonte_oculta]:[R$  Executado (2027)]],4,FALSE)=0,\"\",VLOOKUP(A9,Financeiro[[id_ação_Fonte_oculta]:[R$  Executado (2027)]],14,FALSE))","v":1470315.4035},5706572.0104999999,{"$f":"IFERROR(INDEX(IdentAcoes[SubPDC],MATCH(B9,IdentAcoes[ID Ação],0)),\"\")","v":"7.1 - Drenagem"},{"$f":"IFERROR(INDEX(IdentAcoes[Prioridade do PDC],MATCH(B9,IdentAcoes[ID Ação],0)),\"\")","v":"Prioritário"},{"$f":"IFERROR(INDEX(IdentAcoes[Segmento do executor],MATCH($B9,IdentAcoes[ID Ação],0)),\"\")","v":"Município"},{"$f":"IFERROR(INDEX(IdentAcoes[Área de abrangência],MATCH($B9,IdentAcoes[ID Ação],0)),\"\")","v":"Área urbana"},{"$f":"IFERROR(INDEX(IdentAcoes[Detalhamento da área de abrangência],MATCH($B9,IdentAcoes[ID Ação],0)),\"\")","v":"Perímetro Urbano"}]
["","",{"$f":"INDEX(Financeiro[Descrição da ação],MATCH(B10,Financeiro[ID Ação], 0))","v":""},null,{"$f":"IF(VLOOKUP(A10,Financeiro[[id_ação_Fonte_oculta]:[R$  Executado (2027)]],4,FALSE)=0,\"\",VLOOKUP(A10,Financeiro[[id_ação_Fonte_oculta]:[R$  Executado (2027)]],4,FALSE))","v":""},{"$f":"IF(VLOOKUP(A10,Financeiro[[id_ação_Fonte_oculta]:[R$  Executado (2027)]],4,FALSE)=0,\"\",VLOOKUP(A10,Financeiro[[id_ação_Fonte_oculta]:[R$  Executado (2027)]],5,FALSE))","v":""},{"$f":"IF(VLOOKUP(A10,Financeiro[[id_ação_Fonte_oculta]:[R$  Executado (2027)]],4,FALSE)=0,\"\",VLOOKUP(A10,Financeiro[[id_ação_Fonte_oculta]:[R$  Executado (2027)]],8,FALSE))","v":""},{"$f":"IF(VLOOKUP(A10,Financeiro[[id_ação_Fonte_oculta]:[R$  Executado (2027)]],4,FALSE)=0,\"\",VLOOKUP(A10,Financeiro[[id_ação_Fonte_oculta]:[R$  Executado (2027)]],11,FALSE))","v":""},{"$f":"IF(VLOOKUP(A10,Financeiro[[id_ação_Fonte_oculta]:[R$  Executado (2027)]],4,FALSE)=0,\"\",VLOOKUP(A10,Financeiro[[id_ação_Fonte_oculta]:[R$  Executado (2027)]],14,FALSE))","v":""},0,{"$f":"IFERROR(INDEX(IdentAcoes[SubPDC],MATCH(B10,IdentAcoes[ID Ação],0)),\"\")","v":""},{"$f":"IFERROR(INDEX(IdentAcoes[Prioridade do PDC],MATCH(B10,IdentAcoes[ID Ação],0)),\"\")","v":""},{"$f":"IFERROR(INDEX(IdentAcoes[Segmento do executor],MATCH($B10,IdentAcoes[ID Ação],0)),\"\")","v":""},{"$f":"IFERROR(INDEX(IdentAcoes[Área de abrangência],MATCH($B10,IdentAcoes[ID Ação],0)),\"\")","v":""},{"$f":"IFERROR(INDEX(IdentAcoes[Detalhamento da área de abrangência],MATCH($B10,IdentAcoes[ID Ação],0)),\"\")","v":""}]
["","",{"$f":"INDEX(Financeiro[Descrição da ação],MATCH(B11,Financeiro[ID Ação], 0))","v":""},{"$f":"IF(INDEX('Acompanhamento das metas 24-27'!$C$2:$C$50,MATCH(B11,'Acompanhamento das metas 24-27'!$A$2:$A$50,0))<>0,INDEX('Acompanhamento das metas 24-27'!$C$2:$C$50,MATCH(B11,'Acompanhamento das metas 24-27'!$A$2:$A$50,0)),\"\")","v":""},{"$f":"IF(VLOOKUP(A11,Financeiro[[id_ação_Fonte_oculta]:[R$  Executado (2027)]],4,FALSE)=0,\"\",VLOOKUP(A11,Financeiro[[id_ação_Fonte_oculta]:[R$  Executado (2027)]],4,FALSE))","v":""},{"$f":"IF(VLOOKUP(A11,Financeiro[[id_ação_Fonte_oculta]:[R$  Executado (2027)]],4,FALSE)=0,\"\",VLOOKUP(A11,Financeiro[[id_ação_Fonte_oculta]:[R$  Executado (2027)]],5,FALSE))","v":""},{"$f":"IF(VLOOKUP(A11,Financeiro[[id_ação_Fonte_oculta]:[R$  Executado (2027)]],4,FALSE)=0,\"\",VLOOKUP(A11,Financeiro[[id_ação_Fonte_oculta]:[R$  Executado (2027)]],8,FALSE))","v":""},{"$f":"IF(VLOOKUP(A11,Financeiro[[id_ação_Fonte_oculta]:[R$  Executado (2027)]],4,FALSE)=0,\"\",VLOOKUP(A11,Financeiro[[id_ação_Fonte_oculta]:[R$  Executado (2027)]],11,FALSE))","v":""},{"$f":"IF(VLOOKUP(A11,Financeiro[[id_ação_Fonte_oculta]:[R$  Executado (2027)]],4,FALSE)=0,\"\",VLOOKUP(A11,Financeiro[[id_ação_Fonte_oculta]:[R$  Executado (2027)]],14,FALSE))","v":""},0,{"$f":"IFERROR(INDEX(IdentAcoes[SubPDC],MATCH(B11,IdentAcoes[ID Ação],0)),\"\")","v":""},{"$f":"IFERROR(INDEX(IdentAcoes[Prioridade do PDC],MATCH(B11,IdentAcoes[ID Ação],0)),\"\")","v":""},{"$f":"IFERROR(INDEX(IdentAcoes[Segmento do executor],MATCH($B11,IdentAcoes[ID Ação],0)),\"\")","v":""},{"$f":"IFERROR(INDEX(IdentAcoes[Área de abrangência],MATCH($B11,IdentAcoes[ID Ação],0)),\"\")","v":""},{"$f":"IFERROR(INDEX(IdentAcoes[Detalhamento da área de abrangência],MATCH($B11,IdentAcoes[ID Ação],0)),\"\")","v":""}]
["","",{"$f":"INDEX(Financeiro[Descrição da ação],MATCH(B12,Financeiro[ID Ação], 0))","v":""},{"$f":"IF(INDEX('Acompanhamento das metas 24-27'!$C$2:$C$50,MATCH(B12,'Acompanhamento das metas 24-27'!$A$2:$A$50,0))<>0,INDEX('Acompanhamento das metas 24-27'!$C$2:$C$50,MATCH(B12,'Acompanhamento das metas 24-27'!$A$2:$A$50,0)),\"\")","v":""},{"$f":"IF(VLOOKUP(A12,Financeiro[[id_ação_Fonte_oculta]:[R$  Executado (2027)]],4,FALSE)=0,\"\",VLOOKUP(A12,Financeiro[[id_ação_Fonte_oculta]:[R$  Executado (2027)]],4,FALSE))","v":""},{"$f":"IF(VLOOKUP(A12,Financeiro[[id_ação_Fonte_oculta]:[R$  Executado (2027)]],4,FALSE)=0,\"\",VLOOKUP(A12,Financeiro[[id_ação_Fonte_oculta]:[R$  Executado (2027)]],5,FALSE))","v":""},{"$f":"IF(VLOOKUP(A12,Financeiro[[id_ação_Fonte_oculta]:[R$  Executado (2027)]],4,FALSE)=0,\"\",VLOOKUP(A12,Financeiro[[id_ação_Fonte_oculta]:[R$  Executado (2027)]],8,FALSE))","v":""},{"$f":"IF(VLOOKUP(A12,Financeiro[[id_ação_Fonte_oculta]:[R$  Executado (2027)]],4,FALSE)=0,\"\",VLOOKUP(A12,Financeiro[[id_ação_Fonte_oculta]:[R$  Executado (2027)]],11,FALSE))","v":""},{"$f":"IF(VLOOKUP(A12,Financeiro[[id_ação_Fonte_oculta]:[R$  Executado (2027)]],4,FALSE)=0,\"\",VLOOKUP(A12,Financeiro[[id_ação_Fonte_oculta]:[R$  Executado (2027)]],14,FALSE))","v":""},0,{"$f":"IFERROR(INDEX(IdentAcoes[SubPDC],MATCH(B12,IdentAcoes[ID Ação],0)),\"\")","v":""},{"$f":"IFERROR(INDEX(IdentAcoes[Prioridade do PDC],MATCH(B12,IdentAcoes[ID Ação],0)),\"\")","v":""},{"$f":"IFERROR(INDEX(IdentAcoes[Segmento do executor],MATCH($B12,IdentAcoes[ID Ação],0)),\"\")","v":""},{"$f":"IFERROR(INDEX(IdentAcoes[Área de abrangência],MATCH($B12,IdentAcoes[ID Ação],0)),\"\")","v":""},{"$f":"IFERROR(INDEX(IdentAcoes[Detalhamento da área de abrangência],MATCH($B12,IdentAcoes[ID Ação],0)),\"\")","v":""}]
["","",{"$f":"INDEX(Financeiro[Descrição da ação],MATCH(B13,Financeiro[ID Ação], 0))","v":""},{"$f":"IF(INDEX('Acompanhamento das metas 24-27'!$C$2:$C$50,MATCH(B13,'Acompanhamento das metas 24-27'!$A$2:$A$50,0))<>0,INDEX('Acompanhamento das metas 24-27'!$C$2:$C$50,MATCH(B13,'Acompanhamento das metas 24-27'!$A$2:$A$50,0)),\"\")","v":""},{"$f":"IF(VLOOKUP(A13,Financeiro[[id_ação_Fonte_oculta]:[R$  Executado (2027)]],4,FALSE)=0,\"\",VLOOKUP(A13,Financeiro[[id_ação_Fonte_oculta]:[R$  Executado (2027)]],4,FALSE))","v":""},{"$f":"IF(VLOOKUP(A13,Financeiro[[id_ação_Fonte_oculta]:[R$  Executado (2027)]],4,FALSE)=0,\"\",VLOOKUP(A13,Financeiro[[id_ação_Fonte_oculta]:[R$  Executado (2027)]],5,FALSE))","v":""},{"$f":"IF(VLOOKUP(A13,Financeiro[[id_ação_Fonte_oculta]:[R$  Executado (2027)]],4,FALSE)=0,\"\",VLOOKUP(A13,Financeiro[[id_ação_Fonte_oculta]:[R$  Executado (2027)]],8,FALSE))","v":""},{"$f":"IF(VLOOKUP(A13,Financeiro[[id_ação_Fonte_oculta]:[R$  Executado (2027)]],4,FALSE)=0,\"\",VLOOKUP(A13,Financeiro[[id_ação_Fonte_oculta]:[R$  Executado (2027)]],11,FALSE))","v":""},{"$f":"IF(VLOOKUP(A13,Financeiro[[id_ação_Fonte_oculta]:[R$  Executado (2027)]],4,FALSE)=0,\"\",VLOOKUP(A13,Financeiro[[id_ação_Fonte_oculta]:[R$  Executado (2027)]],14,FALSE))","v":""},0,{"$f":"IFERROR(INDEX(IdentAcoes[SubPDC],MATCH(B13,IdentAcoes[ID Ação],0)),\"\")","v":""},{"$f":"IFERROR(INDEX(IdentAcoes[Prioridade do PDC],MATCH(B13,IdentAcoes[ID Ação],0)),\"\")","v":""},{"$f":"IFERROR(INDEX(IdentAcoes[Segmento do executor],MATCH($B13,IdentAcoes[ID Ação],0)),\"\")","v":""},{"$f":"IFERROR(INDEX(IdentAcoes[Área de abrangência],MATCH($B13,IdentAcoes[ID Ação],0)),\"\")","v":""},{"$f":"IFERROR(INDEX(IdentAcoes[Detalhamento da área de abrangência],MATCH($B13,IdentAcoes[ID Ação],0)),\"\")","v":""}]
["","",{"$f":"INDEX(Financeiro[Descrição da ação],MATCH(B14,Financeiro[ID Ação], 0))","v":""},{"$f":"IF(INDEX('Acompanhamento das metas 24-27'!$C$2:$C$50,MATCH(B14,'Acompanhamento das metas 24-27'!$A$2:$A$50,0))<>0,INDEX('Acompanhamento das metas 24-27'!$C$2:$C$50,MATCH(B14,'Acompanhamento das metas 24-27'!$A$2:$A$50,0)),\"\")","v":""},{"$f":"IF(VLOOKUP(A14,Financeiro[[id_ação_Fonte_oculta]:[R$  Executado (2027)]],4,FALSE)=0,\"\",VLOOKUP(A14,Financeiro[[id_ação_Fonte_oculta]:[R$  Executado (2027)]],4,FALSE))","v":""},{"$f":"IF(VLOOKUP(A14,Financeiro[[id_ação_Fonte_oculta]:[R$  Executado (2027)]],4,FALSE)=0,\"\",VLOOKUP(A14,Financeiro[[id_ação_Fonte_oculta]:[R$  Executado (2027)]],5,FALSE))","v":""},{"$f":"IF(VLOOKUP(A14,Financeiro[[id_ação_Fonte_oculta]:[R$  Executado (2027)]],4,FALSE)=0,\"\",VLOOKUP(A14,Financeiro[[id_ação_Fonte_oculta]:[R$  Executado (2027)]],8,FALSE))","v":""},{"$f":"IF(VLOOKUP(A14,Financeiro[[id_ação_Fonte_oculta]:[R$  Executado (2027)]],4,FALSE)=0,\"\",VLOOKUP(A14,Financeiro[[id_ação_Fonte_oculta]:[R$  Executado (2027)]],11,FALSE))","v":""},{"$f":"IF(VLOOKUP(A14,Financeiro[[id_ação_Fonte_oculta]:[R$  Executado (2027)]],4,FALSE)=0,\"\",VLOOKUP(A14,Financeiro[[id_ação_Fonte_oculta]:[R$  Executado (2027)]],14,FALSE))","v":""},0,{"$f":"IFERROR(INDEX(IdentAcoes[SubPDC],MATCH(B14,IdentAcoes[ID Ação],0)),\"\")","v":""},{"$f":"IFERROR(INDEX(IdentAcoes[Prioridade do PDC],MATCH(B14,IdentAcoes[ID Ação],0)),\"\")","v":""},{"$f":"IFERROR(INDEX(IdentAcoes[Segmento do executor],MATCH($B14,IdentAcoes[ID Ação],0)),\"\")","v":""},{"$f":"IFERROR(INDEX(IdentAcoes[Área de abrangência],MATCH($B14,IdentAcoes[ID Ação],0)),\"\")","v":""},{"$f":"IFERROR(INDEX(IdentAcoes[Detalhamento da área de abrangência],MATCH($B14,IdentAcoes[ID Ação],0)),\"\")","v":""}]
["","",{"$f":"INDEX(Financeiro[Descrição da ação],MATCH(B15,Financeiro[ID Ação], 0))","v":""},{"$f":"IF(INDEX('Acompanhamento das metas 24-27'!$C$2:$C$50,MATCH(B15,'Acompanhamento das metas 24-27'!$A$2:$A$50,0))<>0,INDEX('Acompanhamento das metas 24-27'!$C$2:$C$50,MATCH(B15,'Acompanhamento das metas 24-27'!$A$2:$A$50,0)),\"\")","v":""},{"$f":"IF(VLOOKUP(A15,Financeiro[[id_ação_Fonte_oculta]:[R$  Executado (2027)]],4,FALSE)=0,\"\",VLOOKUP(A15,Financeiro[[id_ação_Fonte_oculta]:[R$  Executado (2027)]],4,FALSE))","v":""},{"$f":"IF(VLOOKUP(A15,Financeiro[[id_ação_Fonte_oculta]:[R$  Executado (2027)]],4,FALSE)=0,\"\",VLOOKUP(A15,Financeiro[[id_ação_Fonte_oculta]:[R$  Executado (2027)]],5,FALSE))","v":""},{"$f":"IF(VLOOKUP(A15,Financeiro[[id_ação_Fonte_oculta]:[R$  Executado (2027)]],4,FALSE)=0,\"\",VLOOKUP(A15,Financeiro[[id_ação_Fonte_oculta]:[R$  Executado (2027)]],8,FALSE))","v":""},{"$f":"IF(VLOOKUP(A15,Financeiro[[id_ação_Fonte_oculta]:[R$  Executado (2027)]],4,FALSE)=0,\"\",VLOOKUP(A15,Financeiro[[id_ação_Fonte_oculta]:[R$  Executado (2027)]],11,FALSE))","v":""},{"$f":"IF(VLOOKUP(A15,Financeiro[[id_ação_Fonte_oculta]:[R$  Executado (2027)]],4,FALSE)=0,\"\",VLOOKUP(A15,Financeiro[[id_ação_Fonte_oculta]:[R$  Executado (2027)]],14,FALSE))","v":""},0,{"$f":"IFERROR(INDEX(IdentAcoes[SubPDC],MATCH(B15,IdentAcoes[ID Ação],0)),\"\")","v":""},{"$f":"IFERROR(INDEX(IdentAcoes[Prioridade do PDC],MATCH(B15,IdentAcoes[ID Ação],0)),\"\")","v":""},{"$f":"IFERROR(INDEX(IdentAcoes[Segmento do executor],MATCH($B15,IdentAcoes[ID Ação],0)),\"\")","v":""},{"$f":"IFERROR(INDEX(IdentAcoes[Área de abrangência],MATCH($B15,IdentAcoes[ID Ação],0)),\"\")","v":""},{"$f":"IFERROR(INDEX(IdentAcoes[Detalhamento da área de abrangência],MATCH($B15,IdentAcoes[ID Ação],0)),\"\")","v":""}]
["","",{"$f":"INDEX(Financeiro[Descrição da ação],MATCH(B16,Financeiro[ID Ação], 0))","v":""},{"$f":"IF(INDEX('Acompanhamento das metas 24-27'!$C$2:$C$50,MATCH(B16,'Acompanhamento das metas 24-27'!$A$2:$A$50,0))<>0,INDEX('Acompanhamento das metas 24-27'!$C$2:$C$50,MATCH(B16,'Acompanhamento das metas 24-27'!$A$2:$A$50,0)),\"\")","v":""},{"$f":"IF(VLOOKUP(A16,Financeiro[[id_ação_Fonte_oculta]:[R$  Executado (2027)]],4,FALSE)=0,\"\",VLOOKUP(A16,Financeiro[[id_ação_Fonte_oculta]:[R$  Executado (2027)]],4,FALSE))","v":""},{"$f":"IF(VLOOKUP(A16,Financeiro[[id_ação_Fonte_oculta]:[R$  Executado (2027)]],4,FALSE)=0,\"\",VLOOKUP(A16,Financeiro[[id_ação_Fonte_oculta]:[R$  Executado (2027)]],5,FALSE))","v":""},{"$f":"IF(VLOOKUP(A16,Financeiro[[id_ação_Fonte_oculta]:[R$  Executado (2027)]],4,FALSE)=0,\"\",VLOOKUP(A16,Financeiro[[id_ação_Fonte_oculta]:[R$  Executado (2027)]],8,FALSE))","v":""},{"$f":"IF(VLOOKUP(A16,Financeiro[[id_ação_Fonte_oculta]:[R$  Executado (2027)]],4,FALSE)=0,\"\",VLOOKUP(A16,Financeiro[[id_ação_Fonte_oculta]:[R$  Executado (2027)]],11,FALSE))","v":""},{"$f":"IF(VLOOKUP(A16,Financeiro[[id_ação_Fonte_oculta]:[R$  Executado (2027)]],4,FALSE)=0,\"\",VLOOKUP(A16,Financeiro[[id_ação_Fonte_oculta]:[R$  Executado (2027)]],14,FALSE))","v":""},0,{"$f":"IFERROR(INDEX(IdentAcoes[SubPDC],MATCH(B16,IdentAcoes[ID Ação],0)),\"\")","v":""},{"$f":"IFERROR(INDEX(IdentAcoes[Prioridade do PDC],MATCH(B16,IdentAcoes[ID Ação],0)),\"\")","v":""},{"$f":"IFERROR(INDEX(IdentAcoes[Segmento do executor],MATCH($B16,IdentAcoes[ID Ação],0)),\"\")","v":""},{"$f":"IFERROR(INDEX(IdentAcoes[Área de abrangência],MATCH($B16,IdentAcoes[ID Ação],0)),\"\")","v":""},{"$f":"IFERROR(INDEX(IdentAcoes[Detalhamento da área de abrangência],MATCH($B16,IdentAcoes[ID Ação],0)),\"\")","v":""}]
["","",{"$f":"INDEX(Financeiro[Descrição da ação],MATCH(B17,Financeiro[ID Ação], 0))","v":""},{"$f":"IF(INDEX('Acompanhamento das metas 24-27'!$C$2:$C$50,MATCH(B17,'Acompanhamento das metas 24-27'!$A$2:$A$50,0))<>0,INDEX('Acompanhamento das metas 24-27'!$C$2:$C$50,MATCH(B17,'Acompanhamento das metas 24-27'!$A$2:$A$50,0)),\"\")","v":""},{"$f":"IF(VLOOKUP(A17,Financeiro[[id_ação_Fonte_oculta]:[R$  Executado (2027)]],4,FALSE)=0,\"\",VLOOKUP(A17,Financeiro[[id_ação_Fonte_oculta]:[R$  Executado (2027)]],4,FALSE))","v":""},{"$f":"IF(VLOOKUP(A17,Financeiro[[id_ação_Fonte_oculta]:[R$  Executado (2027)]],4,FALSE)=0,\"\",VLOOKUP(A17,Financeiro[[id_ação_Fonte_oculta]:[R$  Executado (2027)]],5,FALSE))","v":""},{"$f":"IF(VLOOKUP(A17,Financeiro[[id_ação_Fonte_oculta]:[R$  Executado (2027)]],4,FALSE)=0,\"\",VLOOKUP(A17,Financeiro[[id_ação_Fonte_oculta]:[R$  Executado (2027)]],8,FALSE))","v":""},{"$f":"IF(VLOOKUP(A17,Financeiro[[id_ação_Fonte_oculta]:[R$  Executado (2027)]],4,FALSE)=0,\"\",VLOOKUP(A17,Financeiro[[id_ação_Fonte_oculta]:[R$  Executado (2027)]],11,FALSE))","v":""},{"$f":"IF(VLOOKUP(A17,Financeiro[[id_ação_Fonte_oculta]:[R$  Executado (2027)]],4,FALSE)=0,\"\",VLOOKUP(A17,Financeiro[[id_ação_Fonte_oculta]:[R$  Executado (2027)]],14,FALSE))","v":""},0,{"$f":"IFERROR(INDEX(IdentAcoes[SubPDC],MATCH(B17,IdentAcoes[ID Ação],0)),\"\")","v":""},{"$f":"IFERROR(INDEX(IdentAcoes[Prioridade do PDC],MATCH(B17,IdentAcoes[ID Ação],0)),\"\")","v":""},{"$f":"IFERROR(INDEX(IdentAcoes[Segmento do executor],MATCH($B17,IdentAcoes[ID Ação],0)),\"\")","v":""},{"$f":"IFERROR(INDEX(IdentAcoes[Área de abrangência],MATCH($B17,IdentAcoes[ID Ação],0)),\"\")","v":""},{"$f":"IFERROR(INDEX(IdentAcoes[Detalhamento da área de abrangência],MATCH($B17,IdentAcoes[ID Ação],0)),\"\")","v":""}]
["","",{"$f":"INDEX(Financeiro[Descrição da ação],MATCH(B18,Financeiro[ID Ação], 0))","v":""},{"$f":"IF(INDEX('Acompanhamento das metas 24-27'!$C$2:$C$50,MATCH(B18,'Acompanhamento das metas 24-27'!$A$2:$A$50,0))<>0,INDEX('Acompanhamento das metas 24-27'!$C$2:$C$50,MATCH(B18,'Acompanhamento das metas 24-27'!$A$2:$A$50,0)),\"\")","v":""},{"$f":"IF(VLOOKUP(A18,Financeiro[[id_ação_Fonte_oculta]:[R$  Executado (2027)]],4,FALSE)=0,\"\",VLOOKUP(A18,Financeiro[[id_ação_Fonte_oculta]:[R$  Executado (2027)]],4,FALSE))","v":""},{"$f":"IF(VLOOKUP(A18,Financeiro[[id_ação_Fonte_oculta]:[R$  Executado (2027)]],4,FALSE)=0,\"\",VLOOKUP(A18,Financeiro[[id_ação_Fonte_oculta]:[R$  Executado (2027)]],5,FALSE))","v":""},{"$f":"IF(VLOOKUP(A18,Financeiro[[id_ação_Fonte_oculta]:[R$  Executado (2027)]],4,FALSE)=0,\"\",VLOOKUP(A18,Financeiro[[id_ação_Fonte_oculta]:[R$  Executado (2027)]],8,FALSE))","v":""},{"$f":"IF(VLOOKUP(A18,Financeiro[[id_ação_Fonte_oculta]:[R$  Executado (2027)]],4,FALSE)=0,\"\",VLOOKUP(A18,Financeiro[[id_ação_Fonte_oculta]:[R$  Executado (2027)]],11,FALSE))","v":""},{"$f":"IF(VLOOKUP(A18,Financeiro[[id_ação_Fonte_oculta]:[R$  Executado (2027)]],4,FALSE)=0,\"\",VLOOKUP(A18,Financeiro[[id_ação_Fonte_oculta]:[R$  Executado (2027)]],14,FALSE))","v":""},0,{"$f":"IFERROR(INDEX(IdentAcoes[SubPDC],MATCH(B18,IdentAcoes[ID Ação],0)),\"\")","v":""},{"$f":"IFERROR(INDEX(IdentAcoes[Prioridade do PDC],MATCH(B18,IdentAcoes[ID Ação],0)),\"\")","v":""},{"$f":"IFERROR(INDEX(IdentAcoes[Segmento do executor],MATCH($B18,IdentAcoes[ID Ação],0)),\"\")","v":""},{"$f":"IFERROR(INDEX(IdentAcoes[Área de abrangência],MATCH($B18,IdentAcoes[ID Ação],0)),\"\")","v":""},{"$f":"IFERROR(INDEX(IdentAcoes[Detalhamento da área de abrangência],MATCH($B18,IdentAcoes[ID Ação],0)),\"\")","v":""}]
["","",{"$f":"INDEX(Financeiro[Descrição da ação],MATCH(B19,Financeiro[ID Ação], 0))","v":""},{"$f":"IF(INDEX('Acompanhamento das metas 24-27'!$C$2:$C$50,MATCH(B19,'Acompanhamento das metas 24-27'!$A$2:$A$50,0))<>0,INDEX('Acompanhamento das metas 24-27'!$C$2:$C$50,MATCH(B19,'Acompanhamento das metas 24-27'!$A$2:$A$50,0)),\"\")","v":""},{"$f":"IF(VLOOKUP(A19,Financeiro[[id_ação_Fonte_oculta]:[R$  Executado (2027)]],4,FALSE)=0,\"\",VLOOKUP(A19,Financeiro[[id_ação_Fonte_oculta]:[R$  Executado (2027)]],4,FALSE))","v":""},{"$f":"IF(VLOOKUP(A19,Financeiro[[id_ação_Fonte_oculta]:[R$  Executado (2027)]],4,FALSE)=0,\"\",VLOOKUP(A19,Financeiro[[id_ação_Fonte_oculta]:[R$  Executado (2027)]],5,FALSE))","v":""},{"$f":"IF(VLOOKUP(A19,Financeiro[[id_ação_Fonte_oculta]:[R$  Executado (2027)]],4,FALSE)=0,\"\",VLOOKUP(A19,Financeiro[[id_ação_Fonte_oculta]:[R$  Executado (2027)]],8,FALSE))","v":""},{"$f":"IF(VLOOKUP(A19,Financeiro[[id_ação_Fonte_oculta]:[R$  Executado (2027)]],4,FALSE)=0,\"\",VLOOKUP(A19,Financeiro[[id_ação_Fonte_oculta]:[R$  Executado (2027)]],11,FALSE))","v":""},{"$f":"IF(VLOOKUP(A19,Financeiro[[id_ação_Fonte_oculta]:[R$  Executado (2027)]],4,FALSE)=0,\"\",VLOOKUP(A19,Financeiro[[id_ação_Fonte_oculta]:[R$  Executado (2027)]],14,FALSE))","v":""},0,{"$f":"IFERROR(INDEX(IdentAcoes[SubPDC],MATCH(B19,IdentAcoes[ID Ação],0)),\"\")","v":""},{"$f":"IFERROR(INDEX(IdentAcoes[Prioridade do PDC],MATCH(B19,IdentAcoes[ID Ação],0)),\"\")","v":""},{"$f":"IFERROR(INDEX(IdentAcoes[Segmento do executor],MATCH($B19,IdentAcoes[ID Ação],0)),\"\")","v":""},{"$f":"IFERROR(INDEX(IdentAcoes[Área de abrangência],MATCH($B19,IdentAcoes[ID Ação],0)),\"\")","v":""},{"$f":"IFERROR(INDEX(IdentAcoes[Detalhamento da área de abrangência],MATCH($B19,IdentAcoes[ID Ação],0)),\"\")","v":""}]
["","",{"$f":"INDEX(Financeiro[Descrição da ação],MATCH(B20,Financeiro[ID Ação], 0))","v":""},{"$f":"IF(INDEX('Acompanhamento das metas 24-27'!$C$2:$C$50,MATCH(B20,'Acompanhamento das metas 24-27'!$A$2:$A$50,0))<>0,INDEX('Acompanhamento das metas 24-27'!$C$2:$C$50,MATCH(B20,'Acompanhamento das metas 24-27'!$A$2:$A$50,0)),\"\")","v":""},{"$f":"IF(VLOOKUP(A20,Financeiro[[id_ação_Fonte_oculta]:[R$  Executado (2027)]],4,FALSE)=0,\"\",VLOOKUP(A20,Financeiro[[id_ação_Fonte_oculta]:[R$  Executado (2027)]],4,FALSE))","v":""},{"$f":"IF(VLOOKUP(A20,Financeiro[[id_ação_Fonte_oculta]:[R$  Executado (2027)]],4,FALSE)=0,\"\",VLOOKUP(A20,Financeiro[[id_ação_Fonte_oculta]:[R$  Executado (2027)]],5,FALSE))","v":""},{"$f":"IF(VLOOKUP(A20,Financeiro[[id_ação_Fonte_oculta]:[R$  Executado (2027)]],4,FALSE)=0,\"\",VLOOKUP(A20,Financeiro[[id_ação_Fonte_oculta]:[R$  Executado (2027)]],8,FALSE))","v":""},{"$f":"IF(VLOOKUP(A20,Financeiro[[id_ação_Fonte_oculta]:[R$  Executado (2027)]],4,FALSE)=0,\"\",VLOOKUP(A20,Financeiro[[id_ação_Fonte_oculta]:[R$  Executado (2027)]],11,FALSE))","v":""},{"$f":"IF(VLOOKUP(A20,Financeiro[[id_ação_Fonte_oculta]:[R$  Executado (2027)]],4,FALSE)=0,\"\",VLOOKUP(A20,Financeiro[[id_ação_Fonte_oculta]:[R$  Executado (2027)]],14,FALSE))","v":""},0,{"$f":"IFERROR(INDEX(IdentAcoes[SubPDC],MATCH(B20,IdentAcoes[ID Ação],0)),\"\")","v":""},{"$f":"IFERROR(INDEX(IdentAcoes[Prioridade do PDC],MATCH(B20,IdentAcoes[ID Ação],0)),\"\")","v":""},{"$f":"IFERROR(INDEX(IdentAcoes[Segmento do executor],MATCH($B20,IdentAcoes[ID Ação],0)),\"\")","v":""},{"$f":"IFERROR(INDEX(IdentAcoes[Área de abrangência],MATCH($B20,IdentAcoes[ID Ação],0)),\"\")","v":""},{"$f":"IFERROR(INDEX(IdentAcoes[Detalhamento da área de abrangência],MATCH($B20,IdentAcoes[ID Ação],0)),\"\")","v":""}]
["","",{"$f":"INDEX(Financeiro[Descrição da ação],MATCH(B21,Financeiro[ID Ação], 0))","v":""},{"$f":"IF(INDEX('Acompanhamento das metas 24-27'!$C$2:$C$50,MATCH(B21,'Acompanhamento das metas 24-27'!$A$2:$A$50,0))<>0,INDEX('Acompanhamento das metas 24-27'!$C$2:$C$50,MATCH(B21,'Acompanhamento das metas 24-27'!$A$2:$A$50,0)),\"\")","v":""},{"$f":"IF(VLOOKUP(A21,Financeiro[[id_ação_Fonte_oculta]:[R$  Executado (2027)]],4,FALSE)=0,\"\",VLOOKUP(A21,Financeiro[[id_ação_Fonte_oculta]:[R$  Executado (2027)]],4,FALSE))","v":""},{"$f":"IF(VLOOKUP(A21,Financeiro[[id_ação_Fonte_oculta]:[R$  Executado (2027)]],4,FALSE)=0,\"\",VLOOKUP(A21,Financeiro[[id_ação_Fonte_oculta]:[R$  Executado (2027)]],5,FALSE))","v":""},{"$f":"IF(VLOOKUP(A21,Financeiro[[id_ação_Fonte_oculta]:[R$  Executado (2027)]],4,FALSE)=0,\"\",VLOOKUP(A21,Financeiro[[id_ação_Fonte_oculta]:[R$  Executado (2027)]],8,FALSE))","v":""},{"$f":"IF(VLOOKUP(A21,Financeiro[[id_ação_Fonte_oculta]:[R$  Executado (2027)]],4,FALSE)=0,\"\",VLOOKUP(A21,Financeiro[[id_ação_Fonte_oculta]:[R$  Executado (2027)]],11,FALSE))","v":""},{"$f":"IF(VLOOKUP(A21,Financeiro[[id_ação_Fonte_oculta]:[R$  Executado (2027)]],4,FALSE)=0,\"\",VLOOKUP(A21,Financeiro[[id_ação_Fonte_oculta]:[R$  Executado (2027)]],14,FALSE))","v":""},0,{"$f":"IFERROR(INDEX(IdentAcoes[SubPDC],MATCH(B21,IdentAcoes[ID Ação],0)),\"\")","v":""},{"$f":"IFERROR(INDEX(IdentAcoes[Prioridade do PDC],MATCH(B21,IdentAcoes[ID Ação],0)),\"\")","v":""},{"$f":"IFERROR(INDEX(IdentAcoes[Segmento do executor],MATCH($B21,IdentAcoes[ID Ação],0)),\"\")","v":""},{"$f":"IFERROR(INDEX(IdentAcoes[Área de abrangência],MATCH($B21,IdentAcoes[ID Ação],0)),\"\")","v":""},{"$f":"IFERROR(INDEX(IdentAcoes[Detalhamento da área de abrangência],MATCH($B21,IdentAcoes[ID Ação],0)),\"\")","v":""}]
["","",{"$f":"INDEX(Financeiro[Descrição da ação],MATCH(B22,Financeiro[ID Ação], 0))","v":""},{"$f":"IF(INDEX('Acompanhamento das metas 24-27'!$C$2:$C$50,MATCH(B22,'Acompanhamento das metas 24-27'!$A$2:$A$50,0))<>0,INDEX('Acompanhamento das metas 24-27'!$C$2:$C$50,MATCH(B22,'Acompanhamento das metas 24-27'!$A$2:$A$50,0)),\"\")","v":""},{"$f":"IF(VLOOKUP(A22,Financeiro[[id_ação_Fonte_oculta]:[R$  Executado (2027)]],4,FALSE)=0,\"\",VLOOKUP(A22,Financeiro[[id_ação_Fonte_oculta]:[R$  Executado (2027)]],4,FALSE))","v":""},{"$f":"IF(VLOOKUP(A22,Financeiro[[id_ação_Fonte_oculta]:[R$  Executado (2027)]],4,FALSE)=0,\"\",VLOOKUP(A22,Financeiro[[id_ação_Fonte_oculta]:[R$  Executado (2027)]],5,FALSE))","v":""},{"$f":"IF(VLOOKUP(A22,Financeiro[[id_ação_Fonte_oculta]:[R$  Executado (2027)]],4,FALSE)=0,\"\",VLOOKUP(A22,Financeiro[[id_ação_Fonte_oculta]:[R$  Executado (2027)]],8,FALSE))","v":""},{"$f":"IF(VLOOKUP(A22,Financeiro[[id_ação_Fonte_oculta]:[R$  Executado (2027)]],4,FALSE)=0,\"\",VLOOKUP(A22,Financeiro[[id_ação_Fonte_oculta]:[R$  Executado (2027)]],11,FALSE))","v":""},{"$f":"IF(VLOOKUP(A22,Financeiro[[id_ação_Fonte_oculta]:[R$  Executado (2027)]],4,FALSE)=0,\"\",VLOOKUP(A22,Financeiro[[id_ação_Fonte_oculta]:[R$  Executado (2027)]],14,FALSE))","v":""},0,{"$f":"IFERROR(INDEX(IdentAcoes[SubPDC],MATCH(B22,IdentAcoes[ID Ação],0)),\"\")","v":""},{"$f":"IFERROR(INDEX(IdentAcoes[Prioridade do PDC],MATCH(B22,IdentAcoes[ID Ação],0)),\"\")","v":""},{"$f":"IFERROR(INDEX(IdentAcoes[Segmento do executor],MATCH($B22,IdentAcoes[ID Ação],0)),\"\")","v":""},{"$f":"IFERROR(INDEX(IdentAcoes[Área de abrangência],MATCH($B22,IdentAcoes[ID Ação],0)),\"\")","v":""},{"$f":"IFERROR(INDEX(IdentAcoes[Detalhamento da área de abrangência],MATCH($B22,IdentAcoes[ID Ação],0)),\"\")","v":""}]
["","",{"$f":"INDEX(Financeiro[Descrição da ação],MATCH(B23,Financeiro[ID Ação], 0))","v":""},{"$f":"IF(INDEX('Acompanhamento das metas 24-27'!$C$2:$C$50,MATCH(B23,'Acompanhamento das metas 24-27'!$A$2:$A$50,0))<>0,INDEX('Acompanhamento das metas 24-27'!$C$2:$C$50,MATCH(B23,'Acompanhamento das metas 24-27'!$A$2:$A$50,0)),\"\")","v":""},{"$f":"IF(VLOOKUP(A23,Financeiro[[id_ação_Fonte_oculta]:[R$  Executado (2027)]],4,FALSE)=0,\"\",VLOOKUP(A23,Financeiro[[id_ação_Fonte_oculta]:[R$  Executado (2027)]],4,FALSE))","v":""},{"$f":"IF(VLOOKUP(A23,Financeiro[[id_ação_Fonte_oculta]:[R$  Executado (2027)]],4,FALSE)=0,\"\",VLOOKUP(A23,Financeiro[[id_ação_Fonte_oculta]:[R$  Executado (2027)]],5,FALSE))","v":""},{"$f":"IF(VLOOKUP(A23,Financeiro[[id_ação_Fonte_oculta]:[R$  Executado (2027)]],4,FALSE)=0,\"\",VLOOKUP(A23,Financeiro[[id_ação_Fonte_oculta]:[R$  Executado (2027)]],8,FALSE))","v":""},{"$f":"IF(VLOOKUP(A23,Financeiro[[id_ação_Fonte_oculta]:[R$  Executado (2027)]],4,FALSE)=0,\"\",VLOOKUP(A23,Financeiro[[id_ação_Fonte_oculta]:[R$  Executado (2027)]],11,FALSE))","v":""},{"$f":"IF(VLOOKUP(A23,Financeiro[[id_ação_Fonte_oculta]:[R$  Executado (2027)]],4,FALSE)=0,\"\",VLOOKUP(A23,Financeiro[[id_ação_Fonte_oculta]:[R$  Executado (2027)]],14,FALSE))","v":""},0,{"$f":"IFERROR(INDEX(IdentAcoes[SubPDC],MATCH(B23,IdentAcoes[ID Ação],0)),\"\")","v":""},{"$f":"IFERROR(INDEX(IdentAcoes[Prioridade do PDC],MATCH(B23,IdentAcoes[ID Ação],0)),\"\")","v":""},{"$f":"IFERROR(INDEX(IdentAcoes[Segmento do executor],MATCH($B23,IdentAcoes[ID Ação],0)),\"\")","v":""},{"$f":"IFERROR(INDEX(IdentAcoes[Área de abrangência],MATCH($B23,IdentAcoes[ID Ação],0)),\"\")","v":""},{"$f":"IFERROR(INDEX(IdentAcoes[Detalhamento da área de abrangência],MATCH($B23,IdentAcoes[ID Ação],0)),\"\")","v":""}]
["","",{"$f":"INDEX(Financeiro[Descrição da ação],MATCH(B24,Financeiro[ID Ação], 0))","v":""},{"$f":"IF(INDEX('Acompanhamento das metas 24-27'!$C$2:$C$50,MATCH(B24,'Acompanhamento das metas 24-27'!$A$2:$A$50,0))<>0,INDEX('Acompanhamento das metas 24-27'!$C$2:$C$50,MATCH(B24,'Acompanhamento das metas 24-27'!$A$2:$A$50,0)),\"\")","v":""},{"$f":"IF(VLOOKUP(A24,Financeiro[[id_ação_Fonte_oculta]:[R$  Executado (2027)]],4,FALSE)=0,\"\",VLOOKUP(A24,Financeiro[[id_ação_Fonte_oculta]:[R$  Executado (2027)]],4,FALSE))","v":""},{"$f":"IF(VLOOKUP(A24,Financeiro[[id_ação_Fonte_oculta]:[R$  Executado (2027)]],4,FALSE)=0,\"\",VLOOKUP(A24,Financeiro[[id_ação_Fonte_oculta]:[R$  Executado (2027)]],5,FALSE))","v":""},{"$f":"IF(VLOOKUP(A24,Financeiro[[id_ação_Fonte_oculta]:[R$  Executado (2027)]],4,FALSE)=0,\"\",VLOOKUP(A24,Financeiro[[id_ação_Fonte_oculta]:[R$  Executado (2027)]],8,FALSE))","v":""},{"$f":"IF(VLOOKUP(A24,Financeiro[[id_ação_Fonte_oculta]:[R$  Executado (2027)]],4,FALSE)=0,\"\",VLOOKUP(A24,Financeiro[[id_ação_Fonte_oculta]:[R$  Executado (2027)]],11,FALSE))","v":""},{"$f":"IF(VLOOKUP(A24,Financeiro[[id_ação_Fonte_oculta]:[R$  Executado (2027)]],4,FALSE)=0,\"\",VLOOKUP(A24,Financeiro[[id_ação_Fonte_oculta]:[R$  Executado (2027)]],14,FALSE))","v":""},0,{"$f":"IFERROR(INDEX(IdentAcoes[SubPDC],MATCH(B24,IdentAcoes[ID Ação],0)),\"\")","v":""},{"$f":"IFERROR(INDEX(IdentAcoes[Prioridade do PDC],MATCH(B24,IdentAcoes[ID Ação],0)),\"\")","v":""},{"$f":"IFERROR(INDEX(IdentAcoes[Segmento do executor],MATCH($B24,IdentAcoes[ID Ação],0)),\"\")","v":""},{"$f":"IFERROR(INDEX(IdentAcoes[Área de abrangência],MATCH($B24,IdentAcoes[ID Ação],0)),\"\")","v":""},{"$f":"IFERROR(INDEX(IdentAcoes[Detalhamento da área de abrangência],MATCH($B24,IdentAcoes[ID Ação],0)),\"\")","v":""}]
["","",{"$f":"INDEX(Financeiro[Descrição da ação],MATCH(B25,Financeiro[ID Ação], 0))","v":""},{"$f":"IF(INDEX('Acompanhamento das metas 24-27'!$C$2:$C$50,MATCH(B25,'Acompanhamento das metas 24-27'!$A$2:$A$50,0))<>0,INDEX('Acompanhamento das metas 24-27'!$C$2:$C$50,MATCH(B25,'Acompanhamento das metas 24-27'!$A$2:$A$50,0)),\"\")","v":""},{"$f":"IF(VLOOKUP(A25,Financeiro[[id_ação_Fonte_oculta]:[R$  Executado (2027)]],4,FALSE)=0,\"\",VLOOKUP(A25,Financeiro[[id_ação_Fonte_oculta]:[R$  Executado (2027)]],4,FALSE))","v":""},{"$f":"IF(VLOOKUP(A25,Financeiro[[id_ação_Fonte_oculta]:[R$  Executado (2027)]],4,FALSE)=0,\"\",VLOOKUP(A25,Financeiro[[id_ação_Fonte_oculta]:[R$  Executado (2027)]],5,FALSE))","v":""},{"$f":"IF(VLOOKUP(A25,Financeiro[[id_ação_Fonte_oculta]:[R$  Executado (2027)]],4,FALSE)=0,\"\",VLOOKUP(A25,Financeiro[[id_ação_Fonte_oculta]:[R$  Executado (2027)]],8,FALSE))","v":""},{"$f":"IF(VLOOKUP(A25,Financeiro[[id_ação_Fonte_oculta]:[R$  Executado (2027)]],4,FALSE)=0,\"\",VLOOKUP(A25,Financeiro[[id_ação_Fonte_oculta]:[R$  Executado (2027)]],11,FALSE))","v":""},{"$f":"IF(VLOOKUP(A25,Financeiro[[id_ação_Fonte_oculta]:[R$  Executado (2027)]],4,FALSE)=0,\"\",VLOOKUP(A25,Financeiro[[id_ação_Fonte_oculta]:[R$  Executado (2027)]],14,FALSE))","v":""},0,{"$f":"IFERROR(INDEX(IdentAcoes[SubPDC],MATCH(B25,IdentAcoes[ID Ação],0)),\"\")","v":""},{"$f":"IFERROR(INDEX(IdentAcoes[Prioridade do PDC],MATCH(B25,IdentAcoes[ID Ação],0)),\"\")","v":""},{"$f":"IFERROR(INDEX(IdentAcoes[Segmento do executor],MATCH($B25,IdentAcoes[ID Ação],0)),\"\")","v":""},{"$f":"IFERROR(INDEX(IdentAcoes[Área de abrangência],MATCH($B25,IdentAcoes[ID Ação],0)),\"\")","v":""},{"$f":"IFERROR(INDEX(IdentAcoes[Detalhamento da área de abrangência],MATCH($B25,IdentAcoes[ID Ação],0)),\"\")","v":""}]
["","",{"$f":"INDEX(Financeiro[Descrição da ação],MATCH(B26,Financeiro[ID Ação], 0))","v":""},{"$f":"IF(INDEX('Acompanhamento das metas 24-27'!$C$2:$C$50,MATCH(B26,'Acompanhamento das metas 24-27'!$A$2:$A$50,0))<>0,INDEX('Acompanhamento das metas 24-27'!$C$2:$C$50,MATCH(B26,'Acompanhamento das metas 24-27'!$A$2:$A$50,0)),\"\")","v":""},{"$f":"IF(VLOOKUP(A26,Financeiro[[id_ação_Fonte_oculta]:[R$  Executado (2027)]],4,FALSE)=0,\"\",VLOOKUP(A26,Financeiro[[id_ação_Fonte_oculta]:[R$  Executado (2027)]],4,FALSE))","v":""},{"$f":"IF(VLOOKUP(A26,Financeiro[[id_ação_Fonte_oculta]:[R$  Executado (2027)]],4,FALSE)=0,\"\",VLOOKUP(A26,Financeiro[[id_ação_Fonte_oculta]:[R$  Executado (2027)]],5,FALSE))","v":""},{"$f":"IF(VLOOKUP(A26,Financeiro[[id_ação_Fonte_oculta]:[R$  Executado (2027)]],4,FALSE)=0,\"\",VLOOKUP(A26,Financeiro[[id_ação_Fonte_oculta]:[R$  Executado (2027)]],8,FALSE))","v":""},{"$f":"IF(VLOOKUP(A26,Financeiro[[id_ação_Fonte_oculta]:[R$  Executado (2027)]],4,FALSE)=0,\"\",VLOOKUP(A26,Financeiro[[id_ação_Fonte_oculta]:[R$  Executado (2027)]],11,FALSE))","v":""},{"$f":"IF(VLOOKUP(A26,Financeiro[[id_ação_Fonte_oculta]:[R$  Executado (2027)]],4,FALSE)=0,\"\",VLOOKUP(A26,Financeiro[[id_ação_Fonte_oculta]:[R$  Executado (2027)]],14,FALSE))","v":""},0,{"$f":"IFERROR(INDEX(IdentAcoes[SubPDC],MATCH(B26,IdentAcoes[ID Ação],0)),\"\")","v":""},{"$f":"IFERROR(INDEX(IdentAcoes[Prioridade do PDC],MATCH(B26,IdentAcoes[ID Ação],0)),\"\")","v":""},{"$f":"IFERROR(INDEX(IdentAcoes[Segmento do executor],MATCH($B26,IdentAcoes[ID Ação],0)),\"\")","v":""},{"$f":"IFERROR(INDEX(IdentAcoes[Área de abrangência],MATCH($B26,IdentAcoes[ID Ação],0)),\"\")","v":""},{"$f":"IFERROR(INDEX(IdentAcoes[Detalhamento da área de abrangência],MATCH($B26,IdentAcoes[ID Ação],0)),\"\")","v":""}]
["","",{"$f":"INDEX(Financeiro[Descrição da ação],MATCH(B27,Financeiro[ID Ação], 0))","v":""},{"$f":"IF(INDEX('Acompanhamento das metas 24-27'!$C$2:$C$50,MATCH(B27,'Acompanhamento das metas 24-27'!$A$2:$A$50,0))<>0,INDEX('Acompanhamento das metas 24-27'!$C$2:$C$50,MATCH(B27,'Acompanhamento das metas 24-27'!$A$2:$A$50,0)),\"\")","v":""},{"$f":"IF(VLOOKUP(A27,Financeiro[[id_ação_Fonte_oculta]:[R$  Executado (2027)]],4,FALSE)=0,\"\",VLOOKUP(A27,Financeiro[[id_ação_Fonte_oculta]:[R$  Executado (2027)]],4,FALSE))","v":""},{"$f":"IF(VLOOKUP(A27,Financeiro[[id_ação_Fonte_oculta]:[R$  Executado (2027)]],4,FALSE)=0,\"\",VLOOKUP(A27,Financeiro[[id_ação_Fonte_oculta]:[R$  Executado (2027)]],5,FALSE))","v":""},{"$f":"IF(VLOOKUP(A27,Financeiro[[id_ação_Fonte_oculta]:[R$  Executado (2027)]],4,FALSE)=0,\"\",VLOOKUP(A27,Financeiro[[id_ação_Fonte_oculta]:[R$  Executado (2027)]],8,FALSE))","v":""},{"$f":"IF(VLOOKUP(A27,Financeiro[[id_ação_Fonte_oculta]:[R$  Executado (2027)]],4,FALSE)=0,\"\",VLOOKUP(A27,Financeiro[[id_ação_Fonte_oculta]:[R$  Executado (2027)]],11,FALSE))","v":""},{"$f":"IF(VLOOKUP(A27,Financeiro[[id_ação_Fonte_oculta]:[R$  Executado (2027)]],4,FALSE)=0,\"\",VLOOKUP(A27,Financeiro[[id_ação_Fonte_oculta]:[R$  Executado (2027)]],14,FALSE))","v":""},0,{"$f":"IFERROR(INDEX(IdentAcoes[SubPDC],MATCH(B27,IdentAcoes[ID Ação],0)),\"\")","v":""},{"$f":"IFERROR(INDEX(IdentAcoes[Prioridade do PDC],MATCH(B27,IdentAcoes[ID Ação],0)),\"\")","v":""},{"$f":"IFERROR(INDEX(IdentAcoes[Segmento do executor],MATCH($B27,IdentAcoes[ID Ação],0)),\"\")","v":""},{"$f":"IFERROR(INDEX(IdentAcoes[Área de abrangência],MATCH($B27,IdentAcoes[ID Ação],0)),\"\")","v":""},{"$f":"IFERROR(INDEX(IdentAcoes[Detalhamento da área de abrangência],MATCH($B27,IdentAcoes[ID Ação],0)),\"\")","v":""}]
["","",{"$f":"INDEX(Financeiro[Descrição da ação],MATCH(B28,Financeiro[ID Ação], 0))","v":""},{"$f":"IF(INDEX('Acompanhamento das metas 24-27'!$C$2:$C$50,MATCH(B28,'Acompanhamento das metas 24-27'!$A$2:$A$50,0))<>0,INDEX('Acompanhamento das metas 24-27'!$C$2:$C$50,MATCH(B28,'Acompanhamento das metas 24-27'!$A$2:$A$50,0)),\"\")","v":""},{"$f":"IF(VLOOKUP(A28,Financeiro[[id_ação_Fonte_oculta]:[R$  Executado (2027)]],4,FALSE)=0,\"\",VLOOKUP(A28,Financeiro[[id_ação_Fonte_oculta]:[R$  Executado (2027)]],4,FALSE))","v":""},{"$f":"IF(VLOOKUP(A28,Financeiro[[id_ação_Fonte_oculta]:[R$  Executado (2027)]],4,FALSE)=0,\"\",VLOOKUP(A28,Financeiro[[id_ação_Fonte_oculta]:[R$  Executado (2027)]],5,FALSE))","v":""},{"$f":"IF(VLOOKUP(A28,Financeiro[[id_ação_Fonte_oculta]:[R$  Executado (2027)]],4,FALSE)=0,\"\",VLOOKUP(A28,Financeiro[[id_ação_Fonte_oculta]:[R$  Executado (2027)]],8,FALSE))","v":""},{"$f":"IF(VLOOKUP(A28,Financeiro[[id_ação_Fonte_oculta]:[R$  Executado (2027)]],4,FALSE)=0,\"\",VLOOKUP(A28,Financeiro[[id_ação_Fonte_oculta]:[R$  Executado (2027)]],11,FALSE))","v":""},{"$f":"IF(VLOOKUP(A28,Financeiro[[id_ação_Fonte_oculta]:[R$  Executado (2027)]],4,FALSE)=0,\"\",VLOOKUP(A28,Financeiro[[id_ação_Fonte_oculta]:[R$  Executado (2027)]],14,FALSE))","v":""},0,{"$f":"IFERROR(INDEX(IdentAcoes[SubPDC],MATCH(B28,IdentAcoes[ID Ação],0)),\"\")","v":""},{"$f":"IFERROR(INDEX(IdentAcoes[Prioridade do PDC],MATCH(B28,IdentAcoes[ID Ação],0)),\"\")","v":""},{"$f":"IFERROR(INDEX(IdentAcoes[Segmento do executor],MATCH($B28,IdentAcoes[ID Ação],0)),\"\")","v":""},{"$f":"IFERROR(INDEX(IdentAcoes[Área de abrangência],MATCH($B28,IdentAcoes[ID Ação],0)),\"\")","v":""},{"$f":"IFERROR(INDEX(IdentAcoes[Detalhamento da área de abrangência],MATCH($B28,IdentAcoes[ID Ação],0)),\"\")","v":""}]
["","",{"$f":"INDEX(Financeiro[Descrição da ação],MATCH(B29,Financeiro[ID Ação], 0))","v":""},{"$f":"IF(INDEX('Acompanhamento das metas 24-27'!$C$2:$C$50,MATCH(B29,'Acompanhamento das metas 24-27'!$A$2:$A$50,0))<>0,INDEX('Acompanhamento das metas 24-27'!$C$2:$C$50,MATCH(B29,'Acompanhamento das metas 24-27'!$A$2:$A$50,0)),\"\")","v":""},{"$f":"IF(VLOOKUP(A29,Financeiro[[id_ação_Fonte_oculta]:[R$  Executado (2027)]],4,FALSE)=0,\"\",VLOOKUP(A29,Financeiro[[id_ação_Fonte_oculta]:[R$  Executado (2027)]],4,FALSE))","v":""},{"$f":"IF(VLOOKUP(A29,Financeiro[[id_ação_Fonte_oculta]:[R$  Executado (2027)]],4,FALSE)=0,\"\",VLOOKUP(A29,Financeiro[[id_ação_Fonte_oculta]:[R$  Executado (2027)]],5,FALSE))","v":""},{"$f":"IF(VLOOKUP(A29,Financeiro[[id_ação_Fonte_oculta]:[R$  Executado (2027)]],4,FALSE)=0,\"\",VLOOKUP(A29,Financeiro[[id_ação_Fonte_oculta]:[R$  Executado (2027)]],8,FALSE))","v":""},{"$f":"IF(VLOOKUP(A29,Financeiro[[id_ação_Fonte_oculta]:[R$  Executado (2027)]],4,FALSE)=0,\"\",VLOOKUP(A29,Financeiro[[id_ação_Fonte_oculta]:[R$  Executado (2027)]],11,FALSE))","v":""},{"$f":"IF(VLOOKUP(A29,Financeiro[[id_ação_Fonte_oculta]:[R$  Executado (2027)]],4,FALSE)=0,\"\",VLOOKUP(A29,Financeiro[[id_ação_Fonte_oculta]:[R$  Executado (2027)]],14,FALSE))","v":""},0,{"$f":"IFERROR(INDEX(IdentAcoes[SubPDC],MATCH(B29,IdentAcoes[ID Ação],0)),\"\")","v":""},{"$f":"IFERROR(INDEX(IdentAcoes[Prioridade do PDC],MATCH(B29,IdentAcoes[ID Ação],0)),\"\")","v":""},{"$f":"IFERROR(INDEX(IdentAcoes[Segmento do executor],MATCH($B29,IdentAcoes[ID Ação],0)),\"\")","v":""},{"$f":"IFERROR(INDEX(IdentAcoes[Área de abrangência],MATCH($B29,IdentAcoes[ID Ação],0)),\"\")","v":""},{"$f":"IFERROR(INDEX(IdentAcoes[Detalhamento da área de abrangência],MATCH($B29,IdentAcoes[ID Ação],0)),\"\")","v":""}]
["","",{"$f":"INDEX(Financeiro[Descrição da ação],MATCH(B30,Financeiro[ID Ação], 0))","v":""},{"$f":"IF(INDEX('Acompanhamento das metas 24-27'!$C$2:$C$50,MATCH(B30,'Acompanhamento das metas 24-27'!$A$2:$A$50,0))<>0,INDEX('Acompanhamento das metas 24-27'!$C$2:$C$50,MATCH(B30,'Acompanhamento das metas 24-27'!$A$2:$A$50,0)),\"\")","v":""},{"$f":"IF(VLOOKUP(A30,Financeiro[[id_ação_Fonte_oculta]:[R$  Executado (2027)]],4,FALSE)=0,\"\",VLOOKUP(A30,Financeiro[[id_ação_Fonte_oculta]:[R$  Executado (2027)]],4,FALSE))","v":""},{"$f":"IF(VLOOKUP(A30,Financeiro[[id_ação_Fonte_oculta]:[R$  Executado (2027)]],4,FALSE)=0,\"\",VLOOKUP(A30,Financeiro[[id_ação_Fonte_oculta]:[R$  Executado (2027)]],5,FALSE))","v":""},{"$f":"IF(VLOOKUP(A30,Financeiro[[id_ação_Fonte_oculta]:[R$  Executado (2027)]],4,FALSE)=0,\"\",VLOOKUP(A30,Financeiro[[id_ação_Fonte_oculta]:[R$  Executado (2027)]],8,FALSE))","v":""},{"$f":"IF(VLOOKUP(A30,Financeiro[[id_ação_Fonte_oculta]:[R$  Executado (2027)]],4,FALSE)=0,\"\",VLOOKUP(A30,Financeiro[[id_ação_Fonte_oculta]:[R$  Executado (2027)]],11,FALSE))","v":""},{"$f":"IF(VLOOKUP(A30,Financeiro[[id_ação_Fonte_oculta]:[R$  Executado (2027)]],4,FALSE)=0,\"\",VLOOKUP(A30,Financeiro[[id_ação_Fonte_oculta]:[R$  Executado (2027)]],14,FALSE))","v":""},0,{"$f":"IFERROR(INDEX(IdentAcoes[SubPDC],MATCH(B30,IdentAcoes[ID Ação],0)),\"\")","v":""},{"$f":"IFERROR(INDEX(IdentAcoes[Prioridade do PDC],MATCH(B30,IdentAcoes[ID Ação],0)),\"\")","v":""},{"$f":"IFERROR(INDEX(IdentAcoes[Segmento do executor],MATCH($B30,IdentAcoes[ID Ação],0)),\"\")","v":""},{"$f":"IFERROR(INDEX(IdentAcoes[Área de abrangência],MATCH($B30,IdentAcoes[ID Ação],0)),\"\")","v":""},{"$f":"IFERROR(INDEX(IdentAcoes[Detalhamento da área de abrangência],MATCH($B30,IdentAcoes[ID Ação],0)),\"\")","v":""}]
["","",{"$f":"INDEX(Financeiro[Descrição da ação],MATCH(B31,Financeiro[ID Ação], 0))","v":""},{"$f":"IF(INDEX('Acompanhamento das metas 24-27'!$C$2:$C$50,MATCH(B31,'Acompanhamento das metas 24-27'!$A$2:$A$50,0))<>0,INDEX('Acompanhamento das metas 24-27'!$C$2:$C$50,MATCH(B31,'Acompanhamento das metas 24-27'!$A$2:$A$50,0)),\"\")","v":""},{"$f":"IF(VLOOKUP(A31,Financeiro[[id_ação_Fonte_oculta]:[R$  Executado (2027)]],4,FALSE)=0,\"\",VLOOKUP(A31,Financeiro[[id_ação_Fonte_oculta]:[R$  Executado (2027)]],4,FALSE))","v":""},{"$f":"IF(VLOOKUP(A31,Financeiro[[id_ação_Fonte_oculta]:[R$  Executado (2027)]],4,FALSE)=0,\"\",VLOOKUP(A31,Financeiro[[id_ação_Fonte_oculta]:[R$  Executado (2027)]],5,FALSE))","v":""},{"$f":"IF(VLOOKUP(A31,Financeiro[[id_ação_Fonte_oculta]:[R$  Executado (2027)]],4,FALSE)=0,\"\",VLOOKUP(A31,Financeiro[[id_ação_Fonte_oculta]:[R$  Executado (2027)]],8,FALSE))","v":""},{"$f":"IF(VLOOKUP(A31,Financeiro[[id_ação_Fonte_oculta]:[R$  Executado (2027)]],4,FALSE)=0,\"\",VLOOKUP(A31,Financeiro[[id_ação_Fonte_oculta]:[R$  Executado (2027)]],11,FALSE))","v":""},{"$f":"IF(VLOOKUP(A31,Financeiro[[id_ação_Fonte_oculta]:[R$  Executado (2027)]],4,FALSE)=0,\"\",VLOOKUP(A31,Financeiro[[id_ação_Fonte_oculta]:[R$  Executado (2027)]],14,FALSE))","v":""},0,{"$f":"IFERROR(INDEX(IdentAcoes[SubPDC],MATCH(B31,IdentAcoes[ID Ação],0)),\"\")","v":""},{"$f":"IFERROR(INDEX(IdentAcoes[Prioridade do PDC],MATCH(B31,IdentAcoes[ID Ação],0)),\"\")","v":""},{"$f":"IFERROR(INDEX(IdentAcoes[Segmento do executor],MATCH($B31,IdentAcoes[ID Ação],0)),\"\")","v":""},{"$f":"IFERROR(INDEX(IdentAcoes[Área de abrangência],MATCH($B31,IdentAcoes[ID Ação],0)),\"\")","v":""},{"$f":"IFERROR(INDEX(IdentAcoes[Detalhamento da área de abrangência],MATCH($B31,IdentAcoes[ID Ação],0)),\"\")","v":""}]
["","",{"$f":"INDEX(Financeiro[Descrição da ação],MATCH(B32,Financeiro[ID Ação], 0))","v":""},{"$f":"IF(INDEX('Acompanhamento das metas 24-27'!$C$2:$C$50,MATCH(B32,'Acompanhamento das metas 24-27'!$A$2:$A$50,0))<>0,INDEX('Acompanhamento das metas 24-27'!$C$2:$C$50,MATCH(B32,'Acompanhamento das metas 24-27'!$A$2:$A$50,0)),\"\")","v":""},{"$f":"IF(VLOOKUP(A32,Financeiro[[id_ação_Fonte_oculta]:[R$  Executado (2027)]],4,FALSE)=0,\"\",VLOOKUP(A32,Financeiro[[id_ação_Fonte_oculta]:[R$  Executado (2027)]],4,FALSE))","v":""},{"$f":"IF(VLOOKUP(A32,Financeiro[[id_ação_Fonte_oculta]:[R$  Executado (2027)]],4,FALSE)=0,\"\",VLOOKUP(A32,Financeiro[[id_ação_Fonte_oculta]:[R$  Executado (2027)]],5,FALSE))","v":""},{"$f":"IF(VLOOKUP(A32,Financeiro[[id_ação_Fonte_oculta]:[R$  Executado (2027)]],4,FALSE)=0,\"\",VLOOKUP(A32,Financeiro[[id_ação_Fonte_oculta]:[R$  Executado (2027)]],8,FALSE))","v":""},{"$f":"IF(VLOOKUP(A32,Financeiro[[id_ação_Fonte_oculta]:[R$  Executado (2027)]],4,FALSE)=0,\"\",VLOOKUP(A32,Financeiro[[id_ação_Fonte_oculta]:[R$  Executado (2027)]],11,FALSE))","v":""},{"$f":"IF(VLOOKUP(A32,Financeiro[[id_ação_Fonte_oculta]:[R$  Executado (2027)]],4,FALSE)=0,\"\",VLOOKUP(A32,Financeiro[[id_ação_Fonte_oculta]:[R$  Executado (2027)]],14,FALSE))","v":""},0,{"$f":"IFERROR(INDEX(IdentAcoes[SubPDC],MATCH(B32,IdentAcoes[ID Ação],0)),\"\")","v":""},{"$f":"IFERROR(INDEX(IdentAcoes[Prioridade do PDC],MATCH(B32,IdentAcoes[ID Ação],0)),\"\")","v":""},{"$f":"IFERROR(INDEX(IdentAcoes[Segmento do executor],MATCH($B32,IdentAcoes[ID Ação],0)),\"\")","v":""},{"$f":"IFERROR(INDEX(IdentAcoes[Área de abrangência],MATCH($B32,IdentAcoes[ID Ação],0)),\"\")","v":""},{"$f":"IFERROR(INDEX(IdentAcoes[Detalhamento da área de abrangência],MATCH($B32,IdentAcoes[ID Ação],0)),\"\")","v":""}]
["","",{"$f":"INDEX(Financeiro[Descrição da ação],MATCH(B33,Financeiro[ID Ação], 0))","v":""},{"$f":"IF(INDEX('Acompanhamento das metas 24-27'!$C$2:$C$50,MATCH(B33,'Acompanhamento das metas 24-27'!$A$2:$A$50,0))<>0,INDEX('Acompanhamento das metas 24-27'!$C$2:$C$50,MATCH(B33,'Acompanhamento das metas 24-27'!$A$2:$A$50,0)),\"\")","v":""},{"$f":"IF(VLOOKUP(A33,Financeiro[[id_ação_Fonte_oculta]:[R$  Executado (2027)]],4,FALSE)=0,\"\",VLOOKUP(A33,Financeiro[[id_ação_Fonte_oculta]:[R$  Executado (2027)]],4,FALSE))","v":""},{"$f":"IF(VLOOKUP(A33,Financeiro[[id_ação_Fonte_oculta]:[R$  Executado (2027)]],4,FALSE)=0,\"\",VLOOKUP(A33,Financeiro[[id_ação_Fonte_oculta]:[R$  Executado (2027)]],5,FALSE))","v":""},{"$f":"IF(VLOOKUP(A33,Financeiro[[id_ação_Fonte_oculta]:[R$  Executado (2027)]],4,FALSE)=0,\"\",VLOOKUP(A33,Financeiro[[id_ação_Fonte_oculta]:[R$  Executado (2027)]],8,FALSE))","v":""},{"$f":"IF(VLOOKUP(A33,Financeiro[[id_ação_Fonte_oculta]:[R$  Executado (2027)]],4,FALSE)=0,\"\",VLOOKUP(A33,Financeiro[[id_ação_Fonte_oculta]:[R$  Executado (2027)]],11,FALSE))","v":""},{"$f":"IF(VLOOKUP(A33,Financeiro[[id_ação_Fonte_oculta]:[R$  Executado (2027)]],4,FALSE)=0,\"\",VLOOKUP(A33,Financeiro[[id_ação_Fonte_oculta]:[R$  Executado (2027)]],14,FALSE))","v":""},0,{"$f":"IFERROR(INDEX(IdentAcoes[SubPDC],MATCH(B33,IdentAcoes[ID Ação],0)),\"\")","v":""},{"$f":"IFERROR(INDEX(IdentAcoes[Prioridade do PDC],MATCH(B33,IdentAcoes[ID Ação],0)),\"\")","v":""},{"$f":"IFERROR(INDEX(IdentAcoes[Segmento do executor],MATCH($B33,IdentAcoes[ID Ação],0)),\"\")","v":""},{"$f":"IFERROR(INDEX(IdentAcoes[Área de abrangência],MATCH($B33,IdentAcoes[ID Ação],0)),\"\")","v":""},{"$f":"IFERROR(INDEX(IdentAcoes[Detalhamento da área de abrangência],MATCH($B33,IdentAcoes[ID Ação],0)),\"\")","v":""}]
["","",{"$f":"INDEX(Financeiro[Descrição da ação],MATCH(B34,Financeiro[ID Ação], 0))","v":""},{"$f":"IF(INDEX('Acompanhamento das metas 24-27'!$C$2:$C$50,MATCH(B34,'Acompanhamento das metas 24-27'!$A$2:$A$50,0))<>0,INDEX('Acompanhamento das metas 24-27'!$C$2:$C$50,MATCH(B34,'Acompanhamento das metas 24-27'!$A$2:$A$50,0)),\"\")","v":""},{"$f":"IF(VLOOKUP(A34,Financeiro[[id_ação_Fonte_oculta]:[R$  Executado (2027)]],4,FALSE)=0,\"\",VLOOKUP(A34,Financeiro[[id_ação_Fonte_oculta]:[R$  Executado (2027)]],4,FALSE))","v":""},{"$f":"IF(VLOOKUP(A34,Financeiro[[id_ação_Fonte_oculta]:[R$  Executado (2027)]],4,FALSE)=0,\"\",VLOOKUP(A34,Financeiro[[id_ação_Fonte_oculta]:[R$  Executado (2027)]],5,FALSE))","v":""},{"$f":"IF(VLOOKUP(A34,Financeiro[[id_ação_Fonte_oculta]:[R$  Executado (2027)]],4,FALSE)=0,\"\",VLOOKUP(A34,Financeiro[[id_ação_Fonte_oculta]:[R$  Executado (2027)]],8,FALSE))","v":""},{"$f":"IF(VLOOKUP(A34,Financeiro[[id_ação_Fonte_oculta]:[R$  Executado (2027)]],4,FALSE)=0,\"\",VLOOKUP(A34,Financeiro[[id_ação_Fonte_oculta]:[R$  Executado (2027)]],11,FALSE))","v":""},{"$f":"IF(VLOOKUP(A34,Financeiro[[id_ação_Fonte_oculta]:[R$  Executado (2027)]],4,FALSE)=0,\"\",VLOOKUP(A34,Financeiro[[id_ação_Fonte_oculta]:[R$  Executado (2027)]],14,FALSE))","v":""},0,{"$f":"IFERROR(INDEX(IdentAcoes[SubPDC],MATCH(B34,IdentAcoes[ID Ação],0)),\"\")","v":""},{"$f":"IFERROR(INDEX(IdentAcoes[Prioridade do PDC],MATCH(B34,IdentAcoes[ID Ação],0)),\"\")","v":""},{"$f":"IFERROR(INDEX(IdentAcoes[Segmento do executor],MATCH($B34,IdentAcoes[ID Ação],0)),\"\")","v":""},{"$f":"IFERROR(INDEX(IdentAcoes[Área de abrangência],MATCH($B34,IdentAcoes[ID Ação],0)),\"\")","v":""},{"$f":"IFERROR(INDEX(IdentAcoes[Detalhamento da área de abrangência],MATCH($B34,IdentAcoes[ID Ação],0)),\"\")","v":""}]
["","",{"$f":"INDEX(Financeiro[Descrição da ação],MATCH(B35,Financeiro[ID Ação], 0))","v":""},{"$f":"IF(INDEX('Acompanhamento das metas 24-27'!$C$2:$C$50,MATCH(B35,'Acompanhamento das metas 24-27'!$A$2:$A$50,0))<>0,INDEX('Acompanhamento das metas 24-27'!$C$2:$C$50,MATCH(B35,'Acompanhamento das metas 24-27'!$A$2:$A$50,0)),\"\")","v":""},{"$f":"IF(VLOOKUP(A35,Financeiro[[id_ação_Fonte_oculta]:[R$  Executado (2027)]],4,FALSE)=0,\"\",VLOOKUP(A35,Financeiro[[id_ação_Fonte_oculta]:[R$  Executado (2027)]],4,FALSE))","v":""},{"$f":"IF(VLOOKUP(A35,Financeiro[[id_ação_Fonte_oculta]:[R$  Executado (2027)]],4,FALSE)=0,\"\",VLOOKUP(A35,Financeiro[[id_ação_Fonte_oculta]:[R$  Executado (2027)]],5,FALSE))","v":""},{"$f":"IF(VLOOKUP(A35,Financeiro[[id_ação_Fonte_oculta]:[R$  Executado (2027)]],4,FALSE)=0,\"\",VLOOKUP(A35,Financeiro[[id_ação_Fonte_oculta]:[R$  Executado (2027)]],8,FALSE))","v":""},{"$f":"IF(VLOOKUP(A35,Financeiro[[id_ação_Fonte_oculta]:[R$  Executado (2027)]],4,FALSE)=0,\"\",VLOOKUP(A35,Financeiro[[id_ação_Fonte_oculta]:[R$  Executado (2027)]],11,FALSE))","v":""},{"$f":"IF(VLOOKUP(A35,Financeiro[[id_ação_Fonte_oculta]:[R$  Executado (2027)]],4,FALSE)=0,\"\",VLOOKUP(A35,Financeiro[[id_ação_Fonte_oculta]:[R$  Executado (2027)]],14,FALSE))","v":""},0,{"$f":"IFERROR(INDEX(IdentAcoes[SubPDC],MATCH(B35,IdentAcoes[ID Ação],0)),\"\")","v":""},{"$f":"IFERROR(INDEX(IdentAcoes[Prioridade do PDC],MATCH(B35,IdentAcoes[ID Ação],0)),\"\")","v":""},{"$f":"IFERROR(INDEX(IdentAcoes[Segmento do executor],MATCH($B35,IdentAcoes[ID Ação],0)),\"\")","v":""},{"$f":"IFERROR(INDEX(IdentAcoes[Área de abrangência],MATCH($B35,IdentAcoes[ID Ação],0)),\"\")","v":""},{"$f":"IFERROR(INDEX(IdentAcoes[Detalhamento da área de abrangência],MATCH($B35,IdentAcoes[ID Ação],0)),\"\")","v":""}]
["","",{"$f":"INDEX(Financeiro[Descrição da ação],MATCH(B36,Financeiro[ID Ação], 0))","v":""},{"$f":"IF(INDEX('Acompanhamento das metas 24-27'!$C$2:$C$50,MATCH(B36,'Acompanhamento das metas 24-27'!$A$2:$A$50,0))<>0,INDEX('Acompanhamento das metas 24-27'!$C$2:$C$50,MATCH(B36,'Acompanhamento das metas 24-27'!$A$2:$A$50,0)),\"\")","v":""},{"$f":"IF(VLOOKUP(A36,Financeiro[[id_ação_Fonte_oculta]:[R$  Executado (2027)]],4,FALSE)=0,\"\",VLOOKUP(A36,Financeiro[[id_ação_Fonte_oculta]:[R$  Executado (2027)]],4,FALSE))","v":""},{"$f":"IF(VLOOKUP(A36,Financeiro[[id_ação_Fonte_oculta]:[R$  Executado (2027)]],4,FALSE)=0,\"\",VLOOKUP(A36,Financeiro[[id_ação_Fonte_oculta]:[R$  Executado (2027)]],5,FALSE))","v":""},{"$f":"IF(VLOOKUP(A36,Financeiro[[id_ação_Fonte_oculta]:[R$  Executado (2027)]],4,FALSE)=0,\"\",VLOOKUP(A36,Financeiro[[id_ação_Fonte_oculta]:[R$  Executado (2027)]],8,FALSE))","v":""},{"$f":"IF(VLOOKUP(A36,Financeiro[[id_ação_Fonte_oculta]:[R$  Executado (2027)]],4,FALSE)=0,\"\",VLOOKUP(A36,Financeiro[[id_ação_Fonte_oculta]:[R$  Executado (2027)]],11,FALSE))","v":""},{"$f":"IF(VLOOKUP(A36,Financeiro[[id_ação_Fonte_oculta]:[R$  Executado (2027)]],4,FALSE)=0,\"\",VLOOKUP(A36,Financeiro[[id_ação_Fonte_oculta]:[R$  Executado (2027)]],14,FALSE))","v":""},0,{"$f":"IFERROR(INDEX(IdentAcoes[SubPDC],MATCH(B36,IdentAcoes[ID Ação],0)),\"\")","v":""},{"$f":"IFERROR(INDEX(IdentAcoes[Prioridade do PDC],MATCH(B36,IdentAcoes[ID Ação],0)),\"\")","v":""},{"$f":"IFERROR(INDEX(IdentAcoes[Segmento do executor],MATCH($B36,IdentAcoes[ID Ação],0)),\"\")","v":""},{"$f":"IFERROR(INDEX(IdentAcoes[Área de abrangência],MATCH($B36,IdentAcoes[ID Ação],0)),\"\")","v":""},{"$f":"IFERROR(INDEX(IdentAcoes[Detalhamento da área de abrangência],MATCH($B36,IdentAcoes[ID Ação],0)),\"\")","v":""}]
["","",{"$f":"INDEX(Financeiro[Descrição da ação],MATCH(B37,Financeiro[ID Ação], 0))","v":""},{"$f":"IF(INDEX('Acompanhamento das metas 24-27'!$C$2:$C$50,MATCH(B37,'Acompanhamento das metas 24-27'!$A$2:$A$50,0))<>0,INDEX('Acompanhamento das metas 24-27'!$C$2:$C$50,MATCH(B37,'Acompanhamento das metas 24-27'!$A$2:$A$50,0)),\"\")","v":""},{"$f":"IF(VLOOKUP(A37,Financeiro[[id_ação_Fonte_oculta]:[R$  Executado (2027)]],4,FALSE)=0,\"\",VLOOKUP(A37,Financeiro[[id_ação_Fonte_oculta]:[R$  Executado (2027)]],4,FALSE))","v":""},{"$f":"IF(VLOOKUP(A37,Financeiro[[id_ação_Fonte_oculta]:[R$  Executado (2027)]],4,FALSE)=0,\"\",VLOOKUP(A37,Financeiro[[id_ação_Fonte_oculta]:[R$  Executado (2027)]],5,FALSE))","v":""},{"$f":"IF(VLOOKUP(A37,Financeiro[[id_ação_Fonte_oculta]:[R$  Executado (2027)]],4,FALSE)=0,\"\",VLOOKUP(A37,Financeiro[[id_ação_Fonte_oculta]:[R$  Executado (2027)]],8,FALSE))","v":""},{"$f":"IF(VLOOKUP(A37,Financeiro[[id_ação_Fonte_oculta]:[R$  Executado (2027)]],4,FALSE)=0,\"\",VLOOKUP(A37,Financeiro[[id_ação_Fonte_oculta]:[R$  Executado (2027)]],11,FALSE))","v":""},{"$f":"IF(VLOOKUP(A37,Financeiro[[id_ação_Fonte_oculta]:[R$  Executado (2027)]],4,FALSE)=0,\"\",VLOOKUP(A37,Financeiro[[id_ação_Fonte_oculta]:[R$  Executado (2027)]],14,FALSE))","v":""},0,{"$f":"IFERROR(INDEX(IdentAcoes[SubPDC],MATCH(B37,IdentAcoes[ID Ação],0)),\"\")","v":""},{"$f":"IFERROR(INDEX(IdentAcoes[Prioridade do PDC],MATCH(B37,IdentAcoes[ID Ação],0)),\"\")","v":""},{"$f":"IFERROR(INDEX(IdentAcoes[Segmento do executor],MATCH($B37,IdentAcoes[ID Ação],0)),\"\")","v":""},{"$f":"IFERROR(INDEX(IdentAcoes[Área de abrangência],MATCH($B37,IdentAcoes[ID Ação],0)),\"\")","v":""},{"$f":"IFERROR(INDEX(IdentAcoes[Detalhamento da área de abrangência],MATCH($B37,IdentAcoes[ID Ação],0)),\"\")","v":""}]
["","",{"$f":"INDEX(Financeiro[Descrição da ação],MATCH(B38,Financeiro[ID Ação], 0))","v":""},{"$f":"IF(INDEX('Acompanhamento das metas 24-27'!$C$2:$C$50,MATCH(B38,'Acompanhamento das metas 24-27'!$A$2:$A$50,0))<>0,INDEX('Acompanhamento das metas 24-27'!$C$2:$C$50,MATCH(B38,'Acompanhamento das metas 24-27'!$A$2:$A$50,0)),\"\")","v":""},{"$f":"IF(VLOOKUP(A38,Financeiro[[id_ação_Fonte_oculta]:[R$  Executado (2027)]],4,FALSE)=0,\"\",VLOOKUP(A38,Financeiro[[id_ação_Fonte_oculta]:[R$  Executado (2027)]],4,FALSE))","v":""},{"$f":"IF(VLOOKUP(A38,Financeiro[[id_ação_Fonte_oculta]:[R$  Executado (2027)]],4,FALSE)=0,\"\",VLOOKUP(A38,Financeiro[[id_ação_Fonte_oculta]:[R$  Executado (2027)]],5,FALSE))","v":""},{"$f":"IF(VLOOKUP(A38,Financeiro[[id_ação_Fonte_oculta]:[R$  Executado (2027)]],4,FALSE)=0,\"\",VLOOKUP(A38,Financeiro[[id_ação_Fonte_oculta]:[R$  Executado (2027)]],8,FALSE))","v":""},{"$f":"IF(VLOOKUP(A38,Financeiro[[id_ação_Fonte_oculta]:[R$  Executado (2027)]],4,FALSE)=0,\"\",VLOOKUP(A38,Financeiro[[id_ação_Fonte_oculta]:[R$  Executado (2027)]],11,FALSE))","v":""},{"$f":"IF(VLOOKUP(A38,Financeiro[[id_ação_Fonte_oculta]:[R$  Executado (2027)]],4,FALSE)=0,\"\",VLOOKUP(A38,Financeiro[[id_ação_Fonte_oculta]:[R$  Executado (2027)]],14,FALSE))","v":""},0,{"$f":"IFERROR(INDEX(IdentAcoes[SubPDC],MATCH(B38,IdentAcoes[ID Ação],0)),\"\")","v":""},{"$f":"IFERROR(INDEX(IdentAcoes[Prioridade do PDC],MATCH(B38,IdentAcoes[ID Ação],0)),\"\")","v":""},{"$f":"IFERROR(INDEX(IdentAcoes[Segmento do executor],MATCH($B38,IdentAcoes[ID Ação],0)),\"\")","v":""},{"$f":"IFERROR(INDEX(IdentAcoes[Área de abrangência],MATCH($B38,IdentAcoes[ID Ação],0)),\"\")","v":""},{"$f":"IFERROR(INDEX(IdentAcoes[Detalhamento da área de abrangência],MATCH($B38,IdentAcoes[ID Ação],0)),\"\")","v":""}]
["","",{"$f":"INDEX(Financeiro[Descrição da ação],MATCH(B39,Financeiro[ID Ação], 0))","v":""},{"$f":"IF(INDEX('Acompanhamento das metas 24-27'!$C$2:$C$50,MATCH(B39,'Acompanhamento das metas 24-27'!$A$2:$A$50,0))<>0,INDEX('Acompanhamento das metas 24-27'!$C$2:$C$50,MATCH(B39,'Acompanhamento das metas 24-27'!$A$2:$A$50,0)),\"\")","v":""},{"$f":"IF(VLOOKUP(A39,Financeiro[[id_ação_Fonte_oculta]:[R$  Executado (2027)]],4,FALSE)=0,\"\",VLOOKUP(A39,Financeiro[[id_ação_Fonte_oculta]:[R$  Executado (2027)]],4,FALSE))","v":""},{"$f":"IF(VLOOKUP(A39,Financeiro[[id_ação_Fonte_oculta]:[R$  Executado (2027)]],4,FALSE)=0,\"\",VLOOKUP(A39,Financeiro[[id_ação_Fonte_oculta]:[R$  Executado (2027)]],5,FALSE))","v":""},{"$f":"IF(VLOOKUP(A39,Financeiro[[id_ação_Fonte_oculta]:[R$  Executado (2027)]],4,FALSE)=0,\"\",VLOOKUP(A39,Financeiro[[id_ação_Fonte_oculta]:[R$  Executado (2027)]],8,FALSE))","v":""},{"$f":"IF(VLOOKUP(A39,Financeiro[[id_ação_Fonte_oculta]:[R$  Executado (2027)]],4,FALSE)=0,\"\",VLOOKUP(A39,Financeiro[[id_ação_Fonte_oculta]:[R$  Executado (2027)]],11,FALSE))","v":""},{"$f":"IF(VLOOKUP(A39,Financeiro[[id_ação_Fonte_oculta]:[R$  Executado (2027)]],4,FALSE)=0,\"\",VLOOKUP(A39,Financeiro[[id_ação_Fonte_oculta]:[R$  Executado (2027)]],14,FALSE))","v":""},0,{"$f":"IFERROR(INDEX(IdentAcoes[SubPDC],MATCH(B39,IdentAcoes[ID Ação],0)),\"\")","v":""},{"$f":"IFERROR(INDEX(IdentAcoes[Prioridade do PDC],MATCH(B39,IdentAcoes[ID Ação],0)),\"\")","v":""},{"$f":"IFERROR(INDEX(IdentAcoes[Segmento do executor],MATCH($B39,IdentAcoes[ID Ação],0)),\"\")","v":""},{"$f":"IFERROR(INDEX(IdentAcoes[Área de abrangência],MATCH($B39,IdentAcoes[ID Ação],0)),\"\")","v":""},{"$f":"IFERROR(INDEX(IdentAcoes[Detalhamento da área de abrangência],MATCH($B39,IdentAcoes[ID Ação],0)),\"\")","v":""}]
["","",{"$f":"INDEX(Financeiro[Descrição da ação],MATCH(B40,Financeiro[ID Ação], 0))","v":""},{"$f":"IF(INDEX('Acompanhamento das metas 24-27'!$C$2:$C$50,MATCH(B40,'Acompanhamento das metas 24-27'!$A$2:$A$50,0))<>0,INDEX('Acompanhamento das metas 24-27'!$C$2:$C$50,MATCH(B40,'Acompanhamento das metas 24-27'!$A$2:$A$50,0)),\"\")","v":""},{"$f":"IF(VLOOKUP(A40,Financeiro[[id_ação_Fonte_oculta]:[R$  Executado (2027)]],4,FALSE)=0,\"\",VLOOKUP(A40,Financeiro[[id_ação_Fonte_oculta]:[R$  Executado (2027)]],4,FALSE))","v":""},{"$f":"IF(VLOOKUP(A40,Financeiro[[id_ação_Fonte_oculta]:[R$  Executado (2027)]],4,FALSE)=0,\"\",VLOOKUP(A40,Financeiro[[id_ação_Fonte_oculta]:[R$  Executado (2027)]],5,FALSE))","v":""},{"$f":"IF(VLOOKUP(A40,Financeiro[[id_ação_Fonte_oculta]:[R$  Executado (2027)]],4,FALSE)=0,\"\",VLOOKUP(A40,Financeiro[[id_ação_Fonte_oculta]:[R$  Executado (2027)]],8,FALSE))","v":""},{"$f":"IF(VLOOKUP(A40,Financeiro[[id_ação_Fonte_oculta]:[R$  Executado (2027)]],4,FALSE)=0,\"\",VLOOKUP(A40,Financeiro[[id_ação_Fonte_oculta]:[R$  Executado (2027)]],11,FALSE))","v":""},{"$f":"IF(VLOOKUP(A40,Financeiro[[id_ação_Fonte_oculta]:[R$  Executado (2027)]],4,FALSE)=0,\"\",VLOOKUP(A40,Financeiro[[id_ação_Fonte_oculta]:[R$  Executado (2027)]],14,FALSE))","v":""},0,{"$f":"IFERROR(INDEX(IdentAcoes[SubPDC],MATCH(B40,IdentAcoes[ID Ação],0)),\"\")","v":""},{"$f":"IFERROR(INDEX(IdentAcoes[Prioridade do PDC],MATCH(B40,IdentAcoes[ID Ação],0)),\"\")","v":""},{"$f":"IFERROR(INDEX(IdentAcoes[Segmento do executor],MATCH($B40,IdentAcoes[ID Ação],0)),\"\")","v":""},{"$f":"IFERROR(INDEX(IdentAcoes[Área de abrangência],MATCH($B40,IdentAcoes[ID Ação],0)),\"\")","v":""},{"$f":"IFERROR(INDEX(IdentAcoes[Detalhamento da área de abrangência],MATCH($B40,IdentAcoes[ID Ação],0)),\"\")","v":""}]
["","",{"$f":"INDEX(Financeiro[Descrição da ação],MATCH(B41,Financeiro[ID Ação], 0))","v":""},{"$f":"IF(INDEX('Acompanhamento das metas 24-27'!$C$2:$C$50,MATCH(B41,'Acompanhamento das metas 24-27'!$A$2:$A$50,0))<>0,INDEX('Acompanhamento das metas 24-27'!$C$2:$C$50,MATCH(B41,'Acompanhamento das metas 24-27'!$A$2:$A$50,0)),\"\")","v":""},{"$f":"IF(VLOOKUP(A41,Financeiro[[id_ação_Fonte_oculta]:[R$  Executado (2027)]],4,FALSE)=0,\"\",VLOOKUP(A41,Financeiro[[id_ação_Fonte_oculta]:[R$  Executado (2027)]],4,FALSE))","v":""},{"$f":"IF(VLOOKUP(A41,Financeiro[[id_ação_Fonte_oculta]:[R$  Executado (2027)]],4,FALSE)=0,\"\",VLOOKUP(A41,Financeiro[[id_ação_Fonte_oculta]:[R$  Executado (2027)]],5,FALSE))","v":""},{"$f":"IF(VLOOKUP(A41,Financeiro[[id_ação_Fonte_oculta]:[R$  Executado (2027)]],4,FALSE)=0,\"\",VLOOKUP(A41,Financeiro[[id_ação_Fonte_oculta]:[R$  Executado (2027)]],8,FALSE))","v":""},{"$f":"IF(VLOOKUP(A41,Financeiro[[id_ação_Fonte_oculta]:[R$  Executado (2027)]],4,FALSE)=0,\"\",VLOOKUP(A41,Financeiro[[id_ação_Fonte_oculta]:[R$  Executado (2027)]],11,FALSE))","v":""},{"$f":"IF(VLOOKUP(A41,Financeiro[[id_ação_Fonte_oculta]:[R$  Executado (2027)]],4,FALSE)=0,\"\",VLOOKUP(A41,Financeiro[[id_ação_Fonte_oculta]:[R$  Executado (2027)]],14,FALSE))","v":""},0,{"$f":"IFERROR(INDEX(IdentAcoes[SubPDC],MATCH(B41,IdentAcoes[ID Ação],0)),\"\")","v":""},{"$f":"IFERROR(INDEX(IdentAcoes[Prioridade do PDC],MATCH(B41,IdentAcoes[ID Ação],0)),\"\")","v":""},{"$f":"IFERROR(INDEX(IdentAcoes[Segmento do executor],MATCH($B41,IdentAcoes[ID Ação],0)),\"\")","v":""},{"$f":"IFERROR(INDEX(IdentAcoes[Área de abrangência],MATCH($B41,IdentAcoes[ID Ação],0)),\"\")","v":""},{"$f":"IFERROR(INDEX(IdentAcoes[Detalhamento da área de abrangência],MATCH($B41,IdentAcoes[ID Ação],0)),\"\")","v":""}]
["","",{"$f":"INDEX(Financeiro[Descrição da ação],MATCH(B42,Financeiro[ID Ação], 0))","v":""},{"$f":"IF(INDEX('Acompanhamento das metas 24-27'!$C$2:$C$50,MATCH(B42,'Acompanhamento das metas 24-27'!$A$2:$A$50,0))<>0,INDEX('Acompanhamento das metas 24-27'!$C$2:$C$50,MATCH(B42,'Acompanhamento das metas 24-27'!$A$2:$A$50,0)),\"\")","v":""},{"$f":"IF(VLOOKUP(A42,Financeiro[[id_ação_Fonte_oculta]:[R$  Executado (2027)]],4,FALSE)=0,\"\",VLOOKUP(A42,Financeiro[[id_ação_Fonte_oculta]:[R$  Executado (2027)]],4,FALSE))","v":""},{"$f":"IF(VLOOKUP(A42,Financeiro[[id_ação_Fonte_oculta]:[R$  Executado (2027)]],4,FALSE)=0,\"\",VLOOKUP(A42,Financeiro[[id_ação_Fonte_oculta]:[R$  Executado (2027)]],5,FALSE))","v":""},{"$f":"IF(VLOOKUP(A42,Financeiro[[id_ação_Fonte_oculta]:[R$  Executado (2027)]],4,FALSE)=0,\"\",VLOOKUP(A42,Financeiro[[id_ação_Fonte_oculta]:[R$  Executado (2027)]],8,FALSE))","v":""},{"$f":"IF(VLOOKUP(A42,Financeiro[[id_ação_Fonte_oculta]:[R$  Executado (2027)]],4,FALSE)=0,\"\",VLOOKUP(A42,Financeiro[[id_ação_Fonte_oculta]:[R$  Executado (2027)]],11,FALSE))","v":""},{"$f":"IF(VLOOKUP(A42,Financeiro[[id_ação_Fonte_oculta]:[R$  Executado (2027)]],4,FALSE)=0,\"\",VLOOKUP(A42,Financeiro[[id_ação_Fonte_oculta]:[R$  Executado (2027)]],14,FALSE))","v":""},0,{"$f":"IFERROR(INDEX(IdentAcoes[SubPDC],MATCH(B42,IdentAcoes[ID Ação],0)),\"\")","v":""},{"$f":"IFERROR(INDEX(IdentAcoes[Prioridade do PDC],MATCH(B42,IdentAcoes[ID Ação],0)),\"\")","v":""},{"$f":"IFERROR(INDEX(IdentAcoes[Segmento do executor],MATCH($B42,IdentAcoes[ID Ação],0)),\"\")","v":""},{"$f":"IFERROR(INDEX(IdentAcoes[Área de abrangência],MATCH($B42,IdentAcoes[ID Ação],0)),\"\")","v":""},{"$f":"IFERROR(INDEX(IdentAcoes[Detalhamento da área de abrangência],MATCH($B42,IdentAcoes[ID Ação],0)),\"\")","v":""}]
["","",{"$f":"INDEX(Financeiro[Descrição da ação],MATCH(B43,Financeiro[ID Ação], 0))","v":""},{"$f":"IF(INDEX('Acompanhamento das metas 24-27'!$C$2:$C$50,MATCH(B43,'Acompanhamento das metas 24-27'!$A$2:$A$50,0))<>0,INDEX('Acompanhamento das metas 24-27'!$C$2:$C$50,MATCH(B43,'Acompanhamento das metas 24-27'!$A$2:$A$50,0)),\"\")","v":""},{"$f":"IF(VLOOKUP(A43,Financeiro[[id_ação_Fonte_oculta]:[R$  Executado (2027)]],4,FALSE)=0,\"\",VLOOKUP(A43,Financeiro[[id_ação_Fonte_oculta]:[R$  Executado (2027)]],4,FALSE))","v":""},{"$f":"IF(VLOOKUP(A43,Financeiro[[id_ação_Fonte_oculta]:[R$  Executado (2027)]],4,FALSE)=0,\"\",VLOOKUP(A43,Financeiro[[id_ação_Fonte_oculta]:[R$  Executado (2027)]],5,FALSE))","v":""},{"$f":"IF(VLOOKUP(A43,Financeiro[[id_ação_Fonte_oculta]:[R$  Executado (2027)]],4,FALSE)=0,\"\",VLOOKUP(A43,Financeiro[[id_ação_Fonte_oculta]:[R$  Executado (2027)]],8,FALSE))","v":""},{"$f":"IF(VLOOKUP(A43,Financeiro[[id_ação_Fonte_oculta]:[R$  Executado (2027)]],4,FALSE)=0,\"\",VLOOKUP(A43,Financeiro[[id_ação_Fonte_oculta]:[R$  Executado (2027)]],11,FALSE))","v":""},{"$f":"IF(VLOOKUP(A43,Financeiro[[id_ação_Fonte_oculta]:[R$  Executado (2027)]],4,FALSE)=0,\"\",VLOOKUP(A43,Financeiro[[id_ação_Fonte_oculta]:[R$  Executado (2027)]],14,FALSE))","v":""},0,{"$f":"IFERROR(INDEX(IdentAcoes[SubPDC],MATCH(B43,IdentAcoes[ID Ação],0)),\"\")","v":""},{"$f":"IFERROR(INDEX(IdentAcoes[Prioridade do PDC],MATCH(B43,IdentAcoes[ID Ação],0)),\"\")","v":""},{"$f":"IFERROR(INDEX(IdentAcoes[Segmento do executor],MATCH($B43,IdentAcoes[ID Ação],0)),\"\")","v":""},{"$f":"IFERROR(INDEX(IdentAcoes[Área de abrangência],MATCH($B43,IdentAcoes[ID Ação],0)),\"\")","v":""},{"$f":"IFERROR(INDEX(IdentAcoes[Detalhamento da área de abrangência],MATCH($B43,IdentAcoes[ID Ação],0)),\"\")","v":""}]
["","",{"$f":"INDEX(Financeiro[Descrição da ação],MATCH(B44,Financeiro[ID Ação], 0))","v":""},{"$f":"IF(INDEX('Acompanhamento das metas 24-27'!$C$2:$C$50,MATCH(B44,'Acompanhamento das metas 24-27'!$A$2:$A$50,0))<>0,INDEX('Acompanhamento das metas 24-27'!$C$2:$C$50,MATCH(B44,'Acompanhamento das metas 24-27'!$A$2:$A$50,0)),\"\")","v":""},{"$f":"IF(VLOOKUP(A44,Financeiro[[id_ação_Fonte_oculta]:[R$  Executado (2027)]],4,FALSE)=0,\"\",VLOOKUP(A44,Financeiro[[id_ação_Fonte_oculta]:[R$  Executado (2027)]],4,FALSE))","v":""},{"$f":"IF(VLOOKUP(A44,Financeiro[[id_ação_Fonte_oculta]:[R$  Executado (2027)]],4,FALSE)=0,\"\",VLOOKUP(A44,Financeiro[[id_ação_Fonte_oculta]:[R$  Executado (2027)]],5,FALSE))","v":""},{"$f":"IF(VLOOKUP(A44,Financeiro[[id_ação_Fonte_oculta]:[R$  Executado (2027)]],4,FALSE)=0,\"\",VLOOKUP(A44,Financeiro[[id_ação_Fonte_oculta]:[R$  Executado (2027)]],8,FALSE))","v":""},{"$f":"IF(VLOOKUP(A44,Financeiro[[id_ação_Fonte_oculta]:[R$  Executado (2027)]],4,FALSE)=0,\"\",VLOOKUP(A44,Financeiro[[id_ação_Fonte_oculta]:[R$  Executado (2027)]],11,FALSE))","v":""},{"$f":"IF(VLOOKUP(A44,Financeiro[[id_ação_Fonte_oculta]:[R$  Executado (2027)]],4,FALSE)=0,\"\",VLOOKUP(A44,Financeiro[[id_ação_Fonte_oculta]:[R$  Executado (2027)]],14,FALSE))","v":""},0,{"$f":"IFERROR(INDEX(IdentAcoes[SubPDC],MATCH(B44,IdentAcoes[ID Ação],0)),\"\")","v":""},{"$f":"IFERROR(INDEX(IdentAcoes[Prioridade do PDC],MATCH(B44,IdentAcoes[ID Ação],0)),\"\")","v":""},{"$f":"IFERROR(INDEX(IdentAcoes[Segmento do executor],MATCH($B44,IdentAcoes[ID Ação],0)),\"\")","v":""},{"$f":"IFERROR(INDEX(IdentAcoes[Área de abrangência],MATCH($B44,IdentAcoes[ID Ação],0)),\"\")","v":""},{"$f":"IFERROR(INDEX(IdentAcoes[Detalhamento da área de abrangência],MATCH($B44,IdentAcoes[ID Ação],0)),\"\")","v":""}]
["","",{"$f":"INDEX(Financeiro[Descrição da ação],MATCH(B45,Financeiro[ID Ação], 0))","v":""},{"$f":"IF(INDEX('Acompanhamento das metas 24-27'!$C$2:$C$50,MATCH(B45,'Acompanhamento das metas 24-27'!$A$2:$A$50,0))<>0,INDEX('Acompanhamento das metas 24-27'!$C$2:$C$50,MATCH(B45,'Acompanhamento das metas 24-27'!$A$2:$A$50,0)),\"\")","v":""},{"$f":"IF(VLOOKUP(A45,Financeiro[[id_ação_Fonte_oculta]:[R$  Executado (2027)]],4,FALSE)=0,\"\",VLOOKUP(A45,Financeiro[[id_ação_Fonte_oculta]:[R$  Executado (2027)]],4,FALSE))","v":""},{"$f":"IF(VLOOKUP(A45,Financeiro[[id_ação_Fonte_oculta]:[R$  Executado (2027)]],4,FALSE)=0,\"\",VLOOKUP(A45,Financeiro[[id_ação_Fonte_oculta]:[R$  Executado (2027)]],5,FALSE))","v":""},{"$f":"IF(VLOOKUP(A45,Financeiro[[id_ação_Fonte_oculta]:[R$  Executado (2027)]],4,FALSE)=0,\"\",VLOOKUP(A45,Financeiro[[id_ação_Fonte_oculta]:[R$  Executado (2027)]],8,FALSE))","v":""},{"$f":"IF(VLOOKUP(A45,Financeiro[[id_ação_Fonte_oculta]:[R$  Executado (2027)]],4,FALSE)=0,\"\",VLOOKUP(A45,Financeiro[[id_ação_Fonte_oculta]:[R$  Executado (2027)]],11,FALSE))","v":""},{"$f":"IF(VLOOKUP(A45,Financeiro[[id_ação_Fonte_oculta]:[R$  Executado (2027)]],4,FALSE)=0,\"\",VLOOKUP(A45,Financeiro[[id_ação_Fonte_oculta]:[R$  Executado (2027)]],14,FALSE))","v":""},0,{"$f":"IFERROR(INDEX(IdentAcoes[SubPDC],MATCH(B45,IdentAcoes[ID Ação],0)),\"\")","v":""},{"$f":"IFERROR(INDEX(IdentAcoes[Prioridade do PDC],MATCH(B45,IdentAcoes[ID Ação],0)),\"\")","v":""},{"$f":"IFERROR(INDEX(IdentAcoes[Segmento do executor],MATCH($B45,IdentAcoes[ID Ação],0)),\"\")","v":""},{"$f":"IFERROR(INDEX(IdentAcoes[Área de abrangência],MATCH($B45,IdentAcoes[ID Ação],0)),\"\")","v":""},{"$f":"IFERROR(INDEX(IdentAcoes[Detalhamento da área de abrangência],MATCH($B45,IdentAcoes[ID Ação],0)),\"\")","v":""}]
["","",{"$f":"INDEX(Financeiro[Descrição da ação],MATCH(B46,Financeiro[ID Ação], 0))","v":""},{"$f":"IF(INDEX('Acompanhamento das metas 24-27'!$C$2:$C$50,MATCH(B46,'Acompanhamento das metas 24-27'!$A$2:$A$50,0))<>0,INDEX('Acompanhamento das metas 24-27'!$C$2:$C$50,MATCH(B46,'Acompanhamento das metas 24-27'!$A$2:$A$50,0)),\"\")","v":""},{"$f":"IF(VLOOKUP(A46,Financeiro[[id_ação_Fonte_oculta]:[R$  Executado (2027)]],4,FALSE)=0,\"\",VLOOKUP(A46,Financeiro[[id_ação_Fonte_oculta]:[R$  Executado (2027)]],4,FALSE))","v":""},{"$f":"IF(VLOOKUP(A46,Financeiro[[id_ação_Fonte_oculta]:[R$  Executado (2027)]],4,FALSE)=0,\"\",VLOOKUP(A46,Financeiro[[id_ação_Fonte_oculta]:[R$  Executado (2027)]],5,FALSE))","v":""},{"$f":"IF(VLOOKUP(A46,Financeiro[[id_ação_Fonte_oculta]:[R$  Executado (2027)]],4,FALSE)=0,\"\",VLOOKUP(A46,Financeiro[[id_ação_Fonte_oculta]:[R$  Executado (2027)]],8,FALSE))","v":""},{"$f":"IF(VLOOKUP(A46,Financeiro[[id_ação_Fonte_oculta]:[R$  Executado (2027)]],4,FALSE)=0,\"\",VLOOKUP(A46,Financeiro[[id_ação_Fonte_oculta]:[R$  Executado (2027)]],11,FALSE))","v":""},{"$f":"IF(VLOOKUP(A46,Financeiro[[id_ação_Fonte_oculta]:[R$  Executado (2027)]],4,FALSE)=0,\"\",VLOOKUP(A46,Financeiro[[id_ação_Fonte_oculta]:[R$  Executado (2027)]],14,FALSE))","v":""},0,{"$f":"IFERROR(INDEX(IdentAcoes[SubPDC],MATCH(B46,IdentAcoes[ID Ação],0)),\"\")","v":""},{"$f":"IFERROR(INDEX(IdentAcoes[Prioridade do PDC],MATCH(B46,IdentAcoes[ID Ação],0)),\"\")","v":""},{"$f":"IFERROR(INDEX(IdentAcoes[Segmento do executor],MATCH($B46,IdentAcoes[ID Ação],0)),\"\")","v":""},{"$f":"IFERROR(INDEX(IdentAcoes[Área de abrangência],MATCH($B46,IdentAcoes[ID Ação],0)),\"\")","v":""},{"$f":"IFERROR(INDEX(IdentAcoes[Detalhamento da área de abrangência],MATCH($B46,IdentAcoes[ID Ação],0)),\"\")","v":""}]
["","",{"$f":"INDEX(Financeiro[Descrição da ação],MATCH(B47,Financeiro[ID Ação], 0))","v":""},{"$f":"IF(INDEX('Acompanhamento das metas 24-27'!$C$2:$C$50,MATCH(B47,'Acompanhamento das metas 24-27'!$A$2:$A$50,0))<>0,INDEX('Acompanhamento das metas 24-27'!$C$2:$C$50,MATCH(B47,'Acompanhamento das metas 24-27'!$A$2:$A$50,0)),\"\")","v":""},{"$f":"IF(VLOOKUP(A47,Financeiro[[id_ação_Fonte_oculta]:[R$  Executado (2027)]],4,FALSE)=0,\"\",VLOOKUP(A47,Financeiro[[id_ação_Fonte_oculta]:[R$  Executado (2027)]],4,FALSE))","v":""},{"$f":"IF(VLOOKUP(A47,Financeiro[[id_ação_Fonte_oculta]:[R$  Executado (2027)]],4,FALSE)=0,\"\",VLOOKUP(A47,Financeiro[[id_ação_Fonte_oculta]:[R$  Executado (2027)]],5,FALSE))","v":""},{"$f":"IF(VLOOKUP(A47,Financeiro[[id_ação_Fonte_oculta]:[R$  Executado (2027)]],4,FALSE)=0,\"\",VLOOKUP(A47,Financeiro[[id_ação_Fonte_oculta]:[R$  Executado (2027)]],8,FALSE))","v":""},{"$f":"IF(VLOOKUP(A47,Financeiro[[id_ação_Fonte_oculta]:[R$  Executado (2027)]],4,FALSE)=0,\"\",VLOOKUP(A47,Financeiro[[id_ação_Fonte_oculta]:[R$  Executado (2027)]],11,FALSE))","v":""},{"$f":"IF(VLOOKUP(A47,Financeiro[[id_ação_Fonte_oculta]:[R$  Executado (2027)]],4,FALSE)=0,\"\",VLOOKUP(A47,Financeiro[[id_ação_Fonte_oculta]:[R$  Executado (2027)]],14,FALSE))","v":""},0,{"$f":"IFERROR(INDEX(IdentAcoes[SubPDC],MATCH(B47,IdentAcoes[ID Ação],0)),\"\")","v":""},{"$f":"IFERROR(INDEX(IdentAcoes[Prioridade do PDC],MATCH(B47,IdentAcoes[ID Ação],0)),\"\")","v":""},{"$f":"IFERROR(INDEX(IdentAcoes[Segmento do executor],MATCH($B47,IdentAcoes[ID Ação],0)),\"\")","v":""},{"$f":"IFERROR(INDEX(IdentAcoes[Área de abrangência],MATCH($B47,IdentAcoes[ID Ação],0)),\"\")","v":""},{"$f":"IFERROR(INDEX(IdentAcoes[Detalhamento da área de abrangência],MATCH($B47,IdentAcoes[ID Ação],0)),\"\")","v":""}]
["","",{"$f":"INDEX(Financeiro[Descrição da ação],MATCH(B48,Financeiro[ID Ação], 0))","v":""},{"$f":"IF(INDEX('Acompanhamento das metas 24-27'!$C$2:$C$50,MATCH(B48,'Acompanhamento das metas 24-27'!$A$2:$A$50,0))<>0,INDEX('Acompanhamento das metas 24-27'!$C$2:$C$50,MATCH(B48,'Acompanhamento das metas 24-27'!$A$2:$A$50,0)),\"\")","v":""},{"$f":"IF(VLOOKUP(A48,Financeiro[[id_ação_Fonte_oculta]:[R$  Executado (2027)]],4,FALSE)=0,\"\",VLOOKUP(A48,Financeiro[[id_ação_Fonte_oculta]:[R$  Executado (2027)]],4,FALSE))","v":""},{"$f":"IF(VLOOKUP(A48,Financeiro[[id_ação_Fonte_oculta]:[R$  Executado (2027)]],4,FALSE)=0,\"\",VLOOKUP(A48,Financeiro[[id_ação_Fonte_oculta]:[R$  Executado (2027)]],5,FALSE))","v":""},{"$f":"IF(VLOOKUP(A48,Financeiro[[id_ação_Fonte_oculta]:[R$  Executado (2027)]],4,FALSE)=0,\"\",VLOOKUP(A48,Financeiro[[id_ação_Fonte_oculta]:[R$  Executado (2027)]],8,FALSE))","v":""},{"$f":"IF(VLOOKUP(A48,Financeiro[[id_ação_Fonte_oculta]:[R$  Executado (2027)]],4,FALSE)=0,\"\",VLOOKUP(A48,Financeiro[[id_ação_Fonte_oculta]:[R$  Executado (2027)]],11,FALSE))","v":""},{"$f":"IF(VLOOKUP(A48,Financeiro[[id_ação_Fonte_oculta]:[R$  Executado (2027)]],4,FALSE)=0,\"\",VLOOKUP(A48,Financeiro[[id_ação_Fonte_oculta]:[R$  Executado (2027)]],14,FALSE))","v":""},0,{"$f":"IFERROR(INDEX(IdentAcoes[SubPDC],MATCH(B48,IdentAcoes[ID Ação],0)),\"\")","v":""},{"$f":"IFERROR(INDEX(IdentAcoes[Prioridade do PDC],MATCH(B48,IdentAcoes[ID Ação],0)),\"\")","v":""},{"$f":"IFERROR(INDEX(IdentAcoes[Segmento do executor],MATCH($B48,IdentAcoes[ID Ação],0)),\"\")","v":""},{"$f":"IFERROR(INDEX(IdentAcoes[Área de abrangência],MATCH($B48,IdentAcoes[ID Ação],0)),\"\")","v":""},{"$f":"IFERROR(INDEX(IdentAcoes[Detalhamento da área de abrangência],MATCH($B48,IdentAcoes[ID Ação],0)),\"\")","v":""}]
["","",{"$f":"INDEX(Financeiro[Descrição da ação],MATCH(B49,Financeiro[ID Ação], 0))","v":""},{"$f":"IF(INDEX('Acompanhamento das metas 24-27'!$C$2:$C$50,MATCH(B49,'Acompanhamento das metas 24-27'!$A$2:$A$50,0))<>0,INDEX('Acompanhamento das metas 24-27'!$C$2:$C$50,MATCH(B49,'Acompanhamento das metas 24-27'!$A$2:$A$50,0)),\"\")","v":""},{"$f":"IF(VLOOKUP(A49,Financeiro[[id_ação_Fonte_oculta]:[R$  Executado (2027)]],4,FALSE)=0,\"\",VLOOKUP(A49,Financeiro[[id_ação_Fonte_oculta]:[R$  Executado (2027)]],4,FALSE))","v":""},{"$f":"IF(VLOOKUP(A49,Financeiro[[id_ação_Fonte_oculta]:[R$  Executado (2027)]],4,FALSE)=0,\"\",VLOOKUP(A49,Financeiro[[id_ação_Fonte_oculta]:[R$  Executado (2027)]],5,FALSE))","v":""},{"$f":"IF(VLOOKUP(A49,Financeiro[[id_ação_Fonte_oculta]:[R$  Executado (2027)]],4,FALSE)=0,\"\",VLOOKUP(A49,Financeiro[[id_ação_Fonte_oculta]:[R$  Executado (2027)]],8,FALSE))","v":""},{"$f":"IF(VLOOKUP(A49,Financeiro[[id_ação_Fonte_oculta]:[R$  Executado (2027)]],4,FALSE)=0,\"\",VLOOKUP(A49,Financeiro[[id_ação_Fonte_oculta]:[R$  Executado (2027)]],11,FALSE))","v":""},{"$f":"IF(VLOOKUP(A49,Financeiro[[id_ação_Fonte_oculta]:[R$  Executado (2027)]],4,FALSE)=0,\"\",VLOOKUP(A49,Financeiro[[id_ação_Fonte_oculta]:[R$  Executado (2027)]],14,FALSE))","v":""},0,{"$f":"IFERROR(INDEX(IdentAcoes[SubPDC],MATCH(B49,IdentAcoes[ID Ação],0)),\"\")","v":""},{"$f":"IFERROR(INDEX(IdentAcoes[Prioridade do PDC],MATCH(B49,IdentAcoes[ID Ação],0)),\"\")","v":""},{"$f":"IFERROR(INDEX(IdentAcoes[Segmento do executor],MATCH($B49,IdentAcoes[ID Ação],0)),\"\")","v":""},{"$f":"IFERROR(INDEX(IdentAcoes[Área de abrangência],MATCH($B49,IdentAcoes[ID Ação],0)),\"\")","v":""},{"$f":"IFERROR(INDEX(IdentAcoes[Detalhamento da área de abrangência],MATCH($B49,IdentAcoes[ID Ação],0)),\"\")","v":""}]
["","",{"$f":"INDEX(Financeiro[Descrição da ação],MATCH(B50,Financeiro[ID Ação], 0))","v":""},{"$f":"IF(INDEX('Acompanhamento das metas 24-27'!$C$2:$C$50,MATCH(B50,'Acompanhamento das metas 24-27'!$A$2:$A$50,0))<>0,INDEX('Acompanhamento das metas 24-27'!$C$2:$C$50,MATCH(B50,'Acompanhamento das metas 24-27'!$A$2:$A$50,0)),\"\")","v":""},{"$f":"IF(VLOOKUP(A50,Financeiro[[id_ação_Fonte_oculta]:[R$  Executado (2027)]],4,FALSE)=0,\"\",VLOOKUP(A50,Financeiro[[id_ação_Fonte_oculta]:[R$  Executado (2027)]],4,FALSE))","v":""},{"$f":"IF(VLOOKUP(A50,Financeiro[[id_ação_Fonte_oculta]:[R$  Executado (2027)]],4,FALSE)=0,\"\",VLOOKUP(A50,Financeiro[[id_ação_Fonte_oculta]:[R$  Executado (2027)]],5,FALSE))","v":""},{"$f":"IF(VLOOKUP(A50,Financeiro[[id_ação_Fonte_oculta]:[R$  Executado (2027)]],4,FALSE)=0,\"\",VLOOKUP(A50,Financeiro[[id_ação_Fonte_oculta]:[R$  Executado (2027)]],8,FALSE))","v":""},{"$f":"IF(VLOOKUP(A50,Financeiro[[id_ação_Fonte_oculta]:[R$  Executado (2027)]],4,FALSE)=0,\"\",VLOOKUP(A50,Financeiro[[id_ação_Fonte_oculta]:[R$  Executado (2027)]],11,FALSE))","v":""},{"$f":"IF(VLOOKUP(A50,Financeiro[[id_ação_Fonte_oculta]:[R$  Executado (2027)]],4,FALSE)=0,\"\",VLOOKUP(A50,Financeiro[[id_ação_Fonte_oculta]:[R$  Executado (2027)]],14,FALSE))","v":""},0,{"$f":"IFERROR(INDEX(IdentAcoes[SubPDC],MATCH(B50,IdentAcoes[ID Ação],0)),\"\")","v":""},{"$f":"IFERROR(INDEX(IdentAcoes[Prioridade do PDC],MATCH(B50,IdentAcoes[ID Ação],0)),\"\")","v":""},{"$f":"IFERROR(INDEX(IdentAcoes[Segmento do executor],MATCH($B50,IdentAcoes[ID Ação],0)),\"\")","v":""},{"$f":"IFERROR(INDEX(IdentAcoes[Área de abrangência],MATCH($B50,IdentAcoes[ID Ação],0)),\"\")","v":""},{"$f":"IFERROR(INDEX(IdentAcoes[Detalhamento da área de abrangência],MATCH($B50,IdentAcoes[ID Ação],0)),\"\")","v":""}]
["","",{"$f":"INDEX(Financeiro[Descrição da ação],MATCH(B51,Financeiro[ID Ação], 0))","v":""},null,{"$f":"IF(VLOOKUP(A51,Financeiro[[id_ação_Fonte_oculta]:[R$  Executado (2027)]],4,FALSE)=0,\"\",VLOOKUP(A51,Financeiro[[id_ação_Fonte_oculta]:[R$  Executado (2027)]],4,FALSE))","v":""},{"$f":"IF(VLOOKUP(A51,Financeiro[[id_ação_Fonte_oculta]:[R$  Executado (2027)]],4,FALSE)=0,\"\",VLOOKUP(A51,Financeiro[[id_ação_Fonte_oculta]:[R$  Executado (2027)]],5,FALSE))","v":""},{"$f":"IF(VLOOKUP(A51,Financeiro[[id_ação_Fonte_oculta]:[R$  Executado (2027)]],4,FALSE)=0,\"\",VLOOKUP(A51,Financeiro[[id_ação_Fonte_oculta]:[R$  Executado (2027)]],8,FALSE))","v":""},{"$f":"IF(VLOOKUP(A51,Financeiro[[id_ação_Fonte_oculta]:[R$  Executado (2027)]],4,FALSE)=0,\"\",VLOOKUP(A51,Financeiro[[id_ação_Fonte_oculta]:[R$  Executado (2027)]],11,FALSE))","v":""},{"$f":"IF(VLOOKUP(A51,Financeiro[[id_ação_Fonte_oculta]:[R$  Executado (2027)]],4,FALSE)=0,\"\",VLOOKUP(A51,Financeiro[[id_ação_Fonte_oculta]:[R$  Executado (2027)]],14,FALSE))","v":""},null,{"$f":"IFERROR(INDEX(IdentAcoes[SubPDC],MATCH(B51,IdentAcoes[ID Ação],0)),\"\")","v":""},{"$f":"IFERROR(INDEX(IdentAcoes[Prioridade do PDC],MATCH(B51,IdentAcoes[ID Ação],0)),\"\")","v":""},{"$f":"IFERROR(INDEX(IdentAcoes[Segmento do executor],MATCH($B51,IdentAcoes[ID Ação],0)),\"\")","v":""},{"$f":"IFERROR(INDEX(IdentAcoes[Área de abrangência],MATCH($B51,IdentAcoes[ID Ação],0)),\"\")","v":""},{"$f":"IFERROR(INDEX(IdentAcoes[Detalhamento da área de abrangência],MATCH($B51,IdentAcoes[ID Ação],0)),\"\")","v":""}]

{"sheet":"Consolidaçao - 1","index":5,"n_rows":38,"n_cols":19,"rows_kept":38,"cut":false,"hidden":true,"merged":[]}
["Delib. 190",null,"2021 (R$ Estimado)",null,null,null,null,"Delib. 246","2022 (R$ Estimado)",null,null,null,null,"2023 (R$ Estimado)",null,null,null,null,"2022 - 2023  (R$ Estimado)"]
["SubPDC","CFURH","Cobrança Estadual","Cobrança Federal","Outras","TOTAL",null,"SubPDC","CFURH","Cobrança Estadual","Cobrança Federal","Outras","TOTAL","CFURH","Cobrança Estadual","Cobrança Federal","Outras","TOTAL","TOTAL"]
["1.1 - SI",{"$f":"SUMIFS(#REF!,#REF!,A3,#REF!,2021)","v":{"$error":"#REF!"}},{"$f":"SUMIFS(#REF!,#REF!,A3,#REF!,2021)","v":{"$error":"#REF!"}},{"$f":"SUMIFS(#REF!,#REF!,A3,#REF!,2021)","v":{"$error":"#REF!"}},{"$f":"SUMIFS(#REF!,#REF!,A3,#REF!,2021)","v":{"$error":"#REF!"}},{"$f":"SUM(B3:E3)","v":{"$error":"#REF!"}},null,"1.1 - Legislação",{"$f":"SUMIFS(PAPI20_22_23[Recurso financeiro estimado no ano (R$) - CFURH],PAPI20_22_23[SubPDC],'Consolidaçao - 1'!H3,PAPI20_22_23[Ano previsto para início],2022)","v":0},{"$f":"SUMIFS(PAPI20_22_23[Recurso financeiro estimado no ano\n(R$) - Cobrança Estadual],PAPI20_22_23[SubPDC],'Consolidaçao - 1'!H3,PAPI20_22_23[Ano previsto para início],2022)","v":0},{"$f":"SUMIFS(PAPI20_22_23[Recurso financeiro estimado no ano\n(R$) - Cobrança Federal],PAPI20_22_23[SubPDC],'Consolidaçao - 1'!H3,PAPI20_22_23[Ano previsto para início],2022)","v":0},{"$f":"SUMIFS(PAPI20_22_23[Recurso financeiro estimado no ano (R$) - Outras],PAPI20_22_23[SubPDC],'Consolidaçao - 1'!H3,PAPI20_22_23[Ano previsto para início],2022)","v":0},{"$f":"SUM(I3:L3)","v":0},{"$f":"SUMIFS(PAPI20_22_23[Recurso financeiro estimado no ano (R$) - CFURH],PAPI20_22_23[SubPDC],'Consolidaçao - 1'!H3,PAPI20_22_23[Ano previsto para início],2023)","v":0},{"$f":"SUMIFS(PAPI20_22_23[Recurso financeiro estimado no ano\n(R$) - Cobrança Estadual],PAPI20_22_23[SubPDC],'Consolidaçao - 1'!M3,PAPI20_22_23[Ano previsto para início],2023)","v":0},{"$f":"SUMIFS(PAPI20_22_23[Recurso financeiro estimado no ano\n(R$) - Cobrança Federal],PAPI20_22_23[SubPDC],'Consolidaçao - 1'!M3,PAPI20_22_23[Ano previsto para início],2023)","v":0},{"$f":"SUMIFS(PAPI20_22_23[Recurso financeiro estimado no ano (R$) - Outras],PAPI20_22_23[SubPDC],'Consolidaçao - 1'!M3,PAPI20_22_23[Ano previsto para início],2023)","v":0},{"$f":"SUM(N3:Q3)","v":0},{"$f":"SUM(M3,R3)","v":0}]
["1.2 - Planejamento",{"$f":"SUMIFS(#REF!,#REF!,A4,#REF!,2021)","v":{"$error":"#REF!"}},{"$f":"SUMIFS(#REF!,#REF!,A4,#REF!,2021)","v":{"$error":"#REF!"}},{"$f":"SUMIFS(#REF!,#REF!,A4,#REF!,2021)","v":{"$error":"#REF!"}},{"$f":"SUMIFS(#REF!,#REF!,A4,#REF!,2021)","v":{"$error":"#REF!"}},{"$error":"#REF!"},null,"1.2 - Planejamento",{"$f":"SUMIFS(PAPI20_22_23[Recurso financeiro estimado no ano (R$) - CFURH],PAPI20_22_23[SubPDC],'Consolidaçao - 1'!H4,PAPI20_22_23[Ano previsto para início],2022)","v":0},{"$f":"SUMIFS(PAPI20_22_23[Recurso financeiro estimado no ano\n(R$) - Cobrança Estadual],PAPI20_22_23[SubPDC],'Consolidaçao - 1'!H4,PAPI20_22_23[Ano previsto para início],2022)","v":0},{"$f":"SUMIFS(PAPI20_22_23[Recurso financeiro estimado no ano\n(R$) - Cobrança Federal],PAPI20_22_23[SubPDC],'Consolidaçao - 1'!H4,PAPI20_22_23[Ano previsto para início],2022)","v":0},{"$f":"SUMIFS(PAPI20_22_23[Recurso financeiro estimado no ano (R$) - Outras],PAPI20_22_23[SubPDC],'Consolidaçao - 1'!H4,PAPI20_22_23[Ano previsto para início],2022)","v":0},0,{"$f":"SUMIFS(PAPI20_22_23[Recurso financeiro estimado no ano (R$) - CFURH],PAPI20_22_23[SubPDC],'Consolidaçao - 1'!H4,PAPI20_22_23[Ano previsto para início],2023)","v":0},{"$f":"SUMIFS(PAPI20_22_23[Recurso financeiro estimado no ano\n(R$) - Cobrança Estadual],PAPI20_22_23[SubPDC],'Consolidaçao - 1'!M4,PAPI20_22_23[Ano previsto para início],2023)","v":0},{"$f":"SUMIFS(PAPI20_22_23[Recurso financeiro estimado no ano\n(R$) - Cobrança Federal],PAPI20_22_23[SubPDC],'Consolidaçao - 1'!M4,PAPI20_22_23[Ano previsto para início],2023)","v":0},{"$f":"SUMIFS(PAPI20_22_23[Recurso financeiro estimado no ano (R$) - Outras],PAPI20_22_23[SubPDC],'Consolidaçao - 1'!M4,PAPI20_22_23[Ano previsto para início],2023)","v":0},0,{"$f":"SUM(M4,R4)","v":0}]
["1.3 - Enquadramento",{"$f":"SUMIFS(#REF!,#REF!,A5,#REF!,2021)","v":{"$error":"#REF!"}},{"$f":"SUMIFS(#REF!,#REF!,A5,#REF!,2021)","v":{"$error":"#REF!"}},{"$f":"SUMIFS(#REF!,#REF!,A5,#REF!,2021)","v":{"$error":"#REF!"}},{"$f":"SUMIFS(#REF!,#REF!,A5,#REF!,2021)","v":{"$error":"#REF!"}},{"$error":"#REF!"},null,"2.1 - Plano",{"$f":"SUMIFS(PAPI20_22_23[Recurso financeiro estimado no ano (R$) - CFURH],PAPI20_22_23[SubPDC],'Consolidaçao - 1'!H5,PAPI20_22_23[Ano previsto para início],2022)","v":0},{"$f":"SUMIFS(PAPI20_22_23[Recurso financeiro estimado no ano\n(R$) - Cobrança Estadual],PAPI20_22_23[SubPDC],'Consolidaçao - 1'!H5,PAPI20_22_23[Ano previsto para início],2022)","v":0},{"$f":"SUMIFS(PAPI20_22_23[Recurso financeiro estimado no ano\n(R$) - Cobrança Federal],PAPI20_22_23[SubPDC],'Consolidaçao - 1'!H5,PAPI20_22_23[Ano previsto para início],2022)","v":0},{"$f":"SUMIFS(PAPI20_22_23[Recurso financeiro estimado no ano (R$) - Outras],PAPI20_22_23[SubPDC],'Consolidaçao - 1'!H5,PAPI20_22_23[Ano previsto para início],2022)","v":0},0,{"$f":"SUMIFS(PAPI20_22_23[Recurso financeiro estimado no ano (R$) - CFURH],PAPI20_22_23[SubPDC],'Consolidaçao - 1'!H5,PAPI20_22_23[Ano previsto para início],2023)","v":0},{"$f":"SUMIFS(PAPI20_22_23[Recurso financeiro estimado no ano\n(R$) - Cobrança Estadual],PAPI20_22_23[SubPDC],'Consolidaçao - 1'!M5,PAPI20_22_23[Ano previsto para início],2023)","v":0},{"$f":"SUMIFS(PAPI20_22_23[Recurso financeiro estimado no ano\n(R$) - Cobrança Federal],PAPI20_22_23[SubPDC],'Consolidaçao - 1'!M5,PAPI20_22_23[Ano previsto para início],2023)","v":0},{"$f":"SUMIFS(PAPI20_22_23[Recurso financeiro estimado no ano (R$) - Outras],PAPI20_22_23[SubPDC],'Consolidaçao - 1'!M5,PAPI20_22_23[Ano previsto para início],2023)","v":0},0,0]
["1.4 - Monitoramento",{"$f":"SUMIFS(#REF!,#REF!,A6,#REF!,2021)","v":{"$error":"#REF!"}},{"$f":"SUMIFS(#REF!,#REF!,A6,#REF!,2021)","v":{"$error":"#REF!"}},{"$f":"SUMIFS(#REF!,#REF!,A6,#REF!,2021)","v":{"$error":"#REF!"}},{"$f":"SUMIFS(#REF!,#REF!,A6,#REF!,2021)","v":{"$error":"#REF!"}},{"$error":"#REF!"},null,"2.2 - Outorga",{"$f":"SUMIFS(PAPI20_22_23[Recurso financeiro estimado no ano (R$) - CFURH],PAPI20_22_23[SubPDC],'Consolidaçao - 1'!H6,PAPI20_22_23[Ano previsto para início],2022)","v":0},{"$f":"SUMIFS(PAPI20_22_23[Recurso financeiro estimado no ano\n(R$) - Cobrança Estadual],PAPI20_22_23[SubPDC],'Consolidaçao - 1'!H6,PAPI20_22_23[Ano previsto para início],2022)","v":0},{"$f":"SUMIFS(PAPI20_22_23[Recurso financeiro estimado no ano\n(R$) - Cobrança Federal],PAPI20_22_23[SubPDC],'Consolidaçao - 1'!H6,PAPI20_22_23[Ano previsto para início],2022)","v":0},{"$f":"SUMIFS(PAPI20_22_23[Recurso financeiro estimado no ano (R$) - Outras],PAPI20_22_23[SubPDC],'Consolidaçao - 1'!H6,PAPI20_22_23[Ano previsto para início],2022)","v":0},0,{"$f":"SUMIFS(PAPI20_22_23[Recurso financeiro estimado no ano (R$) - CFURH],PAPI20_22_23[SubPDC],'Consolidaçao - 1'!H6,PAPI20_22_23[Ano previsto para início],2023)","v":0},{"$f":"SUMIFS(PAPI20_22_23[Recurso financeiro estimado no ano\n(R$) - Cobrança Estadual],PAPI20_22_23[SubPDC],'Consolidaçao - 1'!M6,PAPI20_22_23[Ano previsto para início],2023)","v":0},{"$f":"SUMIFS(PAPI20_22_23[Recurso financeiro estimado no ano\n(R$) - Cobrança Federal],PAPI20_22_23[SubPDC],'Consolidaçao - 1'!M6,PAPI20_22_23[Ano previsto para início],2023)","v":0},{"$f":"SUMIFS(PAPI20_22_23[Recurso financeiro estimado no ano (R$) - Outras],PAPI20_22_23[SubPDC],'Consolidaçao - 1'!M6,PAPI20_22_23[Ano previsto para início],2023)","v":0},0,0]
["1.5 - Disponibilidade",{"$f":"SUMIFS(#REF!,#REF!,A7,#REF!,2021)","v":{"$error":"#REF!"}},{"$f":"SUMIFS(#REF!,#REF!,A7,#REF!,2021)","v":{"$error":"#REF!"}},{"$f":"SUMIFS(#REF!,#REF!,A7,#REF!,2021)","v":{"$error":"#REF!"}},{"$f":"SUMIFS(#REF!,#REF!,A7,#REF!,2021)","v":{"$error":"#REF!"}},{"$error":"#REF!"},null,"2.3 - Cobrança",{"$f":"SUMIFS(PAPI20_22_23[Recurso financeiro estimado no ano (R$) - CFURH],PAPI20_22_23[SubPDC],'Consolidaçao - 1'!H7,PAPI20_22_23[Ano previsto para início],2022)","v":0},{"$f":"SUMIFS(PAPI20_22_23[Recurso financeiro estimado no ano\n(R$) - Cobrança Estadual],PAPI20_22_23[SubPDC],'Consolidaçao - 1'!H7,PAPI20_22_23[Ano previsto para início],2022)","v":0},{"$f":"SUMIFS(PAPI20_22_23[Recurso financeiro estimado no ano\n(R$) - Cobrança Federal],PAPI20_22_23[SubPDC],'Consolidaçao - 1'!H7,PAPI20_22_23[Ano previsto para início],2022)","v":0},{"$f":"SUMIFS(PAPI20_22_23[Recurso financeiro estimado no ano (R$) - Outras],PAPI20_22_23[SubPDC],'Consolidaçao - 1'!H7,PAPI20_22_23[Ano previsto para início],2022)","v":0},0,{"$f":"SUMIFS(PAPI20_22_23[Recurso financeiro estimado no ano (R$) - CFURH],PAPI20_22_23[SubPDC],'Consolidaçao - 1'!H7,PAPI20_22_23[Ano previsto para início],2023)","v":0},{"$f":"SUMIFS(PAPI20_22_23[Recurso financeiro estimado no ano\n(R$) - Cobrança Estadual],PAPI20_22_23[SubPDC],'Consolidaçao - 1'!M7,PAPI20_22_23[Ano previsto para início],2023)","v":0},{"$f":"SUMIFS(PAPI20_22_23[Recurso financeiro estimado no ano\n(R$) - Cobrança Federal],PAPI20_22_23[SubPDC],'Consolidaçao - 1'!M7,PAPI20_22_23[Ano previsto para início],2023)","v":0},{"$f":"SUMIFS(PAPI20_22_23[Recurso financeiro estimado no ano (R$) - Outras],PAPI20_22_23[SubPDC],'Consolidaçao - 1'!M7,PAPI20_22_23[Ano previsto para início],2023)","v":0},0,0]
["1.6 - Legislação",{"$f":"SUMIFS(#REF!,#REF!,A8,#REF!,2021)","v":{"$error":"#REF!"}},{"$f":"SUMIFS(#REF!,#REF!,A8,#REF!,2021)","v":{"$error":"#REF!"}},{"$f":"SUMIFS(#REF!,#REF!,A8,#REF!,2021)","v":{"$error":"#REF!"}},{"$f":"SUMIFS(#REF!,#REF!,A8,#REF!,2021)","v":{"$error":"#REF!"}},{"$error":"#REF!"},null,"2.4 - Enquadramento",{"$f":"SUMIFS(PAPI20_22_23[Recurso financeiro estimado no ano (R$) - CFURH],PAPI20_22_23[SubPDC],'Consolidaçao - 1'!H8,PAPI20_22_23[Ano previsto para início],2022)","v":0},{"$f":"SUMIFS(PAPI20_22_23[Recurso financeiro estimado no ano\n(R$) - Cobrança Estadual],PAPI20_22_23[SubPDC],'Consolidaçao - 1'!H8,PAPI20_22_23[Ano previsto para início],2022)","v":0},{"$f":"SUMIFS(PAPI20_22_23[Recurso financeiro estimado no ano\n(R$) - Cobrança Federal],PAPI20_22_23[SubPDC],'Consolidaçao - 1'!H8,PAPI20_22_23[Ano previsto para início],2022)","v":0},{"$f":"SUMIFS(PAPI20_22_23[Recurso financeiro estimado no ano (R$) - Outras],PAPI20_22_23[SubPDC],'Consolidaçao - 1'!H8,PAPI20_22_23[Ano previsto para início],2022)","v":0},0,{"$f":"SUMIFS(PAPI20_22_23[Recurso financeiro estimado no ano (R$) - CFURH],PAPI20_22_23[SubPDC],'Consolidaçao - 1'!H8,PAPI20_22_23[Ano previsto para início],2023)","v":0},{"$f":"SUMIFS(PAPI20_22_23[Recurso financeiro estimado no ano\n(R$) - Cobrança Estadual],PAPI20_22_23[SubPDC],'Consolidaçao - 1'!M8,PAPI20_22_23[Ano previsto para início],2023)","v":0},{"$f":"SUMIFS(PAPI20_22_23[Recurso financeiro estimado no ano\n(R$) - Cobrança Federal],PAPI20_22_23[SubPDC],'Consolidaçao - 1'!M8,PAPI20_22_23[Ano previsto para início],2023)","v":0},{"$f":"SUMIFS(PAPI20_22_23[Recurso financeiro estimado no ano (R$) - Outras],PAPI20_22_23[SubPDC],'Consolidaçao - 1'!M8,PAPI20_22_23[Ano previsto para início],2023)","v":0},0,0]
["1.7 - Poluição",{"$f":"SUMIFS(#REF!,#REF!,A9,#REF!,2021)","v":{"$error":"#REF!"}},{"$f":"SUMIFS(#REF!,#REF!,A9,#REF!,2021)","v":{"$error":"#REF!"}},{"$f":"SUMIFS(#REF!,#REF!,A9,#REF!,2021)","v":{"$error":"#REF!"}},{"$f":"SUMIFS(#REF!,#REF!,A9,#REF!,2021)","v":{"$error":"#REF!"}},{"$error":"#REF!"},null,"2.5 - Monitoramento e SI",{"$f":"SUMIFS(PAPI20_22_23[Recurso financeiro estimado no ano (R$) - CFURH],PAPI20_22_23[SubPDC],'Consolidaçao - 1'!H9,PAPI20_22_23[Ano previsto para início],2022)","v":0},{"$f":"SUMIFS(PAPI20_22_23[Recurso financeiro estimado no ano\n(R$) - Cobrança Estadual],PAPI20_22_23[SubPDC],'Consolidaçao - 1'!H9,PAPI20_22_23[Ano previsto para início],2022)","v":0},{"$f":"SUMIFS(PAPI20_22_23[Recurso financeiro estimado no ano\n(R$) - Cobrança Federal],PAPI20_22_23[SubPDC],'Consolidaçao - 1'!H9,PAPI20_22_23[Ano previsto para início],2022)","v":0},{"$f":"SUMIFS(PAPI20_22_23[Recurso financeiro estimado no ano (R$) - Outras],PAPI20_22_23[SubPDC],'Consolidaçao - 1'!H9,PAPI20_22_23[Ano previsto para início],2022)","v":0},0,{"$f":"SUMIFS(PAPI20_22_23[Recurso financeiro estimado no ano (R$) - CFURH],PAPI20_22_23[SubPDC],'Consolidaçao - 1'!H9,PAPI20_22_23[Ano previsto para início],2023)","v":0},{"$f":"SUMIFS(PAPI20_22_23[Recurso financeiro estimado no ano\n(R$) - Cobrança Estadual],PAPI20_22_23[SubPDC],'Consolidaçao - 1'!M9,PAPI20_22_23[Ano previsto para início],2023)","v":0},{"$f":"SUMIFS(PAPI20_22_23[Recurso financeiro estimado no ano\n(R$) - Cobrança Federal],PAPI20_22_23[SubPDC],'Consolidaçao - 1'!M9,PAPI20_22_23[Ano previsto para início],2023)","v":0},{"$f":"SUMIFS(PAPI20_22_23[Recurso financeiro estimado no ano (R$) - Outras],PAPI20_22_23[SubPDC],'Consolidaçao - 1'!M9,PAPI20_22_23[Ano previsto para início],2023)","v":0},0,0]
["2.1 - Planos",{"$f":"SUMIFS(#REF!,#REF!,A10,#REF!,2021)","v":{"$error":"#REF!"}},{"$f":"SUMIFS(#REF!,#REF!,A10,#REF!,2021)","v":{"$error":"#REF!"}},{"$f":"SUMIFS(#REF!,#REF!,A10,#REF!,2021)","v":{"$error":"#REF!"}},{"$f":"SUMIFS(#REF!,#REF!,A10,#REF!,2021)","v":{"$error":"#REF!"}},{"$error":"#REF!"},null,"2.6 - Integração",{"$f":"SUMIFS(PAPI20_22_23[Recurso financeiro estimado no ano (R$) - CFURH],PAPI20_22_23[SubPDC],'Consolidaçao - 1'!H10,PAPI20_22_23[Ano previsto para início],2022)","v":0},{"$f":"SUMIFS(PAPI20_22_23[Recurso financeiro estimado no ano\n(R$) - Cobrança Estadual],PAPI20_22_23[SubPDC],'Consolidaçao - 1'!H10,PAPI20_22_23[Ano previsto para início],2022)","v":0},{"$f":"SUMIFS(PAPI20_22_23[Recurso financeiro estimado no ano\n(R$) - Cobrança Federal],PAPI20_22_23[SubPDC],'Consolidaçao - 1'!H10,PAPI20_22_23[Ano previsto para início],2022)","v":0},{"$f":"SUMIFS(PAPI20_22_23[Recurso financeiro estimado no ano (R$) - Outras],PAPI20_22_23[SubPDC],'Consolidaçao - 1'!H10,PAPI20_22_23[Ano previsto para início],2022)","v":0},0,{"$f":"SUMIFS(PAPI20_22_23[Recurso financeiro estimado no ano (R$) - CFURH],PAPI20_22_23[SubPDC],'Consolidaçao - 1'!H10,PAPI20_22_23[Ano previsto para início],2023)","v":0},{"$f":"SUMIFS(PAPI20_22_23[Recurso financeiro estimado no ano\n(R$) - Cobrança Estadual],PAPI20_22_23[SubPDC],'Consolidaçao - 1'!M10,PAPI20_22_23[Ano previsto para início],2023)","v":0},{"$f":"SUMIFS(PAPI20_22_23[Recurso financeiro estimado no ano\n(R$) - Cobrança Federal],PAPI20_22_23[SubPDC],'Consolidaçao - 1'!M10,PAPI20_22_23[Ano previsto para início],2023)","v":0},{"$f":"SUMIFS(PAPI20_22_23[Recurso financeiro estimado no ano (R$) - Outras],PAPI20_22_23[SubPDC],'Consolidaçao - 1'!M10,PAPI20_22_23[Ano previsto para início],2023)","v":0},0,0]
["2.2 - Outorga",{"$f":"SUMIFS(#REF!,#REF!,A11,#REF!,2021)","v":{"$error":"#REF!"}},{"$f":"SUMIFS(#REF!,#REF!,A11,#REF!,2021)","v":{"$error":"#REF!"}},{"$f":"SUMIFS(#REF!,#REF!,A11,#REF!,2021)","v":{"$error":"#REF!"}},{"$f":"SUMIFS(#REF!,#REF!,A11,#REF!,2021)","v":{"$error":"#REF!"}},{"$error":"#REF!"},null,"2.7 - CORHI",{"$f":"SUMIFS(PAPI20_22_23[Recurso financeiro estimado no ano (R$) - CFURH],PAPI20_22_23[SubPDC],'Consolidaçao - 1'!H11,PAPI20_22_23[Ano previsto para início],2022)","v":0},{"$f":"SUMIFS(PAPI20_22_23[Recurso financeiro estimado no ano\n(R$) - Cobrança Estadual],PAPI20_22_23[SubPDC],'Consolidaçao - 1'!H11,PAPI20_22_23[Ano previsto para início],2022)","v":0},{"$f":"SUMIFS(PAPI20_22_23[Recurso financeiro estimado no ano\n(R$) - Cobrança Federal],PAPI20_22_23[SubPDC],'Consolidaçao - 1'!H11,PAPI20_22_23[Ano previsto para início],2022)","v":0},{"$f":"SUMIFS(PAPI20_22_23[Recurso financeiro estimado no ano (R$) - Outras],PAPI20_22_23[SubPDC],'Consolidaçao - 1'!H11,PAPI20_22_23[Ano previsto para início],2022)","v":0},0,{"$f":"SUMIFS(PAPI20_22_23[Recurso financeiro estimado no ano (R$) - CFURH],PAPI20_22_23[SubPDC],'Consolidaçao - 1'!H11,PAPI20_22_23[Ano previsto para início],2023)","v":0},{"$f":"SUMIFS(PAPI20_22_23[Recurso financeiro estimado no ano\n(R$) - Cobrança Estadual],PAPI20_22_23[SubPDC],'Consolidaçao - 1'!M11,PAPI20_22_23[Ano previsto para início],2023)","v":0},{"$f":"SUMIFS(PAPI20_22_23[Recurso financeiro estimado no ano\n(R$) - Cobrança Federal],PAPI20_22_23[SubPDC],'Consolidaçao - 1'!M11,PAPI20_22_23[Ano previsto para início],2023)","v":0},{"$f":"SUMIFS(PAPI20_22_23[Recurso financeiro estimado no ano (R$) - Outras],PAPI20_22_23[SubPDC],'Consolidaçao - 1'!M11,PAPI20_22_23[Ano previsto para início],2023)","v":0},0,0]
["2.3 - Cobrança",{"$f":"SUMIFS(#REF!,#REF!,A12,#REF!,2021)","v":{"$error":"#REF!"}},{"$f":"SUMIFS(#REF!,#REF!,A12,#REF!,2021)","v":{"$error":"#REF!"}},{"$f":"SUMIFS(#REF!,#REF!,A12,#REF!,2021)","v":{"$error":"#REF!"}},{"$f":"SUMIFS(#REF!,#REF!,A12,#REF!,2021)","v":{"$error":"#REF!"}},{"$error":"#REF!"},null,"3.1 - Efluentes",{"$f":"SUMIFS(PAPI20_22_23[Recurso financeiro estimado no ano (R$) - CFURH],PAPI20_22_23[SubPDC],'Consolidaçao - 1'!H12,PAPI20_22_23[Ano previsto para início],2022)","v":0},{"$f":"SUMIFS(PAPI20_22_23[Recurso financeiro estimado no ano\n(R$) - Cobrança Estadual],PAPI20_22_23[SubPDC],'Consolidaçao - 1'!H12,PAPI20_22_23[Ano previsto para início],2022)","v":0},{"$f":"SUMIFS(PAPI20_22_23[Recurso financeiro estimado no ano\n(R$) - Cobrança Federal],PAPI20_22_23[SubPDC],'Consolidaçao - 1'!H12,PAPI20_22_23[Ano previsto para início],2022)","v":0},{"$f":"SUMIFS(PAPI20_22_23[Recurso financeiro estimado no ano (R$) - Outras],PAPI20_22_23[SubPDC],'Consolidaçao - 1'!H12,PAPI20_22_23[Ano previsto para início],2022)","v":0},0,{"$f":"SUMIFS(PAPI20_22_23[Recurso financeiro estimado no ano (R$) - CFURH],PAPI20_22_23[SubPDC],'Consolidaçao - 1'!H12,PAPI20_22_23[Ano previsto para início],2023)","v":0},{"$f":"SUMIFS(PAPI20_22_23[Recurso financeiro estimado no ano\n(R$) - Cobrança Estadual],PAPI20_22_23[SubPDC],'Consolidaçao - 1'!M12,PAPI20_22_23[Ano previsto para início],2023)","v":0},{"$f":"SUMIFS(PAPI20_22_23[Recurso financeiro estimado no ano\n(R$) - Cobrança Federal],PAPI20_22_23[SubPDC],'Consolidaçao - 1'!M12,PAPI20_22_23[Ano previsto para início],2023)","v":0},{"$f":"SUMIFS(PAPI20_22_23[Recurso financeiro estimado no ano (R$) - Outras],PAPI20_22_23[SubPDC],'Consolidaçao - 1'!M12,PAPI20_22_23[Ano previsto para início],2023)","v":0},0,0]
["2.4 - Efetivação",{"$f":"SUMIFS(#REF!,#REF!,A13,#REF!,2021)","v":{"$error":"#REF!"}},{"$f":"SUMIFS(#REF!,#REF!,A13,#REF!,2021)","v":{"$error":"#REF!"}},{"$f":"SUMIFS(#REF!,#REF!,A13,#REF!,2021)","v":{"$error":"#REF!"}},{"$f":"SUMIFS(#REF!,#REF!,A13,#REF!,2021)","v":{"$error":"#REF!"}},{"$error":"#REF!"},null,"3.2 - Poluição",{"$f":"SUMIFS(PAPI20_22_23[Recurso financeiro estimado no ano (R$) - CFURH],PAPI20_22_23[SubPDC],'Consolidaçao - 1'!H13,PAPI20_22_23[Ano previsto para início],2022)","v":0},{"$f":"SUMIFS(PAPI20_22_23[Recurso financeiro estimado no ano\n(R$) - Cobrança Estadual],PAPI20_22_23[SubPDC],'Consolidaçao - 1'!H13,PAPI20_22_23[Ano previsto para início],2022)","v":0},{"$f":"SUMIFS(PAPI20_22_23[Recurso financeiro estimado no ano\n(R$) - Cobrança Federal],PAPI20_22_23[SubPDC],'Consolidaçao - 1'!H13,PAPI20_22_23[Ano previsto para início],2022)","v":0},{"$f":"SUMIFS(PAPI20_22_23[Recurso financeiro estimado no ano (R$) - Outras],PAPI20_22_23[SubPDC],'Consolidaçao - 1'!H13,PAPI20_22_23[Ano previsto para início],2022)","v":0},0,{"$f":"SUMIFS(PAPI20_22_23[Recurso financeiro estimado no ano (R$) - CFURH],PAPI20_22_23[SubPDC],'Consolidaçao - 1'!H13,PAPI20_22_23[Ano previsto para início],2023)","v":0},{"$f":"SUMIFS(PAPI20_22_23[Recurso financeiro estimado no ano\n(R$) - Cobrança Estadual],PAPI20_22_23[SubPDC],'Consolidaçao - 1'!M13,PAPI20_22_23[Ano previsto para início],2023)","v":0},{"$f":"SUMIFS(PAPI20_22_23[Recurso financeiro estimado no ano\n(R$) - Cobrança Federal],PAPI20_22_23[SubPDC],'Consolidaçao - 1'!M13,PAPI20_22_23[Ano previsto para início],2023)","v":0},{"$f":"SUMIFS(PAPI20_22_23[Recurso financeiro estimado no ano (R$) - Outras],PAPI20_22_23[SubPDC],'Consolidaçao - 1'!M13,PAPI20_22_23[Ano previsto para início],2023)","v":0},0,0]
["2.5 - Integração",{"$f":"SUMIFS(#REF!,#REF!,A14,#REF!,2021)","v":{"$error":"#REF!"}},{"$f":"SUMIFS(#REF!,#REF!,A14,#REF!,2021)","v":{"$error":"#REF!"}},{"$f":"SUMIFS(#REF!,#REF!,A14,#REF!,2021)","v":{"$error":"#REF!"}},{"$f":"SUMIFS(#REF!,#REF!,A14,#REF!,2021)","v":{"$error":"#REF!"}},{"$error":"#REF!"},null,"3.3 - Resíduos",{"$f":"SUMIFS(PAPI20_22_23[Recurso financeiro estimado no ano (R$) - CFURH],PAPI20_22_23[SubPDC],'Consolidaçao - 1'!H14,PAPI20_22_23[Ano previsto para início],2022)","v":0},{"$f":"SUMIFS(PAPI20_22_23[Recurso financeiro estimado no ano\n(R$) - Cobrança Estadual],PAPI20_22_23[SubPDC],'Consolidaçao - 1'!H14,PAPI20_22_23[Ano previsto para início],2022)","v":0},{"$f":"SUMIFS(PAPI20_22_23[Recurso financeiro estimado no ano\n(R$) - Cobrança Federal],PAPI20_22_23[SubPDC],'Consolidaçao - 1'!H14,PAPI20_22_23[Ano previsto para início],2022)","v":0},{"$f":"SUMIFS(PAPI20_22_23[Recurso financeiro estimado no ano (R$) - Outras],PAPI20_22_23[SubPDC],'Consolidaçao - 1'!H14,PAPI20_22_23[Ano previsto para início],2022)","v":0},0,{"$f":"SUMIFS(PAPI20_22_23[Recurso financeiro estimado no ano (R$) - CFURH],PAPI20_22_23[SubPDC],'Consolidaçao - 1'!H14,PAPI20_22_23[Ano previsto para início],2023)","v":0},{"$f":"SUMIFS(PAPI20_22_23[Recurso financeiro estimado no ano\n(R$) - Cobrança Estadual],PAPI20_22_23[SubPDC],'Consolidaçao - 1'!M14,PAPI20_22_23[Ano previsto para início],2023)","v":0},{"$f":"SUMIFS(PAPI20_22_23[Recurso financeiro estimado no ano\n(R$) - Cobrança Federal],PAPI20_22_23[SubPDC],'Consolidaçao - 1'!M14,PAPI20_22_23[Ano previsto para início],2023)","v":0},{"$f":"SUMIFS(PAPI20_22_23[Recurso financeiro estimado no ano (R$) - Outras],PAPI20_22_23[SubPDC],'Consolidaçao - 1'!M14,PAPI20_22_23[Ano previsto para início],2023)","v":0},0,0]
["2.6 - CORHI",{"$f":"SUMIFS(#REF!,#REF!,A15,#REF!,2021)","v":{"$error":"#REF!"}},{"$f":"SUMIFS(#REF!,#REF!,A15,#REF!,2021)","v":{"$error":"#REF!"}},{"$f":"SUMIFS(#REF!,#REF!,A15,#REF!,2021)","v":{"$error":"#REF!"}},{"$f":"SUMIFS(#REF!,#REF!,A15,#REF!,2021)","v":{"$error":"#REF!"}},{"$error":"#REF!"},null,"3.4 - Intervenções",{"$f":"SUMIFS(PAPI20_22_23[Recurso financeiro estimado no ano (R$) - CFURH],PAPI20_22_23[SubPDC],'Consolidaçao - 1'!H15,PAPI20_22_23[Ano previsto para início],2022)","v":0},{"$f":"SUMIFS(PAPI20_22_23[Recurso financeiro estimado no ano\n(R$) - Cobrança Estadual],PAPI20_22_23[SubPDC],'Consolidaçao - 1'!H15,PAPI20_22_23[Ano previsto para início],2022)","v":0},{"$f":"SUMIFS(PAPI20_22_23[Recurso financeiro estimado no ano\n(R$) - Cobrança Federal],PAPI20_22_23[SubPDC],'Consolidaçao - 1'!H15,PAPI20_22_23[Ano previsto para início],2022)","v":0},{"$f":"SUMIFS(PAPI20_22_23[Recurso financeiro estimado no ano (R$) - Outras],PAPI20_22_23[SubPDC],'Consolidaçao - 1'!H15,PAPI20_22_23[Ano previsto para início],2022)","v":0},0,{"$f":"SUMIFS(PAPI20_22_23[Recurso financeiro estimado no ano (R$) - CFURH],PAPI20_22_23[SubPDC],'Consolidaçao - 1'!H15,PAPI20_22_23[Ano previsto para início],2023)","v":0},{"$f":"SUMIFS(PAPI20_22_23[Recurso financeiro estimado no ano\n(R$) - Cobrança Estadual],PAPI20_22_23[SubPDC],'Consolidaçao - 1'!H15,PAPI20_22_23[Ano previsto para início],2023)","v":0},{"$f":"SUMIFS(PAPI20_22_23[Recurso financeiro estimado no ano\n(R$) - Cobrança Federal],PAPI20_22_23[SubPDC],'Consolidaçao - 1'!H15,PAPI20_22_23[Ano previsto para início],2023)","v":0},{"$f":"SUMIFS(PAPI20_22_23[Recurso financeiro estimado no ano (R$) - Outras],PAPI20_22_23[SubPDC],'Consolidaçao - 1'!H15,PAPI20_22_23[Ano previsto para início],2023)","v":0},0,0]
["3.1 - Efluentes",{"$f":"SUMIFS(#REF!,#REF!,A16,#REF!,2021)","v":{"$error":"#REF!"}},{"$f":"SUMIFS(#REF!,#REF!,A16,#REF!,2021)","v":{"$error":"#REF!"}},{"$f":"SUMIFS(#REF!,#REF!,A16,#REF!,2021)","v":{"$error":"#REF!"}},{"$f":"SUMIFS(#REF!,#REF!,A16,#REF!,2021)","v":{"$error":"#REF!"}},{"$error":"#REF!"},null,"4.1 - Erosão",{"$f":"SUMIFS(PAPI20_22_23[Recurso financeiro estimado no ano (R$) - CFURH],PAPI20_22_23[SubPDC],'Consolidaçao - 1'!H16,PAPI20_22_23[Ano previsto para início],2022)","v":0},{"$f":"SUMIFS(PAPI20_22_23[Recurso financeiro estimado no ano\n(R$) - Cobrança Estadual],PAPI20_22_23[SubPDC],'Consolidaçao - 1'!H16,PAPI20_22_23[Ano previsto para início],2022)","v":0},{"$f":"SUMIFS(PAPI20_22_23[Recurso financeiro estimado no ano\n(R$) - Cobrança Federal],PAPI20_22_23[SubPDC],'Consolidaçao - 1'!H16,PAPI20_22_23[Ano previsto para início],2022)","v":0},{"$f":"SUMIFS(PAPI20_22_23[Recurso financeiro estimado no ano (R$) - Outras],PAPI20_22_23[SubPDC],'Consolidaçao - 1'!H16,PAPI20_22_23[Ano previsto para início],2022)","v":0},0,{"$f":"SUMIFS(PAPI20_22_23[Recurso financeiro estimado no ano (R$) - CFURH],PAPI20_22_23[SubPDC],'Consolidaçao - 1'!H16,PAPI20_22_23[Ano previsto para início],2023)","v":0},{"$f":"SUMIFS(PAPI20_22_23[Recurso financeiro estimado no ano\n(R$) - Cobrança Estadual],PAPI20_22_23[SubPDC],'Consolidaçao - 1'!H16,PAPI20_22_23[Ano previsto para início],2023)","v":0},{"$f":"SUMIFS(PAPI20_22_23[Recurso financeiro estimado no ano\n(R$) - Cobrança Federal],PAPI20_22_23[SubPDC],'Consolidaçao - 1'!H16,PAPI20_22_23[Ano previsto para início],2023)","v":0},{"$f":"SUMIFS(PAPI20_22_23[Recurso financeiro estimado no ano (R$) - Outras],PAPI20_22_23[SubPDC],'Consolidaçao - 1'!H16,PAPI20_22_23[Ano previsto para início],2023)","v":0},0,0]
["3.2 - Resíduos",{"$f":"SUMIFS(#REF!,#REF!,A17,#REF!,2021)","v":{"$error":"#REF!"}},{"$f":"SUMIFS(#REF!,#REF!,A17,#REF!,2021)","v":{"$error":"#REF!"}},{"$f":"SUMIFS(#REF!,#REF!,A17,#REF!,2021)","v":{"$error":"#REF!"}},{"$f":"SUMIFS(#REF!,#REF!,A17,#REF!,2021)","v":{"$error":"#REF!"}},{"$error":"#REF!"},null,"4.2 - Conservação",{"$f":"SUMIFS(PAPI20_22_23[Recurso financeiro estimado no ano (R$) - CFURH],PAPI20_22_23[SubPDC],'Consolidaçao - 1'!H17,PAPI20_22_23[Ano previsto para início],2022)","v":0},{"$f":"SUMIFS(PAPI20_22_23[Recurso financeiro estimado no ano\n(R$) - Cobrança Estadual],PAPI20_22_23[SubPDC],'Consolidaçao - 1'!H17,PAPI20_22_23[Ano previsto para início],2022)","v":0},{"$f":"SUMIFS(PAPI20_22_23[Recurso financeiro estimado no ano\n(R$) - Cobrança Federal],PAPI20_22_23[SubPDC],'Consolidaçao - 1'!H17,PAPI20_22_23[Ano previsto para início],2022)","v":0},{"$f":"SUMIFS(PAPI20_22_23[Recurso financeiro estimado no ano (R$) - Outras],PAPI20_22_23[SubPDC],'Consolidaçao - 1'!H17,PAPI20_22_23[Ano previsto para início],2022)","v":0},0,{"$f":"SUMIFS(PAPI20_22_23[Recurso financeiro estimado no ano (R$) - CFURH],PAPI20_22_23[SubPDC],'Consolidaçao - 1'!H17,PAPI20_22_23[Ano previsto para início],2023)","v":0},{"$f":"SUMIFS(PAPI20_22_23[Recurso financeiro estimado no ano\n(R$) - Cobrança Estadual],PAPI20_22_23[SubPDC],'Consolidaçao - 1'!H17,PAPI20_22_23[Ano previsto para início],2023)","v":0},{"$f":"SUMIFS(PAPI20_22_23[Recurso financeiro estimado no ano\n(R$) - Cobrança Federal],PAPI20_22_23[SubPDC],'Consolidaçao - 1'!H17,PAPI20_22_23[Ano previsto para início],2023)","v":0},{"$f":"SUMIFS(PAPI20_22_23[Recurso financeiro estimado no ano (R$) - Outras],PAPI20_22_23[SubPDC],'Consolidaçao - 1'!H17,PAPI20_22_23[Ano previsto para início],2023)","v":0},0,0]
["3.3 - Drenagem",{"$f":"SUMIFS(#REF!,#REF!,A18,#REF!,2021)","v":{"$error":"#REF!"}},{"$f":"SUMIFS(#REF!,#REF!,A18,#REF!,2021)","v":{"$error":"#REF!"}},{"$f":"SUMIFS(#REF!,#REF!,A18,#REF!,2021)","v":{"$error":"#REF!"}},{"$f":"SUMIFS(#REF!,#REF!,A18,#REF!,2021)","v":{"$error":"#REF!"}},{"$error":"#REF!"},null,"4.3 - Mananciais",{"$f":"SUMIFS(PAPI20_22_23[Recurso financeiro estimado no ano (R$) - CFURH],PAPI20_22_23[SubPDC],'Consolidaçao - 1'!H18,PAPI20_22_23[Ano previsto para início],2022)","v":0},{"$f":"SUMIFS(PAPI20_22_23[Recurso financeiro estimado no ano\n(R$) - Cobrança Estadual],PAPI20_22_23[SubPDC],'Consolidaçao - 1'!H18,PAPI20_22_23[Ano previsto para início],2022)","v":0},{"$f":"SUMIFS(PAPI20_22_23[Recurso financeiro estimado no ano\n(R$) - Cobrança Federal],PAPI20_22_23[SubPDC],'Consolidaçao - 1'!H18,PAPI20_22_23[Ano previsto para início],2022)","v":0},{"$f":"SUMIFS(PAPI20_22_23[Recurso financeiro estimado no ano (R$) - Outras],PAPI20_22_23[SubPDC],'Consolidaçao - 1'!H18,PAPI20_22_23[Ano previsto para início],2022)","v":0},0,{"$f":"SUMIFS(PAPI20_22_23[Recurso financeiro estimado no ano (R$) - CFURH],PAPI20_22_23[SubPDC],'Consolidaçao - 1'!H18,PAPI20_22_23[Ano previsto para início],2023)","v":0},{"$f":"SUMIFS(PAPI20_22_23[Recurso financeiro estimado no ano\n(R$) - Cobrança Estadual],PAPI20_22_23[SubPDC],'Consolidaçao - 1'!H18,PAPI20_22_23[Ano previsto para início],2023)","v":0},{"$f":"SUMIFS(PAPI20_22_23[Recurso financeiro estimado no ano\n(R$) - Cobrança Federal],PAPI20_22_23[SubPDC],'Consolidaçao - 1'!H18,PAPI20_22_23[Ano previsto para início],2023)","v":0},{"$f":"SUMIFS(PAPI20_22_23[Recurso financeiro estimado no ano (R$) - Outras],PAPI20_22_23[SubPDC],'Consolidaçao - 1'!H18,PAPI20_22_23[Ano previsto para início],2023)","v":0},0,0]
["3.4 - Erosão",{"$f":"SUMIFS(#REF!,#REF!,A19,#REF!,2021)","v":{"$error":"#REF!"}},{"$f":"SUMIFS(#REF!,#REF!,A19,#REF!,2021)","v":{"$error":"#REF!"}},{"$f":"SUMIFS(#REF!,#REF!,A19,#REF!,2021)","v":{"$error":"#REF!"}},{"$f":"SUMIFS(#REF!,#REF!,A19,#REF!,2021)","v":{"$error":"#REF!"}},{"$error":"#REF!"},null,"5.1 - Perdas",{"$f":"SUMIFS(PAPI20_22_23[Recurso financeiro estimado no ano (R$) - CFURH],PAPI20_22_23[SubPDC],'Consolidaçao - 1'!H19,PAPI20_22_23[Ano previsto para início],2022)","v":0},{"$f":"SUMIFS(PAPI20_22_23[Recurso financeiro estimado no ano\n(R$) - Cobrança Estadual],PAPI20_22_23[SubPDC],'Consolidaçao - 1'!H19,PAPI20_22_23[Ano previsto para início],2022)","v":0},{"$f":"SUMIFS(PAPI20_22_23[Recurso financeiro estimado no ano\n(R$) - Cobrança Federal],PAPI20_22_23[SubPDC],'Consolidaçao - 1'!H19,PAPI20_22_23[Ano previsto para início],2022)","v":0},{"$f":"SUMIFS(PAPI20_22_23[Recurso financeiro estimado no ano (R$) - Outras],PAPI20_22_23[SubPDC],'Consolidaçao - 1'!H19,PAPI20_22_23[Ano previsto para início],2022)","v":0},0,{"$f":"SUMIFS(PAPI20_22_23[Recurso financeiro estimado no ano (R$) - CFURH],PAPI20_22_23[SubPDC],'Consolidaçao - 1'!H19,PAPI20_22_23[Ano previsto para início],2023)","v":0},{"$f":"SUMIFS(PAPI20_22_23[Recurso financeiro estimado no ano\n(R$) - Cobrança Estadual],PAPI20_22_23[SubPDC],'Consolidaçao - 1'!H19,PAPI20_22_23[Ano previsto para início],2023)","v":0},{"$f":"SUMIFS(PAPI20_22_23[Recurso financeiro estimado no ano\n(R$) - Cobrança Federal],PAPI20_22_23[SubPDC],'Consolidaçao - 1'!H19,PAPI20_22_23[Ano previsto para início],2023)","v":0},{"$f":"SUMIFS(PAPI20_22_23[Recurso financeiro estimado no ano (R$) - Outras],PAPI20_22_23[SubPDC],'Consolidaçao - 1'!H19,PAPI20_22_23[Ano previsto para início],2023)","v":0},0,0]
["3.5 - Intervenções",{"$f":"SUMIFS(#REF!,#REF!,A20,#REF!,2021)","v":{"$error":"#REF!"}},{"$f":"SUMIFS(#REF!,#REF!,A20,#REF!,2021)","v":{"$error":"#REF!"}},{"$f":"SUMIFS(#REF!,#REF!,A20,#REF!,2021)","v":{"$error":"#REF!"}},{"$f":"SUMIFS(#REF!,#REF!,A20,#REF!,2021)","v":{"$error":"#REF!"}},{"$error":"#REF!"},null,"5.2 - Racionalização",{"$f":"SUMIFS(PAPI20_22_23[Recurso financeiro estimado no ano (R$) - CFURH],PAPI20_22_23[SubPDC],'Consolidaçao - 1'!H20,PAPI20_22_23[Ano previsto para início],2022)","v":0},{"$f":"SUMIFS(PAPI20_22_23[Recurso financeiro estimado no ano\n(R$) - Cobrança Estadual],PAPI20_22_23[SubPDC],'Consolidaçao - 1'!H20,PAPI20_22_23[Ano previsto para início],2022)","v":0},{"$f":"SUMIFS(PAPI20_22_23[Recurso financeiro estimado no ano\n(R$) - Cobrança Federal],PAPI20_22_23[SubPDC],'Consolidaçao - 1'!H20,PAPI20_22_23[Ano previsto para início],2022)","v":0},{"$f":"SUMIFS(PAPI20_22_23[Recurso financeiro estimado no ano (R$) - Outras],PAPI20_22_23[SubPDC],'Consolidaçao - 1'!H20,PAPI20_22_23[Ano previsto para início],2022)","v":0},0,{"$f":"SUMIFS(PAPI20_22_23[Recurso financeiro estimado no ano (R$) - CFURH],PAPI20_22_23[SubPDC],'Consolidaçao - 1'!H20,PAPI20_22_23[Ano previsto para início],2023)","v":0},{"$f":"SUMIFS(PAPI20_22_23[Recurso financeiro estimado no ano\n(R$) - Cobrança Estadual],PAPI20_22_23[SubPDC],'Consolidaçao - 1'!H20,PAPI20_22_23[Ano previsto para início],2023)","v":0},{"$f":"SUMIFS(PAPI20_22_23[Recurso financeiro estimado no ano\n(R$) - Cobrança Federal],PAPI20_22_23[SubPDC],'Consolidaçao - 1'!H20,PAPI20_22_23[Ano previsto para início],2023)","v":0},{"$f":"SUMIFS(PAPI20_22_23[Recurso financeiro estimado no ano (R$) - Outras],PAPI20_22_23[SubPDC],'Consolidaçao - 1'!H20,PAPI20_22_23[Ano previsto para início],2023)","v":0},0,0]
["4.1 - Mananciais",{"$f":"SUMIFS(#REF!,#REF!,A21,#REF!,2021)","v":{"$error":"#REF!"}},{"$f":"SUMIFS(#REF!,#REF!,A21,#REF!,2021)","v":{"$error":"#REF!"}},{"$f":"SUMIFS(#REF!,#REF!,A21,#REF!,2021)","v":{"$error":"#REF!"}},{"$f":"SUMIFS(#REF!,#REF!,A21,#REF!,2021)","v":{"$error":"#REF!"}},{"$error":"#REF!"},null,"5.3 - Reuso",{"$f":"SUMIFS(PAPI20_22_23[Recurso financeiro estimado no ano (R$) - CFURH],PAPI20_22_23[SubPDC],'Consolidaçao - 1'!H21,PAPI20_22_23[Ano previsto para início],2022)","v":0},{"$f":"SUMIFS(PAPI20_22_23[Recurso financeiro estimado no ano\n(R$) - Cobrança Estadual],PAPI20_22_23[SubPDC],'Consolidaçao - 1'!H21,PAPI20_22_23[Ano previsto para início],2022)","v":0},{"$f":"SUMIFS(PAPI20_22_23[Recurso financeiro estimado no ano\n(R$) - Cobrança Federal],PAPI20_22_23[SubPDC],'Consolidaçao - 1'!H21,PAPI20_22_23[Ano previsto para início],2022)","v":0},{"$f":"SUMIFS(PAPI20_22_23[Recurso financeiro estimado no ano (R$) - Outras],PAPI20_22_23[SubPDC],'Consolidaçao - 1'!H21,PAPI20_22_23[Ano previsto para início],2022)","v":0},0,{"$f":"SUMIFS(PAPI20_22_23[Recurso financeiro estimado no ano (R$) - CFURH],PAPI20_22_23[SubPDC],'Consolidaçao - 1'!H21,PAPI20_22_23[Ano previsto para início],2023)","v":0},{"$f":"SUMIFS(PAPI20_22_23[Recurso financeiro estimado no ano\n(R$) - Cobrança Estadual],PAPI20_22_23[SubPDC],'Consolidaçao - 1'!H21,PAPI20_22_23[Ano previsto para início],2023)","v":0},{"$f":"SUMIFS(PAPI20_22_23[Recurso financeiro estimado no ano\n(R$) - Cobrança Federal],PAPI20_22_23[SubPDC],'Consolidaçao - 1'!H21,PAPI20_22_23[Ano previsto para início],2023)","v":0},{"$f":"SUMIFS(PAPI20_22_23[Recurso financeiro estimado no ano (R$) - Outras],PAPI20_22_23[SubPDC],'Consolidaçao - 1'!H21,PAPI20_22_23[Ano previsto para início],2023)","v":0},0,0]
["4.2 - Vegetação",{"$f":"SUMIFS(#REF!,#REF!,A22,#REF!,2021)","v":{"$error":"#REF!"}},{"$f":"SUMIFS(#REF!,#REF!,A22,#REF!,2021)","v":{"$error":"#REF!"}},{"$f":"SUMIFS(#REF!,#REF!,A22,#REF!,2021)","v":{"$error":"#REF!"}},{"$f":"SUMIFS(#REF!,#REF!,A22,#REF!,2021)","v":{"$error":"#REF!"}},{"$error":"#REF!"},null,"6.1 - Captação",{"$f":"SUMIFS(PAPI20_22_23[Recurso financeiro estimado no ano (R$) - CFURH],PAPI20_22_23[SubPDC],'Consolidaçao - 1'!H22,PAPI20_22_23[Ano previsto para início],2022)","v":0},{"$f":"SUMIFS(PAPI20_22_23[Recurso financeiro estimado no ano\n(R$) - Cobrança Estadual],PAPI20_22_23[SubPDC],'Consolidaçao - 1'!H22,PAPI20_22_23[Ano previsto para início],2022)","v":0},{"$f":"SUMIFS(PAPI20_22_23[Recurso financeiro estimado no ano\n(R$) - Cobrança Federal],PAPI20_22_23[SubPDC],'Consolidaçao - 1'!H22,PAPI20_22_23[Ano previsto para início],2022)","v":0},{"$f":"SUMIFS(PAPI20_22_23[Recurso financeiro estimado no ano (R$) - Outras],PAPI20_22_23[SubPDC],'Consolidaçao - 1'!H22,PAPI20_22_23[Ano previsto para início],2022)","v":0},0,{"$f":"SUMIFS(PAPI20_22_23[Recurso financeiro estimado no ano (R$) - CFURH],PAPI20_22_23[SubPDC],'Consolidaçao - 1'!H22,PAPI20_22_23[Ano previsto para início],2023)","v":0},{"$f":"SUMIFS(PAPI20_22_23[Recurso financeiro estimado no ano\n(R$) - Cobrança Estadual],PAPI20_22_23[SubPDC],'Consolidaçao - 1'!H22,PAPI20_22_23[Ano previsto para início],2023)","v":0},{"$f":"SUMIFS(PAPI20_22_23[Recurso financeiro estimado no ano\n(R$) - Cobrança Federal],PAPI20_22_23[SubPDC],'Consolidaçao - 1'!H22,PAPI20_22_23[Ano previsto para início],2023)","v":0},{"$f":"SUMIFS(PAPI20_22_23[Recurso financeiro estimado no ano (R$) - Outras],PAPI20_22_23[SubPDC],'Consolidaçao - 1'!H22,PAPI20_22_23[Ano previsto para início],2023)","v":0},0,0]
["5.1 - Perdas",{"$f":"SUMIFS(#REF!,#REF!,A23,#REF!,2021)","v":{"$error":"#REF!"}},{"$f":"SUMIFS(#REF!,#REF!,A23,#REF!,2021)","v":{"$error":"#REF!"}},{"$f":"SUMIFS(#REF!,#REF!,A23,#REF!,2021)","v":{"$error":"#REF!"}},{"$f":"SUMIFS(#REF!,#REF!,A23,#REF!,2021)","v":{"$error":"#REF!"}},{"$error":"#REF!"},null,"6.2 - Regularização",{"$f":"SUMIFS(PAPI20_22_23[Recurso financeiro estimado no ano (R$) - CFURH],PAPI20_22_23[SubPDC],'Consolidaçao - 1'!H23,PAPI20_22_23[Ano previsto para início],2022)","v":0},{"$f":"SUMIFS(PAPI20_22_23[Recurso financeiro estimado no ano\n(R$) - Cobrança Estadual],PAPI20_22_23[SubPDC],'Consolidaçao - 1'!H23,PAPI20_22_23[Ano previsto para início],2022)","v":0},{"$f":"SUMIFS(PAPI20_22_23[Recurso financeiro estimado no ano\n(R$) - Cobrança Federal],PAPI20_22_23[SubPDC],'Consolidaçao - 1'!H23,PAPI20_22_23[Ano previsto para início],2022)","v":0},{"$f":"SUMIFS(PAPI20_22_23[Recurso financeiro estimado no ano (R$) - Outras],PAPI20_22_23[SubPDC],'Consolidaçao - 1'!H23,PAPI20_22_23[Ano previsto para início],2022)","v":0},0,{"$f":"SUMIFS(PAPI20_22_23[Recurso financeiro estimado no ano (R$) - CFURH],PAPI20_22_23[SubPDC],'Consolidaçao - 1'!H23,PAPI20_22_23[Ano previsto para início],2023)","v":0},{"$f":"SUMIFS(PAPI20_22_23[Recurso financeiro estimado no ano\n(R$) - Cobrança Estadual],PAPI20_22_23[SubPDC],'Consolidaçao - 1'!H23,PAPI20_22_23[Ano previsto para início],2023)","v":0},{"$f":"SUMIFS(PAPI20_22_23[Recurso financeiro estimado no ano\n(R$) - Cobrança Federal],PAPI20_22_23[SubPDC],'Consolidaçao - 1'!H23,PAPI20_22_23[Ano previsto para início],2023)","v":0},{"$f":"SUMIFS(PAPI20_22_23[Recurso financeiro estimado no ano (R$) - Outras],PAPI20_22_23[SubPDC],'Consolidaçao - 1'!H23,PAPI20_22_23[Ano previsto para início],2023)","v":0},0,0]
["5.2 - Racionalização",{"$f":"SUMIFS(#REF!,#REF!,A24,#REF!,2021)","v":{"$error":"#REF!"}},{"$f":"SUMIFS(#REF!,#REF!,A24,#REF!,2021)","v":{"$error":"#REF!"}},{"$f":"SUMIFS(#REF!,#REF!,A24,#REF!,2021)","v":{"$error":"#REF!"}},{"$f":"SUMIFS(#REF!,#REF!,A24,#REF!,2021)","v":{"$error":"#REF!"}},{"$error":"#REF!"},null,"7.1 - Drenagem",{"$f":"SUMIFS(PAPI20_22_23[Recurso financeiro estimado no ano (R$) - CFURH],PAPI20_22_23[SubPDC],'Consolidaçao - 1'!H24,PAPI20_22_23[Ano previsto para início],2022)","v":0},{"$f":"SUMIFS(PAPI20_22_23[Recurso financeiro estimado no ano\n(R$) - Cobrança Estadual],PAPI20_22_23[SubPDC],'Consolidaçao - 1'!H24,PAPI20_22_23[Ano previsto para início],2022)","v":0},{"$f":"SUMIFS(PAPI20_22_23[Recurso financeiro estimado no ano\n(R$) - Cobrança Federal],PAPI20_22_23[SubPDC],'Consolidaçao - 1'!H24,PAPI20_22_23[Ano previsto para início],2022)","v":0},{"$f":"SUMIFS(PAPI20_22_23[Recurso financeiro estimado no ano (R$) - Outras],PAPI20_22_23[SubPDC],'Consolidaçao - 1'!H24,PAPI20_22_23[Ano previsto para início],2022)","v":0},0,{"$f":"SUMIFS(PAPI20_22_23[Recurso financeiro estimado no ano (R$) - CFURH],PAPI20_22_23[SubPDC],'Consolidaçao - 1'!H24,PAPI20_22_23[Ano previsto para início],2023)","v":0},{"$f":"SUMIFS(PAPI20_22_23[Recurso financeiro estimado no ano\n(R$) - Cobrança Estadual],PAPI20_22_23[SubPDC],'Consolidaçao - 1'!H24,PAPI20_22_23[Ano previsto para início],2023)","v":0},{"$f":"SUMIFS(PAPI20_22_23[Recurso financeiro estimado no ano\n(R$) - Cobrança Federal],PAPI20_22_23[SubPDC],'Consolidaçao - 1'!H24,PAPI20_22_23[Ano previsto para início],2023)","v":0},{"$f":"SUMIFS(PAPI20_22_23[Recurso financeiro estimado no ano (R$) - Outras],PAPI20_22_23[SubPDC],'Consolidaçao - 1'!H24,PAPI20_22_23[Ano previsto para início],2023)","v":0},0,0]
["5.3 - Reuso",{"$f":"SUMIFS(#REF!,#REF!,A25,#REF!,2021)","v":{"$error":"#REF!"}},{"$f":"SUMIFS(#REF!,#REF!,A25,#REF!,2021)","v":{"$error":"#REF!"}},{"$f":"SUMIFS(#REF!,#REF!,A25,#REF!,2021)","v":{"$error":"#REF!"}},{"$f":"SUMIFS(#REF!,#REF!,A25,#REF!,2021)","v":{"$error":"#REF!"}},{"$error":"#REF!"},null,"7.2 - Escassez",{"$f":"SUMIFS(PAPI20_22_23[Recurso financeiro estimado no ano (R$) - CFURH],PAPI20_22_23[SubPDC],'Consolidaçao - 1'!H25,PAPI20_22_23[Ano previsto para início],2022)","v":0},{"$f":"SUMIFS(PAPI20_22_23[Recurso financeiro estimado no ano\n(R$) - Cobrança Estadual],PAPI20_22_23[SubPDC],'Consolidaçao - 1'!H25,PAPI20_22_23[Ano previsto para início],2022)","v":0},{"$f":"SUMIFS(PAPI20_22_23[Recurso financeiro estimado no ano\n(R$) - Cobrança Federal],PAPI20_22_23[SubPDC],'Consolidaçao - 1'!H25,PAPI20_22_23[Ano previsto para início],2022)","v":0},{"$f":"SUMIFS(PAPI20_22_23[Recurso financeiro estimado no ano (R$) - Outras],PAPI20_22_23[SubPDC],'Consolidaçao - 1'!H25,PAPI20_22_23[Ano previsto para início],2022)","v":0},0,{"$f":"SUMIFS(PAPI20_22_23[Recurso financeiro estimado no ano (R$) - CFURH],PAPI20_22_23[SubPDC],'Consolidaçao - 1'!H25,PAPI20_22_23[Ano previsto para início],2023)","v":0},{"$f":"SUMIFS(PAPI20_22_23[Recurso financeiro estimado no ano\n(R$) - Cobrança Estadual],PAPI20_22_23[SubPDC],'Consolidaçao - 1'!H25,PAPI20_22_23[Ano previsto para início],2023)","v":0},{"$f":"SUMIFS(PAPI20_22_23[Recurso financeiro estimado no ano\n(R$) - Cobrança Federal],PAPI20_22_23[SubPDC],'Consolidaçao - 1'!H25,PAPI20_22_23[Ano previsto para início],2023)","v":0},{"$f":"SUMIFS(PAPI20_22_23[Recurso financeiro estimado no ano (R$) - Outras],PAPI20_22_23[SubPDC],'Consolidaçao - 1'!H25,PAPI20_22_23[Ano previsto para início],2023)","v":0},0,0]
["6.1 - Usos",{"$f":"SUMIFS(#REF!,#REF!,A26,#REF!,2021)","v":{"$error":"#REF!"}},{"$f":"SUMIFS(#REF!,#REF!,A26,#REF!,2021)","v":{"$error":"#REF!"}},{"$f":"SUMIFS(#REF!,#REF!,A26,#REF!,2021)","v":{"$error":"#REF!"}},{"$f":"SUMIFS(#REF!,#REF!,A26,#REF!,2021)","v":{"$error":"#REF!"}},{"$error":"#REF!"},null,"8.1 - Capacitação",{"$f":"SUMIFS(PAPI20_22_23[Recurso financeiro estimado no ano (R$) - CFURH],PAPI20_22_23[SubPDC],'Consolidaçao - 1'!H26,PAPI20_22_23[Ano previsto para início],2022)","v":0},{"$f":"SUMIFS(PAPI20_22_23[Recurso financeiro estimado no ano\n(R$) - Cobrança Estadual],PAPI20_22_23[SubPDC],'Consolidaçao - 1'!H26,PAPI20_22_23[Ano previsto para início],2022)","v":0},{"$f":"SUMIFS(PAPI20_22_23[Recurso financeiro estimado no ano\n(R$) - Cobrança Federal],PAPI20_22_23[SubPDC],'Consolidaçao - 1'!H26,PAPI20_22_23[Ano previsto para início],2022)","v":0},{"$f":"SUMIFS(PAPI20_22_23[Recurso financeiro estimado no ano (R$) - Outras],PAPI20_22_23[SubPDC],'Consolidaçao - 1'!H26,PAPI20_22_23[Ano previsto para início],2022)","v":0},0,{"$f":"SUMIFS(PAPI20_22_23[Recurso financeiro estimado no ano (R$) - CFURH],PAPI20_22_23[SubPDC],'Consolidaçao - 1'!H26,PAPI20_22_23[Ano previsto para início],2023)","v":0},{"$f":"SUMIFS(PAPI20_22_23[Recurso financeiro estimado no ano\n(R$) - Cobrança Estadual],PAPI20_22_23[SubPDC],'Consolidaçao - 1'!H26,PAPI20_22_23[Ano previsto para início],2023)","v":0},{"$f":"SUMIFS(PAPI20_22_23[Recurso financeiro estimado no ano\n(R$) - Cobrança Federal],PAPI20_22_23[SubPDC],'Consolidaçao - 1'!H26,PAPI20_22_23[Ano previsto para início],2023)","v":0},{"$f":"SUMIFS(PAPI20_22_23[Recurso financeiro estimado no ano (R$) - Outras],PAPI20_22_23[SubPDC],'Consolidaçao - 1'!H26,PAPI20_22_23[Ano previsto para início],2023)","v":0},0,0]
["6.2 - Segurança",{"$f":"SUMIFS(#REF!,#REF!,A27,#REF!,2021)","v":{"$error":"#REF!"}},{"$f":"SUMIFS(#REF!,#REF!,A27,#REF!,2021)","v":{"$error":"#REF!"}},{"$f":"SUMIFS(#REF!,#REF!,A27,#REF!,2021)","v":{"$error":"#REF!"}},{"$f":"SUMIFS(#REF!,#REF!,A27,#REF!,2021)","v":{"$error":"#REF!"}},{"$error":"#REF!"},null,"8.2 - Educação",{"$f":"SUMIFS(PAPI20_22_23[Recurso financeiro estimado no ano (R$) - CFURH],PAPI20_22_23[SubPDC],'Consolidaçao - 1'!H27,PAPI20_22_23[Ano previsto para início],2022)","v":0},{"$f":"SUMIFS(PAPI20_22_23[Recurso financeiro estimado no ano\n(R$) - Cobrança Estadual],PAPI20_22_23[SubPDC],'Consolidaçao - 1'!H27,PAPI20_22_23[Ano previsto para início],2022)","v":0},{"$f":"SUMIFS(PAPI20_22_23[Recurso financeiro estimado no ano\n(R$) - Cobrança Federal],PAPI20_22_23[SubPDC],'Consolidaçao - 1'!H27,PAPI20_22_23[Ano previsto para início],2022)","v":0},{"$f":"SUMIFS(PAPI20_22_23[Recurso financeiro estimado no ano (R$) - Outras],PAPI20_22_23[SubPDC],'Consolidaçao - 1'!H27,PAPI20_22_23[Ano previsto para início],2022)","v":0},0,{"$f":"SUMIFS(PAPI20_22_23[Recurso financeiro estimado no ano (R$) - CFURH],PAPI20_22_23[SubPDC],'Consolidaçao - 1'!H27,PAPI20_22_23[Ano previsto para início],2023)","v":0},{"$f":"SUMIFS(PAPI20_22_23[Recurso financeiro estimado no ano\n(R$) - Cobrança Estadual],PAPI20_22_23[SubPDC],'Consolidaçao - 1'!H27,PAPI20_22_23[Ano previsto para início],2023)","v":0},{"$f":"SUMIFS(PAPI20_22_23[Recurso financeiro estimado no ano\n(R$) - Cobrança Federal],PAPI20_22_23[SubPDC],'Consolidaçao - 1'!H27,PAPI20_22_23[Ano previsto para início],2023)","v":0},{"$f":"SUMIFS(PAPI20_22_23[Recurso financeiro estimado no ano (R$) - Outras],PAPI20_22_23[SubPDC],'Consolidaçao - 1'!H27,PAPI20_22_23[Ano previsto para início],2023)","v":0},0,0]
["6.3 - Aproveitamento",{"$f":"SUMIFS(#REF!,#REF!,A28,#REF!,2021)","v":{"$error":"#REF!"}},{"$f":"SUMIFS(#REF!,#REF!,A28,#REF!,2021)","v":{"$error":"#REF!"}},{"$f":"SUMIFS(#REF!,#REF!,A28,#REF!,2021)","v":{"$error":"#REF!"}},{"$f":"SUMIFS(#REF!,#REF!,A28,#REF!,2021)","v":{"$error":"#REF!"}},{"$error":"#REF!"},null,"8.3 - Comunicação",{"$f":"SUMIFS(PAPI20_22_23[Recurso financeiro estimado no ano (R$) - CFURH],PAPI20_22_23[SubPDC],'Consolidaçao - 1'!H28,PAPI20_22_23[Ano previsto para início],2022)","v":0},{"$f":"SUMIFS(PAPI20_22_23[Recurso financeiro estimado no ano\n(R$) - Cobrança Estadual],PAPI20_22_23[SubPDC],'Consolidaçao - 1'!H28,PAPI20_22_23[Ano previsto para início],2022)","v":0},{"$f":"SUMIFS(PAPI20_22_23[Recurso financeiro estimado no ano\n(R$) - Cobrança Federal],PAPI20_22_23[SubPDC],'Consolidaçao - 1'!H28,PAPI20_22_23[Ano previsto para início],2022)","v":0},{"$f":"SUMIFS(PAPI20_22_23[Recurso financeiro estimado no ano (R$) - Outras],PAPI20_22_23[SubPDC],'Consolidaçao - 1'!H28,PAPI20_22_23[Ano previsto para início],2022)","v":0},0,{"$f":"SUMIFS(PAPI20_22_23[Recurso financeiro estimado no ano (R$) - CFURH],PAPI20_22_23[SubPDC],'Consolidaçao - 1'!H28,PAPI20_22_23[Ano previsto para início],2023)","v":0},{"$f":"SUMIFS(PAPI20_22_23[Recurso financeiro estimado no ano\n(R$) - Cobrança Estadual],PAPI20_22_23[SubPDC],'Consolidaçao - 1'!H28,PAPI20_22_23[Ano previsto para início],2023)","v":0},{"$f":"SUMIFS(PAPI20_22_23[Recurso financeiro estimado no ano\n(R$) - Cobrança Federal],PAPI20_22_23[SubPDC],'Consolidaçao - 1'!H28,PAPI20_22_23[Ano previsto para início],2023)","v":0},{"$f":"SUMIFS(PAPI20_22_23[Recurso financeiro estimado no ano (R$) - Outras],PAPI20_22_23[SubPDC],'Consolidaçao - 1'!H28,PAPI20_22_23[Ano previsto para início],2023)","v":0},0,0]
["7.1 - Criticidades",{"$f":"SUMIFS(#REF!,#REF!,A29,#REF!,2021)","v":{"$error":"#REF!"}},{"$f":"SUMIFS(#REF!,#REF!,A29,#REF!,2021)","v":{"$error":"#REF!"}},{"$f":"SUMIFS(#REF!,#REF!,A29,#REF!,2021)","v":{"$error":"#REF!"}},{"$f":"SUMIFS(#REF!,#REF!,A29,#REF!,2021)","v":{"$error":"#REF!"}},{"$error":"#REF!"}]
["7.2 - Inundações",{"$f":"SUMIFS(#REF!,#REF!,A30,#REF!,2021)","v":{"$error":"#REF!"}},{"$f":"SUMIFS(#REF!,#REF!,A30,#REF!,2021)","v":{"$error":"#REF!"}},{"$f":"SUMIFS(#REF!,#REF!,A30,#REF!,2021)","v":{"$error":"#REF!"}},{"$f":"SUMIFS(#REF!,#REF!,A30,#REF!,2021)","v":{"$error":"#REF!"}},{"$error":"#REF!"},null,"Delib. 246","PDC 1 e 2","Prioritário","Não Prioritário"]
["7.3 - Estiagens",{"$f":"SUMIFS(#REF!,#REF!,A31,#REF!,2021)","v":{"$error":"#REF!"}},{"$f":"SUMIFS(#REF!,#REF!,A31,#REF!,2021)","v":{"$error":"#REF!"}},{"$f":"SUMIFS(#REF!,#REF!,A31,#REF!,2021)","v":{"$error":"#REF!"}},{"$f":"SUMIFS(#REF!,#REF!,A31,#REF!,2021)","v":{"$error":"#REF!"}},{"$error":"#REF!"},null,"SubPDC",{"$f":"SUMIF(#REF!,I$30,PAPI20_22_23[Recurso financeiro estimado no ano\n(R$)])","v":{"$error":"#REF!"}},{"$f":"SUMIF(#REF!,J$30,PAPI20_22_23[Recurso financeiro estimado no ano\n(R$)])","v":{"$error":"#REF!"}},{"$f":"SUMIF(#REF!,K$30,PAPI20_22_23[Recurso financeiro estimado no ano\n(R$)])","v":{"$error":"#REF!"}}]
["8.1 - Capacitação",{"$f":"SUMIFS(#REF!,#REF!,A32,#REF!,2021)","v":{"$error":"#REF!"}},{"$f":"SUMIFS(#REF!,#REF!,A32,#REF!,2021)","v":{"$error":"#REF!"}},{"$f":"SUMIFS(#REF!,#REF!,A32,#REF!,2021)","v":{"$error":"#REF!"}},{"$f":"SUMIFS(#REF!,#REF!,A32,#REF!,2021)","v":{"$error":"#REF!"}},{"$error":"#REF!"},null,null,{"$f":"IFERROR(I31/SUM(I31:K31),\"\")","v":""},{"$f":"IFERROR(J31/SUM(I31:K31),\"\")","v":""},{"$f":"IFERROR(K31/SUM(I31:K31),\"\")","v":""}]
["8.2 - Educação",{"$f":"SUMIFS(#REF!,#REF!,A33,#REF!,2021)","v":{"$error":"#REF!"}},{"$f":"SUMIFS(#REF!,#REF!,A33,#REF!,2021)","v":{"$error":"#REF!"}},{"$f":"SUMIFS(#REF!,#REF!,A33,#REF!,2021)","v":{"$error":"#REF!"}},{"$f":"SUMIFS(#REF!,#REF!,A33,#REF!,2021)","v":{"$error":"#REF!"}},{"$error":"#REF!"}]
["8.3 - Comunicação",{"$f":"SUMIFS(#REF!,#REF!,A34,#REF!,2021)","v":{"$error":"#REF!"}},{"$f":"SUMIFS(#REF!,#REF!,A34,#REF!,2021)","v":{"$error":"#REF!"}},{"$f":"SUMIFS(#REF!,#REF!,A34,#REF!,2021)","v":{"$error":"#REF!"}},{"$f":"SUMIFS(#REF!,#REF!,A34,#REF!,2021)","v":{"$error":"#REF!"}},{"$error":"#REF!"}]
[]
["Delib. 190","PDC 1 e 2","Prioritário","Não Prioritário"]
["SubPDC",{"$f":"SUMIF(#REF!,B$36,#REF!)","v":{"$error":"#REF!"}},{"$f":"SUMIF(#REF!,C$36,#REF!)","v":{"$error":"#REF!"}},{"$f":"SUMIF(#REF!,D$36,#REF!)","v":{"$error":"#REF!"}}]
[null,{"$f":"B37/SUM(B37:D37)","v":{"$error":"#REF!"}},{"$f":"C37/SUM(B37:D37)","v":{"$error":"#REF!"}},{"$f":"D37/SUM(B37:D37)","v":{"$error":"#REF!"}}]

{"sheet":"Consolidaçao - 2","index":6,"n_rows":2,"n_cols":1,"rows_kept":2,"cut":false,"hidden":true,"merged":[]}
["Para atualizar, vá em Dados --> Atualizar Tudo ou aperte"]
["CTRL + Alt + F5"]

{"sheet":"Orientações","index":7,"n_rows":17,"n_cols":3,"rows_kept":17,"cut":false,"hidden":false,"merged":[]}
[null,null,"MELHOR VISUALIZADO no Office 365"]
[]
[null,null,"Este modelo de PAPI para o quadriênio 2024-2027 tem uma estrutura distinta dos enviados nos outros períodos/anos, pois ele contempla tanto o PAPI 24-27 e seu acompanhamento, quanto o acompanhamento do PAPI anterior."]
[null,null,"Está dividido em multiplas  planilhas (\"abas\"), estruturadas em dois grupos: PAPI 24-27 e PAPI 20-23 (Acompanhamento). A expectativa é que a mesma planilha sirva para todo o quadriênio."]
[]
[]
[]
[null,"A","PAPI 2024-2027"]
[null,null,"Compreende quatro planilhas (\"abas\") e se refere ao planejamento e acompanhamento do PAPI - 24-27. "]
[null,1,"Identificação das ações - 24-27\" - Compreende a indicação das ações previstas para o PAPI 2024-2027. Sugere-se a indicação do que será produzido/realizado com o recurso pleiteado, considerando a esfera de atuação direta do CBH. Envolve um fluxo de atividades a serem executadas para entregar um produto final. Preencher TODAS  informações das colunas também de forma sequencial (esquerda para direita)."]
[null,2,"Acompanhamento das metas 24-27 - Compreende a indicação e o acompanhamento da execução das Metas (do quadriênio e anuais).Devem ser quantificáveis e mensuráveis por meio de indicadores que reflitam as mudanças para as quais espera-se que as intervenções previstos pelas ações propostas influenciem."]
[null,3,"Acomp. Financeiro  24-27  -  Acompanhamento das previsões dos valores (R$) planejados, disponbilizados e executados. Para esta primeira etapa, só precisam ser preenchidos os valores Planejados (colunas em roxo). O acompanhamento se dará ao longo do quadriênio."]
[null,4,"PAPI 2024-2027 - Resultado automático do preenchimento anterior. Somente as ações sem recursos financeiros previstos deve ser preenchida. As demais são inseridas automaticamente. É o conteúdo mínimo do PAPI 24/27 que deve ser deliberado e referendado nas revisões anuais."]
[]
[null,"B","ACOMPANHAMENTO -  PAPI 20-23"]
[null,null,"Compreende o acompanhamento das ações iniciadas no quadriênio anterior. Como grande parte delas ainda está em execução,  ideal é monitorar, na medida do possível, sua execução."]
[null,1,"Serão utilizadas as mesmas planilhas do ano anterior, que devem ser incorporadas no presente arquivo. Observar as duas colunas na cor roxa, relativa ao acompanhamento 2024. As outras colunas devem ser copiadas do último PAPI aprovado. Como se trata do acompanhamento de 2024 dessas ações, só será iniciado em 2025."]

{"sheet":"Acomp. - PAPI_21 (Delib. 190) ","index":8,"n_rows":1,"n_cols":12,"rows_kept":1,"cut":false,"hidden":false,"merged":[]}
["ID Ação","Ano","SubPDC","Prioridade do SubPDC","Ação","Meta","% Execução da meta","Segmento do executor","Área de abrangência","Nome da área de abrangência","Recurso financeiro executado no ano (R$)","Justificativa sobre execução física e financeira em 2024"]

{"sheet":"Acomp. PAPI_22_23 (Delib. 246) ","index":9,"n_rows":1,"n_cols":11,"rows_kept":1,"cut":false,"hidden":false,"merged":[]}
["ID Ação","Ano","SubPDC","Prioridade do SubPDC","Ação","Meta","% Execução da meta","Segmento do executor","Área de abrangência","Nome da área de abrangência","Justificativa sobre execução física e financeira em 2024"]

{"sheet":"Operacional","index":10,"n_rows":76,"n_cols":95,"rows_kept":76,"cut":false,"hidden":false,"merged":[]}
[null,"SubPDC - Delib.CRH N° 190 /2016","SubPDC - Delib.CRH N° 246/2021 ",null,"Area","Executor","Fonte",null,"Tipo de Ação",null,"Prioridade",null,"Fonte"]
[null,"1.1 - SI","Não se aplica",null,"APRM","Estado","CFURH",null,"Obra",null,"Não prioritário",null,"FEHIDRO - Cobrança estadual"]
[null,"1.2 - Planejamento","1.1 - Legislação",null,"Aquífero","Município","Cobrança Estadual",null,"Serviços",null,"PDC 1 e 2",null,"FEHIDRO - CFURH"]
[null,"1.3 - Enquadramento","1.2 - Planejamento",null,"Área rural","Sociedade Civil","Outras",null,"Projeto Básico/Executivo",null,"Prioritário",null,"Cobrança Federal"]
[null,"1.4 - Monitoramento","2.1 - Plano",null,"Área urbana","Município e Sociedade Civil","Cobrança Federal",null,"Estudo/Diagnóstico",null,null,null,"Tesouro do Estado"]
[null,"1.5 - Disponibilidade","2.2 - Outorga",null,"Bacia","Estado e Município",null,null,"Capacitação",null,null,null,"Fundo especial de despesa\n"]
[null,"1.6 - Legislação","2.3 - Cobrança",null,"Corpo hídrico","Estado e Sociedade Civil",null,null,null,null,null,null,"Recursos da administração indireta"]
[null,"1.7 - Poluição","2.4 - Enquadramento",null,"Município","Estado, Município e Sociedade Civil",null,null,null,null,null,null,"Recursos vinculados federais"]
[null,"2.1 - Planos","2.5 - Redes de monitoramento e SI",null,"Região Hidrográfica","Iniciativa privada",null,null,null,null,null,null,"Operações de crédito"]
[null,"2.2 - Outorga","2.6 - Integração",null,"Sub-bacia",null,null,null,null,null,null,null,"Recursos privados da sociedade civil"]
[null,"2.3 - Cobrança","2.7 - CORHI",null,"UGRHi",null,null,null,null,null,null,null,"Recursos de instrumentos de fomento"]
[null,"2.4 - Efetivação","3.1 - Efluentes",null,"Outra",null,null,null,null,null,null,null,"Outras fontes"]
[null,"2.5 - Integração","3.2 - Poluição"]
[null,"2.6 - CORHI","3.3 - Resíduos"]
[null,"3.1 - Efluentes","3.4 - Intervenções"]
[null,"3.2 - Resíduos","4.1 - Controle erosão",null,null,null,"PRIORIDADE"]
[null,"3.3 - Drenagem","4.2 - Soluções baseadas Natureza",null,null,null,"PDC 1 e 2"]
[null,"3.4 - Erosão","4.3 - Mananciais",null,null,null,"Prioritário"]
[null,"3.5 - Intervenções","5.1 - Perdas",null,null,null,"Não prioritário"]
[null,"4.1 - Mananciais","5.2 - Racionalização"]
[null,"4.2 - Vegetação","5.3 - Reuso",null,"Area"]
[null,"5.1 - Perdas","6.1 - Captação",null,"APRM"]
[null,"5.2 - Racionalização","6.2 - Regularização",null,"Aquífero"]
[null,"5.3 - Reuso","7.1 - Drenagem",null,"Área rural (via de circulação; rodovia; distrito; etc.)"]
[null,"6.1 - Usos","7.2 - Escassez",null,"Área urbana (bairro; via de circulação; distrito; praça; parque; etc.)"]
[null,"6.2 - Segurança","8.1 - Capacitação",null,"Bacia"]
[null,"6.3 - Aproveitamento","8.2 - Educação",null,"Corpo hídrico"]
[null,"7.1 - Criticidades","8.3 - Comunicação",null,"Município"]
[null,"7.2 - Inundações",null,null,"Região Hidrográfica"]
[null,"7.3 - Estiagens",null,null,"Sub-bacia"]
[null,"8.1 - Capacitação",null,null,"UGRHi"]
[null,"8.2 - Educação"]
[null,"8.3 - Comunicação"]
[]
[]
[null,"Delib. CRH N° 246/2021 ",null,null,null,null,null,null,null,null,null,null,null,null,null,null,null,null,null,null,null,null,null,null,null,null,null,null,null,null,null,null,null,null,null,null,null,null,null,null,null,null,null,null,null,null,null,null,null,null,null,null,null,null,null,null,null,null,null,null,null,null,null,"Delib. CRH N° 190/2016, revogada a partir de 31/12/21"]
["Não se aplica","1.1 - Legislação","1.2 - Planejamento","2.1 - Plano","2.2 - Outorga","2.3 - Cobrança","2.4 - Enquadramento","2.5 - Redes de monitoramento e SI","2.6 - Integração","2.7 - CORHI","3.1 - Efluentes","3.2 - Poluição","3.3 - Resíduos","3.4 - Intervenções","4.1 - Controle erosão","4.2 - Soluções baseadas Natureza","4.3 - Mananciais","5.1 - Perdas","5.2 - Racionalização","5.3 - Reuso","6.1 - Captação","6.2 - Regularização","7.1 - Drenagem","7.2 - Escassez","8.1 - Capacitação","8.2 - Educação","8.3 - Comunicação",null,null,null,null,null,null,null,null,null,null,null,null,null,null,null,null,null,null,null,null,null,null,null,null,null,null,null,null,null,null,null,null,2020,2021,null,null,"1.1 - SI","1.2 - Planejamento","1.3 - Enquadramento","1.4 - Monitoramento","1.5 - Disponibilidade","1.6 - Legislação","1.7 - Poluição","2.1 - Planos","2.2 - Outorga","2.3 - Cobrança","2.4 - Efetivação","2.5 - Integração","2.6 - CORHI","3.1 - Efluentes","3.2 - Resíduos","3.3 - Drenagem","3.4 - Erosão","3.5 - Intervenções","4.1 - Mananciais","4.2 - Vegetação","5.1 - Perdas","5.2 - Racionalização","5.3 - Reuso","6.1 - Usos","6.2 - Segurança","6.3 - Aproveitamento","7.1 - Criticidades","7.2 - Inundações","7.3 - Estiagens","8.1 - Capacitação","8.2 - Educação","8.3 - Comunicação"]
["Não se aplica","PDC 1 e 2","PDC 1 e 2","PDC 1 e 2","PDC 1 e 2","PDC 1 e 2","PDC 1 e 2","PDC 1 e 2","PDC 1 e 2","PDC 1 e 2","Prioritário","Prioritário","Prioritário","Prioritário","Prioritário","Prioritário","Prioritário","Prioritário","Prioritário","Prioritário","Prioritário","Prioritário","Prioritário","Prioritário","Prioritário","Prioritário","Prioritário",null,null,null,null,null,null,null,null,null,null,null,null,null,null,null,null,null,null,null,null,null,null,null,null,null,null,null,null,null,null,null,null,"1.1","1.1",null,null,"PDC 1 e 2","PDC 1 e 2","PDC 1 e 2","PDC 1 e 2","PDC 1 e 2","PDC 1 e 2","PDC 1 e 2","PDC 1 e 2","PDC 1 e 2","PDC 1 e 2","PDC 1 e 2","PDC 1 e 2","PDC 1 e 2","Prioritário","Prioritário","Prioritário","Prioritário","Prioritário","Prioritário","Prioritário","Prioritário","Prioritário","Prioritário","Prioritário","Prioritário","Prioritário","Prioritário","Prioritário","Prioritário","Prioritário","Prioritário","Prioritário"]
[null,null,null,null,null,null,null,null,null,null,"Não prioritário","Não prioritário","Não prioritário","Não prioritário","Não prioritário","Não prioritário","Não prioritário","Não prioritário","Não prioritário","Não prioritário","Não prioritário","Não prioritário","Não prioritário","Não prioritário","Não prioritário","Não prioritário","Não prioritário",null,null,null,null,null,null,null,null,null,null,null,null,null,null,null,null,null,null,null,null,null,null,null,null,null,null,null,null,null,null,null,null,"1.2","1.2",null,null,null,null,null,null,null,null,null,null,null,null,null,null,null,"Não prioritário","Não prioritário","Não prioritário","Não prioritário","Não prioritário","Não prioritário","Não prioritário","Não prioritário","Não prioritário","Não prioritário","Não prioritário","Não prioritário","Não prioritário","Não prioritário","Não prioritário","Não prioritário","Não prioritário","Não prioritário","Não prioritário"]
[null,null,null,null,null,null,null,null,null,null,null,null,null,null,null,null,null,null,null,null,null,null,null,null,null,null,null,null,null,null,null,null,null,null,null,null,null,null,null,null,null,null,null,null,null,null,null,null,null,null,null,null,null,null,null,null,null,null,null,"1.3","1.3"]
[null,null,null,null,null,null,null,null,null,null,null,null,null,null,null,null,null,null,null,null,null,null,null,null,null,null,null,null,null,null,null,null,null,null,null,null,null,null,null,null,null,null,null,null,null,null,null,null,null,null,null,null,null,null,null,null,null,null,null,"1.4","1.4"]
[null,null,null,null,null,null,null,null,null,null,null,null,null,null,null,null,null,null,null,null,null,null,null,null,null,null,null,null,null,null,null,null,null,null,null,null,null,null,null,null,null,null,null,null,null,null,null,null,null,null,null,null,null,null,null,null,null,null,null,"1.5","1.5"]
[null,null,null,null,null,null,null,null,null,null,null,null,null,null,null,null,null,null,null,null,null,null,null,null,null,null,null,null,null,null,null,null,null,null,null,null,null,null,null,null,null,null,null,null,null,null,null,null,null,null,null,null,null,null,null,null,null,null,null,"1.6","1.6"]
[null,null,null,null,null,null,null,null,null,null,null,null,null,null,null,null,null,null,null,null,null,null,null,null,null,null,null,null,null,null,null,null,null,null,null,null,null,null,null,null,null,null,null,null,null,null,null,null,null,null,null,null,null,null,null,null,null,null,null,"1.7","1.7"]
["Sim","Não",null,null,null,null,null,null,null,null,null,null,null,null,null,null,null,null,null,null,null,null,null,null,null,null,null,null,null,null,null,null,null,null,null,null,null,null,null,null,null,null,null,null,null,null,null,null,null,null,null,null,null,null,null,null,null,null,null,"2.1","2.1"]
["Sim","Sim",null,null,null,null,null,null,null,null,null,null,null,null,null,null,null,null,null,null,null,null,null,null,null,null,null,null,null,null,null,null,null,null,null,null,null,null,null,null,null,null,null,null,null,null,null,null,null,null,null,null,null,null,null,null,null,null,null,"2.2","2.2"]
[null,"Não",null,null,null,null,null,null,null,null,null,null,null,null,null,null,null,null,null,null,null,null,null,null,null,null,null,null,null,null,null,null,null,null,null,null,null,null,null,null,null,null,null,null,null,null,null,null,null,null,null,null,null,null,null,null,null,null,null,"2.3","2.3"]
[null,null,null,null,null,null,null,null,null,null,null,null,null,null,null,null,null,null,null,null,null,null,null,null,null,null,null,null,null,null,null,null,null,null,null,null,null,null,null,null,null,null,null,null,null,null,null,null,null,null,null,null,null,null,null,null,null,null,null,"2.4","2.4"]
[null,null,null,null,null,null,null,null,null,null,null,null,null,null,null,null,null,null,null,null,null,null,null,null,null,null,null,null,null,null,null,null,null,null,null,null,null,null,null,null,null,null,null,null,null,null,null,null,null,null,null,null,null,null,null,null,null,null,null,"2.5","2.5"]
[null,null,null,null,null,null,null,null,null,null,null,null,null,null,null,null,null,null,null,null,null,null,null,null,null,null,null,null,null,null,null,null,null,null,null,null,null,null,null,null,null,null,null,null,null,null,null,null,null,null,null,null,null,null,null,null,null,null,null,"2.6","2.6"]
["Não se aplica","Não se aplica",null,null,null,null,null,null,null,null,null,null,null,null,null,null,null,null,null,null,null,null,null,null,null,null,null,null,null,null,null,null,null,null,null,null,null,null,null,null,null,null,null,null,null,null,null,null,null,null,null,null,null,null,null,null,null,null,null,"3.1","3.1"]
["1.1 - Legislação","PDC 1 e 2",null,null,null,null,null,null,null,null,null,null,null,null,null,null,null,null,null,null,null,null,null,null,null,null,null,null,null,null,null,null,null,null,null,null,null,null,null,null,null,null,null,null,null,null,null,null,null,null,null,null,null,null,null,null,null,null,null,"3.2","3.2"]
["1.2 - Planejamento",null,null,null,null,null,null,null,null,null,null,null,null,null,null,null,null,null,null,null,null,null,null,null,null,null,null,null,null,null,null,null,null,null,null,null,null,null,null,null,null,null,null,null,null,null,null,null,null,null,null,null,null,null,null,null,null,null,null,"3.3","3.3"]
["2.1 - Plano",null,null,null,null,null,null,null,null,null,null,null,null,null,null,null,null,null,null,null,null,null,null,null,null,null,null,null,null,null,null,null,null,null,null,null,null,null,null,null,null,null,null,null,null,null,null,null,null,null,null,null,null,null,null,null,null,null,null,"3.4","3.4"]
["2.2 - Outorga",null,null,null,null,null,null,null,null,null,null,null,null,null,null,null,null,null,null,null,null,null,null,null,null,null,null,null,null,null,null,null,null,null,null,null,null,null,null,null,null,null,null,null,null,null,null,null,null,null,null,null,null,null,null,null,null,null,null,"3.5","3.5"]
["2.3 - Cobrança",null,null,null,null,null,null,null,null,null,null,null,null,null,null,null,null,null,null,null,null,null,null,null,null,null,null,null,null,null,null,null,null,null,null,null,null,null,null,null,null,null,null,null,null,null,null,null,null,null,null,null,null,null,null,null,null,null,null,"4.1","4.1"]
["2.4 - Enquadramento",null,null,null,null,null,null,null,null,null,null,null,null,null,null,null,null,null,null,null,null,null,null,null,null,null,null,null,null,null,null,null,null,null,null,null,null,null,null,null,null,null,null,null,null,null,null,null,null,null,null,null,null,null,null,null,null,null,null,"4.2","4.2"]
["2.6 - Integração",null,null,null,null,null,null,null,null,null,null,null,null,null,null,null,null,null,null,null,null,null,null,null,null,null,null,null,null,null,null,null,null,null,null,null,null,null,null,null,null,null,null,null,null,null,null,null,null,null,null,null,null,null,null,null,null,null,null,"5.1","5.1"]
["2.7 - CORHI",null,null,null,null,null,null,null,null,null,null,null,null,null,null,null,null,null,null,null,null,null,null,null,null,null,null,null,null,null,null,null,null,null,null,null,null,null,null,null,null,null,null,null,null,null,null,null,null,null,null,null,null,null,null,null,null,null,null,"5.2","5.2"]
["3.1 - Efluentes",null,null,null,null,null,null,null,null,null,null,null,null,null,null,null,null,null,null,null,null,null,null,null,null,null,null,null,null,null,null,null,null,null,null,null,null,null,null,null,null,null,null,null,null,null,null,null,null,null,null,null,null,null,null,null,null,null,null,"5.3","5.3"]
["3.2 - Poluição",null,null,null,null,null,null,null,null,null,null,null,null,null,null,null,null,null,null,null,null,null,null,null,null,null,null,null,null,null,null,null,null,null,null,null,null,null,null,null,null,null,null,null,null,null,null,null,null,null,null,null,null,null,null,null,null,null,null,"6.1","6.1"]
["3.3 - Resíduos",null,null,null,null,null,null,null,null,null,null,null,null,null,null,null,null,null,null,null,null,null,null,null,null,null,null,null,null,null,null,null,null,null,null,null,null,null,null,null,null,null,null,null,null,null,null,null,null,null,null,null,null,null,null,null,null,null,null,"6.2","6.2"]
["3.4 - Intervenções",null,null,null,null,null,null,null,null,null,null,null,null,null,null,null,null,null,null,null,null,null,null,null,null,null,null,null,null,null,null,null,null,null,null,null,null,null,null,null,null,null,null,null,null,null,null,null,null,null,null,null,null,null,null,null,null,null,null,"6.3","6.3"]
["4.1 - Erosão",null,null,null,null,null,null,null,null,null,null,null,null,null,null,null,null,null,null,null,null,null,null,null,null,null,null,null,null,null,null,null,null,null,null,null,null,null,null,null,null,null,null,null,null,null,null,null,null,null,null,null,null,null,null,null,null,null,null,"7.1","7.1"]
["4.2 - Conservação",null,null,null,null,null,null,null,null,null,null,null,null,null,null,null,null,null,null,null,null,null,null,null,null,null,null,null,null,null,null,null,null,null,null,null,null,null,null,null,null,null,null,null,null,null,null,null,null,null,null,null,null,null,null,null,null,null,null,"7.2","7.2"]
["4.3 - Mananciais",null,null,null,null,null,null,null,null,null,null,null,null,null,null,null,null,null,null,null,null,null,null,null,null,null,null,null,null,null,null,null,null,null,null,null,null,null,null,null,null,null,null,null,null,null,null,null,null,null,null,null,null,null,null,null,null,null,null,"7.3","7.3"]
["5.1 - Perdas",null,null,null,null,null,null,null,null,null,null,null,null,null,null,null,null,null,null,null,null,null,null,null,null,null,null,null,null,null,null,null,null,null,null,null,null,null,null,null,null,null,null,null,null,null,null,null,null,null,null,null,null,null,null,null,null,null,null,"8.1","8.1"]
["5.2 - Racionalização",null,null,null,null,null,null,null,null,null,null,null,null,null,null,null,null,null,null,null,null,null,null,null,null,null,null,null,null,null,null,null,null,null,null,null,null,null,null,null,null,null,null,null,null,null,null,null,null,null,null,null,null,null,null,null,null,null,null,"8.2","8.2"]
["5.3 - Reuso",null,null,null,null,null,null,null,null,null,null,null,null,null,null,null,null,null,null,null,null,null,null,null,null,null,null,null,null,null,null,null,null,null,null,null,null,null,null,null,null,null,null,null,null,null,null,null,null,null,null,null,null,null,null,null,null,null,null,"8.3","8.3"]
["6.1 - Captação"]
["6.2 - Regularização"]
["7.1 - Drenagem"]
["7.2 - Escassez"]
["8.1 - Capacitação"]
["8.2 - Educação"]
["8.3 - Comunicação"]

{"sheet":"Explicativo","index":11,"n_rows":39,"n_cols":2,"rows_kept":39,"cut":false,"hidden":true,"merged":[]}
["Explicativo","Função"]
["sheet PAPI_20_21"]
["Coluna A","PDCs da Delib. CRH 190/2016 = lista suspensa (Operacional)"]
["Coluna B","subPDCs da Delib. CRH 190/2016 = lista suspensa (Operacional)"]
["Coluna E","formatação condicional para % = % tem que coincidir com o informado pelo CBH na Coluna O (Execução)"]
["Coluna F","categorias de Executores de Empreendimentos Fehidro = lista suspensa (Operacional)"]
["Coluna G","Área de abrangencia = delimitações possível em mapeamento = lista suspensa (Operacional)"]
["Coluna H","Nome da área de abrangencia conforme consta no Empreendimento Fehidro ou TR ou similar (preenchimento livre)"]
["Coluna I","R$ total que consta no PAPI vigente aprovado pelo CBH no RS "]
["Coluna J","R$ total disponibilizado para investimento conforme Deliberação do COFEHIDRO"]
["Coluna K","R$ total efetivamente pago/repassado neste exercício (Coluna L) ao Executor da Ação = tem que coincidir com informações do SINFehidro\nQuando R$ de K é maior que R$ de I, valor é destacado em vermelho = CBH tem que explicar a extrapolação dos recursos"]
["Coluna L","ano/exercício ao qual se referem os dados informados"]
["Coluna M","categorias de Fontes de recursos para os Executores da Ação = lista suspensa (Operacional)"]
["Coluna N","Nome da Fonte de recursos conforme consta no Empreendimento Fehidro ou TR ou similar = tem que coincidir com informações do SinFEHIDRO"]
["Coluna O","Informações relevantes sobre a execução Física e Financeira da Ação = tem que coincidir com a execução do Empreendimento e informações do SinFEHIDRO"]
[]
["sheet PAPI_22_23"]
["Coluna A","PDCs da Delib. CRH 246/2021 = lista suspensa (Operacional)"]
["Coluna B","subPDCs da Delib. CRH 246/2021 = lista suspensa (Operacional)"]
["Coluna E","formatação condicional para % = % tem que coincidir com o informado pelo CBH na Coluna O (Execução)"]
["Coluna F","categorias de Executores de Empreendimentos Fehidro = lista suspensa (Operacional)"]
["Coluna G","Área de abrangencia = delimitações possível em mapeamento = lista suspensa (Operacional)"]
["Coluna H","Nome da área de abrangencia conforme consta no Empreendimento Fehidro ou TR ou similar (preenchimento livre)"]
["Coluna I","R$ total que consta no PAPI vigente aprovado pelo CBH no RS "]
["Coluna J","R$ total disponibilizado para investimento conforme Deliberação do COFEHIDRO"]
["Coluna K","R$ total efetivamente pago/repassado neste exercício (Coluna L) ao Executor da Ação = tem que coincidir com informações do SINFehidro\nQuando R$ de K é maior que R$ de I, valor é destacado em vermelho = CBH tem que explicar a extrapolação dos recursos"]
["Coluna L","ano/exercício ao qual se referem os dados informados"]
["Coluna M","categorias de Fontes de recursos para os Executores da Ação = lista suspensa (Operacional)"]
["Coluna N","Nome da Fonte de recursos conforme consta no Empreendimento Fehidro ou TR ou similar = tem que coincidir com informações do SinFEHIDRO"]
["Coluna O","Informações relevantes sobre a execução Física e Financeira da Ação = tem que coincidir com a execução do Empreendimento e informações do SinFEHIDRO"]
[]
["sheet Consolidação","DEVE SER BLOQUEADA PARA ALTERAÇÕES"]
[]
["Coluna A","PDCs da Delib. CRH 190/2016 = lista suspensa (Operacional)"]
["Colunas B C D","Cálculos com os valores de Recurso financeiro Executado 2020 (sheet PAPI_20_21; Coluna K) para cada fonte FEHIDRO e para outras (soma da demais fontes)"]
["Colunas E F G","Cálculos com os valores de Recurso financeiro Executado 2021 (sheet PAPI_20_21; Coluna K) para cada fonte FEHIDRO e para outras (soma da demais fontes)"]
["Coluna H","PDCs da Delib. CRH 246/2021 = lista suspensa (Operacional)"]
["Colunas H I J","Cálculos com os valores de Recurso financeiro Executado 2022 (sheet PAPI_22_23; Coluna K) para cada fonte FEHIDRO e para outras (soma da demais fontes)"]
["Colunas K L M","Cálculos com os valores de Recurso financeiro Executado 2023 (sheet PAPI_22_23; Coluna K) para cada fonte FEHIDRO e para outras (soma da demais fontes)"]

{"sheet":"de-para 246 190","index":12,"n_rows":33,"n_cols":14,"rows_kept":33,"cut":false,"hidden":true,"merged":[]}
["246","190","Coluna1",null,"246","190","Coluna1","Coluna12",null,"190","246",null,"190","246"]
["1.1","1.6",null,null,"1.1","1.6",null,null,null,"1.1","2.5",null,"1.1","2.5"]
["1.2","1.2",null,null,"1.2","1.2","1.5","1.7",null,"1.2","1.2",null,"1.2","1.2"]
["2.1","2.1",null,null,"2.1","2.1",null,null,null,"1.3","2.4",null,"1.3","2.4"]
["2.2","2.2",null,null,"2.2","2.2",null,null,null,"1.4","2.5",null,"1.4","2.5"]
["2.3","2.3",null,null,"2.3","2.3",null,null,null,"1.5","6.1",null,"1.5","1.2"]
["2.4","1.3",null,null,"2.4","1.3","2.4",null,null,"1.6","1.1",null,"1.6","1.1"]
["2.4","2.4",null,null,"2.5","1.1","1.4","7.1",null,"1.7","3.2",null,"1.7","1.2"]
["2.5","1.1","1.4",null,"2.6","2.5",null,null,null,"2.1","2.1",null,"2.1","2.1"]
["2.6","2.5",null,null,"2.7","2.6",null,null,null,"2.2","2.2",null,"2.2","2.2"]
["2.7","2.6",null,null,"3.1","3.1",null,null,null,"2.3","2.3",null,"2.3","2.3"]
["3.1","3.1",null,null,"3.2",null,null,null,null,"2.4","2.4",null,"2.4","2.4"]
["3.2","1.7",null,null,"3.3","3.2",null,null,null,"2.5","2.6",null,"2.5","2.6"]
["3.3","3.2",null,null,"3.4","3.5",null,null,null,"2.6","2.7",null,"2.6","2.7"]
["3.4","3.5",null,null,"4.1","3.4",null,null,null,"3.1","3.1",null,"3.1","3.1"]
["4.1","3.4",null,null,"4.2","4.2",null,null,null,"3.2","3.3",null,"3.2","3.3"]
["4.2","4.2",null,null,"4.3","4.1",null,null,null,"3.3","7.1",null,"3.4","4.1"]
["4.3","4.1",null,null,"5.1","5.1",null,null,null,"3.4","4.1",null,"3.5","3.4"]
["5.1","5.1",null,null,"5.2","5.2",null,null,null,"3.5","3.4",null,"4.1","4.3"]
["5.2","5.2",null,null,"5.3","5.3",null,null,null,"4.1","4.3",null,"4.2","4.2"]
["5.3","5.3",null,null,"6.1",null,null,null,null,"4.2","4.2",null,"5.1","5.1"]
["6.1","1.5","6.2",null,"6.2","6.2",null,null,null,"5.1","5.1",null,"5.2","5.2"]
["6.2","6.1","6.3",null,"7.1","7.2",null,null,null,"5.2","5.2",null,"5.3","5.3"]
["7.1","3.3","7.2",null,"7.2","7.3",null,null,null,"5.3","5.3",null,"6.2","6.2"]
["7.2","7.1","7.3",null,"8.1","8.1",null,null,null,"6.1","6.2",null,"7.1","2.5"]
["8.1","8.1",null,null,"8.2","8.2",null,null,null,"6.2","6.1",null,"7.2","7.1"]
["8.2","8.2",null,null,"8.3","8.3",null,null,null,"6.3","6.2",null,"7.3","7.2"]
["8.3","8.3",null,null,null,null,null,null,null,"7.1","7.2",null,"8.1","8.1"]
[null,null,null,null,null,null,null,null,null,"7.2","7.1",null,"8.2","8.2"]
[null,null,null,null,null,null,null,null,null,"7.3","7.2",null,"8.3","8.3"]
[null,null,null,null,null,null,null,null,null,"8.1","8.1"]
[null,null,null,null,null,null,null,null,null,"8.2","8.2"]
[null,null,null,null,null,null,null,null,null,"8.3","8.3"]